Workbook

Sheet Example 7.1
A1: A Beginners Guide to the Steel Construction Manual, 16th Edition | H1: last modified: 29 May 2023
A2: Example 7.1 | H2: by: TBQ
B13: Load | C13: Part of Ps,eq
B14: Dead,D | C14: 1 | F14: (Lc)x | G14: 15 | H14: ft
B15: Live, L | C15: 1.5 | F15: (Lc)y | G15: 6 | H15: ft
B16: Snow, S | C16: 2
A22: Solution:
A24: Solution Summary:
F25: Ps,eq
F26: LRFD | G26: ASD
A27: Part | B27: Section | D27: Steel | F27: (kips) | G27: (kips)
A28: a | B28: =+B43 -> W10X19 | D28: =+B44 -> A992 | F28: =+C76 -> 117.4383016 | G28: =+H76 -> 127.1729607
A29: b | B29: =+B78 -> HSS10X4X1/2 | D29: =+B79 -> A500 Gr B, Rect HSS | F29: =+C110 -> 301.2800187 | G29: =+H110 -> 326.253628
A30: c | B30: =+B112 -> HSS7.500X0.500 | D30: =+B113 -> A500 Gr B, Rnd HSS | F30: =+C144 -> 215.4269754 | G30: =+H144 -> 233.2840811
A32: ASCE 7 Load Combinations:
B34: Load | D34: Part of Ps,eq
B35: Dead,D | D35: =+C14 -> 1 | E35: =+D35/(SUM(D$35:D$37)) -> 0.2222222222 | F35: Ps,eq
B36: Live, L | D36: =+C15 -> 1.5 | E36: =+D36/(SUM(D$35:D$37)) -> 0.3333333333 | F36: Ps,eq
B37: Snow, S | D37: =+C16 -> 2 | E37: =+D37/(SUM(D$35:D$37)) -> 0.4444444444 | F37: Ps,eq
A39: The controlling load case is LRFD LC-3c | G39: The controlling load case is ASD LC-4 and LC-6 equally control
A40: Composite load factor for LRFD: | D40: Pu = | E40: =1.2*E35+1.6*E37+1*E36 -> 1.311111111 | F40: Ps,eq | G40: Composite load factor for ASD: | J40: Ps = | K40: =1*E35+0.75*(E36+E37) -> 0.8055555556 | L40: Ps,eq
A43: part (a) | B43: W10X19 | D43: Fy | E43: =VLOOKUP(B44,StlProp,2) -> 50 | F43: ksi
B44: A992 | D44: Orient column so that the strong axis is associated with the largest KL
B46: =IF(OR(G66>1,G67>1),"Sender Elements: Use SCM Section E7","Use SCM Section E3") -> Use SCM Section E3
B48: Compute Slenderness Values
B49: Direction | C49: r | D49: Lc/r
C50: (in)
B51: Strong | C51: =VLOOKUP(B43,StlSects,33) -> 4.14 | D51: =12*G14/C51 -> 43.47826087 | E51: =IF(D51>D52,"<--- Controlling Value"," ") -> 
B52: Weak | C52: =VLOOKUP(B43,StlSects,37) -> 0.874 | D52: =12*G15/C52 -> 82.3798627 | E52: =IF(D52>D51,"<--- Controlling Value"," ") -> <--- Controlling Value
B54: Determine Pn
C55: Determine SCM Section E3 formula to use
C57: 4.71sqrt(E/Fy) | E57: =4.71*SQRT(29000/E43) -> 113.4318209
C58: Controlling Lc/r | E58: =MAX(D51:D52) -> 82.3798627
C59: (Lc/r)/limit | E59: =+E58/E57 -> 0.7262500242 | F59: =IF(E59<=1,"Use SCM Equation E3-2","Use SCM Equation E3-3") -> Use SCM Equation E3-2
C61: Fe | D61: =+(PI()^2)*29000/(E58^2) -> 42.17505093 | E61: ksi
C62: Fn | D62: =IF(E59<1,E43*0.658^(E43/D61),0.877*D61) -> 30.44180746 | E62: ksi
B64: Check Local Buckling Criteria: SCM Table B4.1 and SCM E7
B65: Case | C65: Coeff. | D65: Ratio | E65: Actual | F65: Limit | G65: Act/Limit
B66: 1 | C66: 0.56 | D66: bf/2tf | E66: =VLOOKUP(B43,StlSects,25) -> 5.09 | F66: =0.56*SQRT(29000/E43)*SQRT(E43/D62) -> 17.28430051 | G66: =+E66/F66 -> 0.2944868956 | H66: =IF(G66<=1,"Not Slender","SLENDER!!!") -> Not Slender
B67: 5 | C67: 1.49 | D67: h/tw | E67: =VLOOKUP(B43,StlSects,27) -> 35.4 | F67: =+F66*1.49/0.56 -> 45.98858529 | G67: =+E67/F67 -> 0.7697562292 | H67: =IF(G67<=1,"Not Slender","SLENDER!!!") -> Not Slender
C69: Ae = Ag | D69: =VLOOKUP(B43,StlSects,5) -> 5.62 | E69: in^2
C70: Pn | D70: =+D62*D69 -> 171.0829579 | E70: kips
B72: LRFD | G72: ASD
B73: fc = | C73: 0.9 | G73: Wc = | H73: 1.67
B74: Pu < | C74: =+D70*C73 -> 153.9746621 | D74: kips | G74: Pa < | H74: =+D70/H73 -> 102.444885 | I74: kips
B75: CLF | C75: =+E$40 -> 1.311111111 | G75: CLF | H75: =+K$40 -> 0.8055555556
B76: Ps,eq < | C76: =+C74/C75 -> 117.4383016 | D76: kips/connection | G76: Ps,eq < | H76: =+H74/H75 -> 127.1729607 | I76: kips/connection
A78: part (b) | B78: HSS10X4X1/2 | D78: Fy | E78: =VLOOKUP(B79,StlProp,2) -> 46 | F78: ksi
B79: A500 Gr B, Rect HSS
B81: Use SCM Section E3
B83: Compute Slenderness Values
B84: Direction | C84: r | D84: Lc/r
C85: (in)
B86: Strong | C86: =VLOOKUP(B78,StlSects,33) -> 3.34 | D86: =12*G$14/C86 -> 53.89221557 | E86: =IF(D86>D87,"<--- Controlling Value"," ") -> <--- Controlling Value
B87: Weak | C87: =VLOOKUP(B78,StlSects,37) -> 1.59 | D87: =12*G$15/C87 -> 45.28301887 | E87: =IF(D87>D86,"<--- Controlling Value"," ") -> 
B89: Determine Pn
C90: Determine SCM Section E3 formula to use
C92: 4.71sqrt(E/Fy) | E92: =4.71*SQRT(29000/E78) -> 118.2608484
C93: Controlling Lc/r | E93: =MAX(D86:D87) -> 53.89221557
C94: (Lc/r)/limit | E94: =+E93/E92 -> 0.4557063162
C96: Fe | D96: =+(PI()^2)*29000/(E93^2) -> 98.54751256 | E96: ksi
C97: Fn | D97: =IF(E94<1,E78*0.658^(E78/D96),0.877*D96) -> 37.83635825 | E97: ksi
B99: Check Local Buckling Criteria: SCM Table B4.1 and SCM E7
B100: Case | C100: Coeff. | D100: Ratio | E100: Actual | F100: Limit | G100: Act/Limit
B101: 6 | C101: 1.4 | D101: b/t | E101: =MAX(VLOOKUP(B78,StlSects,26),VLOOKUP(B78,StlSects,28)) -> 18.5 | F101: =C101*SQRT(29000/E78)*SQRT(E78/D97) -> 38.75898274 | G101: =+E101/F101 -> 0.4773087086 | H101: =IF(G101<=1,"Not Slender","SLENDER!!!") -> Not Slender
C103: Ae = Ag | D103: =VLOOKUP(B78,StlSects,5) -> 11.6 | E103: in^2
C104: Pn | D104: =+D97*D103 -> 438.9017557 | E104: kips
B106: LRFD | G106: ASD
B107: fc = | C107: 0.9 | G107: Wc = | H107: 1.67
B108: Pu < | C108: =+D104*C107 -> 395.0115801 | D108: kips | G108: Pa < | H108: =+D104/H107 -> 262.8154226 | I108: kips
B109: CLF | C109: =+E$40 -> 1.311111111 | G109: CLF | H109: =+K$40 -> 0.8055555556
B110: Ps,eq < | C110: =+C108/C109 -> 301.2800187 | D110: kips/connection | G110: Ps,eq < | H110: =+H108/H109 -> 326.253628 | I110: kips/connection
A112: part (c) | B112: HSS7.500X0.500 | D112: Fy | E112: =VLOOKUP(B113,StlProp,2) -> 42 | F112: ksi
B113: A500 Gr B, Rnd HSS
B115: =IF(G135>1,"Sender Elements: Use SCM Section E7","Use SCM Section E3") -> Use SCM Section E3
B117: Compute Slenderness Values
B118: Direction | C118: r | D118: Lc/r
C119: (in)
B120: Strong | C120: =VLOOKUP(B112,StlSects,33) -> 2.49 | D120: =12*G$14/C120 -> 72.28915663 | E120: =IF(D120>D121,"<--- Controlling Value"," ") -> <--- Controlling Value
B121: Weak | C121: =VLOOKUP(B112,StlSects,37) -> 2.49 | D121: =12*G$15/C121 -> 28.91566265 | E121: =IF(D121>D120,"<--- Controlling Value"," ") -> 
B123: Determine Pn
C124: Determine SCM Section E3 formula to use
C126: 4.71sqrt(E/Fy) | E126: =4.71*SQRT(29000/E112) -> 123.7642632
C127: Controlling Lc/r | E127: =MAX(D120:D121) -> 72.28915663
C128: (Lc/r)/limit | E128: =+E127/E126 -> 0.5840874799 | F128: =IF(E128<=1,"Use SCM Equation E3-2","Use SCM Equation E3-3") -> Use SCM Equation E3-2
C130: Fe | D130: =+(PI()^2)*29000/(E127^2) -> 54.77109547 | E130: ksi
C131: Fn | D131: =IF(E128<1,E112*0.658^(E112/D130),0.877*D130) -> 30.46911555 | E131: ksi
B133: Check Local Buckling Criteria: SCM Table B4.1 and SCM E7
B134: Case | C134: Coeff. | D134: Ratio | E134: Actual | F134: Limit | G134: Act/Limit
B135: 9 | C135: 0.11 | D135: D/t | E135: =VLOOKUP(B112,StlSects,29) -> 16.1 | F135: =C135*(29000/E112) -> 75.95238095 | G135: =+E135/F135 -> 0.2119749216 | H135: =IF(G135<=1,"Not Slender","SLENDER!!!") -> Not Slender
C137: Ae = Ag | D137: =VLOOKUP(B112,StlSects,5) -> 10.3 | E137: in^2
C138: Pn | D138: =+D131*D137 -> 313.8318902 | E138: kips
B140: LRFD | G140: ASD
B141: fc = | C141: 0.9 | G141: Wc = | H141: 1.67
B142: Pu < | C142: =+D138*C141 -> 282.4487011 | D142: kips | G142: Pa < | H142: =+D138/H141 -> 187.9232875 | I142: kips
B143: CLF | C143: =+E$40 -> 1.311111111 | G143: CLF | H143: =+K$40 -> 0.8055555556
B144: Ps,eq < | C144: =+C142/C143 -> 215.4269754 | D144: kips/connection | G144: Ps,eq < | H144: =+H142/H143 -> 233.2840811 | I144: kips/connection

Sheet Example 7.2
A1: A Beginners Guide to the Steel Construction Manual, 16th Edition | H1: last modified: 29 May 2023
A2: Example 7.2 | H2: by: TBQ
A11: Solution:
A13: Determine the loads on the column:
B15: From the drawings, we find that the tributary area at each level is the same. See the next drawing for
B16: a view of the tributary area.
B35: Area Tributary to the column | E35: 72 | F35: sqft per level (rounded up to the nearest integer.)
B36: Length of Ext Wall supported | E36: =14+10/12 -> 14.83333333 | F36: ft
H37: These appear to be the likely to control load cases:
H38: LRFD Load Cases | K38: ASD Load Cases
A39: Level | B39: Height | C39: Flr D | D39: Ext Wall D | E39: Roof D | F39: Flr L | G39: Roof S | H39: LC-1 | I39: LC-2 | J39: LC-3 | K39: LC-2 | L39: LC-3 | M39: LC-4
B40: unit loads (psf): | C40: 60 | D40: 50 | E40: 50 | F40: 40 | G40: 50
B41: (ft) | C41: (lb) | D41: (lb) | E41: (lb) | F41: (lb) | G41: (lb) | H41: (lb) | I41: (lb) | J41: (lb) | K41: (lb) | L41: (lb) | M41: (lb)
A42: Roof | B42: 1.3333 | D42: =+B42*E36*D40 -> 988.8641667 | E42: =+E35*E40 -> 3600 | G42: =+G40*E35 -> 3600 | H42: =1.4*(C42+D42+E42) -> 6424.409833 | I42: =1.2*(C42+D42+E42)+1.6*F42+0.5*G42 -> 7306.637 | J42: =1.2*(C42+D42+E42)+1.6*G42+1*F42 -> 11266.637 | K42: =+C42+D42+E42+F42 -> 4588.864167 | L42: =+C42+D42+E42+G42 -> 8188.864167 | M42: =+C42+D42+E42+0.75*(F42+G42) -> 7288.864167
A43: 3rd floor | B43: 11 | C43: =+E35*C40 -> 4320 | D43: =+B43*E36*D40 -> 8158.333333 | F43: =+E35*F40 -> 2880 | H43: =1.4*(C43+D43+E43) -> 17469.66667 | I43: =1.2*(C43+D43+E43)+1.6*F43+0.5*G43 -> 19582 | J43: =1.2*(C43+D43+E43)+1.6*G43+1*F43 -> 17854 | K43: =+C43+D43+E43+F43 -> 15358.33333 | L43: =+C43+D43+E43+G43 -> 12478.33333 | M43: =+C43+D43+E43+0.75*(F43+G43) -> 14638.33333
A44: 2nd floor | B44: =10+8/12 -> 10.66666667 | C44: =+C43 -> 4320 | D44: =+B44*E36*D40 -> 7911.111111 | F44: =+F43 -> 2880 | H44: =1.4*(C44+D44+E44) -> 17123.55556 | I44: =1.2*(C44+D44+E44)+1.6*F44+0.5*G44 -> 19285.33333 | J44: =1.2*(C44+D44+E44)+1.6*G44+1*F44 -> 17557.33333 | K44: =+C44+D44+E44+F44 -> 15111.11111 | L44: =+C44+D44+E44+G44 -> 12231.11111 | M44: =+C44+D44+E44+0.75*(F44+G44) -> 14391.11111
B45: =SUM(B42:B44) -> 22.99996667 | C45: =SUM(C42:C44) -> 8640 | D45: =SUM(D42:D44) -> 17058.30861 | E45: =SUM(E42:E44) -> 3600 | G45: Column load at first floor level, P = | H45: =SUM(H42:H44) -> 41017.63206 | I45: 46173.97033 | J45: 46677.97033 | K45: 35058.30861 | L45: 32898.30861 | M45: 36318.30861 | N45: lbs
D47: =+C45+D45+E45 -> 29298.30861 | H47: LRFD Pu = | I47: =MAX(H45:J45)/1000 -> 46.67797033 | J47: kips | K47: ASD Pa = | L47: =MAX(K45:M45)/1000 -> 36.31830861 | M47: kips
H48: fc = | I48: 0.9 | K48: Wc = | L48: 1.67
H49: req'd Pn = | I49: =+I47/I48 -> 51.86441148 | J49: kips | K49: req'd Pn = | L49: =+L47*L48 -> 60.65157538 | M49: kips
A50: Search for the lightest Rnd HSS:
B52: Column Height | E52: =10+8/12 -> 10.66666667 | F52: ft | G52: Stl Type: | H52: A500 Gr B, Rnd HSS | J52: Fy | K52: =VLOOKUP(H52,StlProp,2) -> 42 | L52: ksi
B53: Effective Length Coefficient, K | E53: 1 | J53: 4.71sqrt(E/Fy) | K53: =4.71*SQRT(29000/K52) -> 123.7642632
A55: Note: It is useful to sort the section property tables by member weight when selecting lightest weight members. This was done
A56: one a separate sheet for this problem. Sorting the tables allows you to easily find lightest weight members that work.
C58: Ag | D58: r | E58: Lc/r | F58: Fe | G58: Fn
A59: Section to Try | C59: (in2) | D59: (in) | F59: (ksi) | G59: (ksi)
A60: HSS3.500X0.216 | C60: =VLOOKUP(A60,StlSects,5) -> 2.08 | D60: =VLOOKUP(A60,StlSects,33) -> 1.17 | E60: =12*E$52*E$53/D60 -> 109.4017094 | F60: =+(PI()^2)*29000/(E60^2) -> 23.91385147 | G60: =IF(E60<=K$53,K$52*0.658^(K$52/F60),0.877*F60) -> 20.13717976
A61: HSS4X0.188 | C61: =VLOOKUP(A61,StlSects,5) -> 2.09 | D61: =VLOOKUP(A61,StlSects,33) -> 1.35 | E61: =12*E$52*E$53/D61 -> 94.81481481 | F61: =+(PI()^2)*29000/(E61^2) -> 31.83796793 | G61: =IF(E61<=K$53,K$52*0.658^(K$52/F61),0.877*F61) -> 24.18001606
A62: HSS5.563X0.134 | C62: =VLOOKUP(A62,StlSects,5) -> 2.12 | D62: =VLOOKUP(A62,StlSects,33) -> 1.92 | E62: =12*E$52*E$53/D62 -> 66.66666667 | F62: =+(PI()^2)*29000/(E62^2) -> 64.39916872 | G62: =IF(E62<=K$53,K$52*0.658^(K$52/F62),0.877*F62) -> 31.96681958
A63: HSS6X0.125 | C63: =VLOOKUP(A63,StlSects,5) -> 2.14 | D63: =VLOOKUP(A63,StlSects,33) -> 2.08 | E63: =12*E$52*E$53/D63 -> 61.53846154 | F63: =+(PI()^2)*29000/(E63^2) -> 75.57957995 | G63: =IF(E63<=K$53,K$52*0.658^(K$52/F63),0.877*F63) -> 33.2840673
D65: Check Local Buckling Criteria: SCM Table B4.1 and SCM E7
C66: wt/ft | D66: Case | E66: Coeff. | F66: Ratio | G66: Actual | H66: Limit | I66: Act/Limit
A67: =+A60 -> HSS3.500X0.216 | C67: =VLOOKUP(A60,StlSects,4) -> 7.582987852 | D67: 9 | E67: 0.11 | F67: D/t | G67: =VLOOKUP(A60,StlSects,29) -> 17.4 | H67: =E67*(29000/K$52) -> 75.95238095 | I67: =+G67/H67 -> 0.2290909091 | J67: =IF(I67<=1,"Not Slender","SLENDER!!!") -> Not Slender
A68: =+A61 -> HSS4X0.188 | C68: =VLOOKUP(A61,StlSects,4) -> 7.661154168 | D68: 9 | E68: 0.11 | F68: D/t | G68: =VLOOKUP(A61,StlSects,29) -> 23 | H68: =E68*(29000/K$52) -> 75.95238095 | I68: =+G68/H68 -> 0.3028213166 | J68: =IF(I68<=1,"Not Slender","SLENDER!!!") -> Not Slender
A69: =+A62 -> HSS5.563X0.134 | C69: =VLOOKUP(A62,StlSects,4) -> 7.776928402 | D69: 9 | E69: 0.11 | F69: D/t | G69: =VLOOKUP(A62,StlSects,29) -> 44.9 | H69: =E69*(29000/K$52) -> 75.95238095 | I69: =+G69/H69 -> 0.5911598746 | J69: =IF(I69<=1,"Not Slender","SLENDER!!!") -> Not Slender
A70: =+A63 -> HSS6X0.125 | C70: =VLOOKUP(A63,StlSects,4) -> 7.850572788 | D70: 9 | E70: 0.11 | F70: D/t | G70: =VLOOKUP(A63,StlSects,29) -> 51.7 | H70: =E70*(29000/K$52) -> 75.95238095 | I70: =+G70/H70 -> 0.6806896552 | J70: =IF(I70<=1,"Not Slender","SLENDER!!!") -> Not Slender
E72: LRFD | G72: ASD
C73: Ae | D73: Pn | E73: Req'd/Act | G73: Req'd/Act
C74: (in2) | D74: (kips)
A75: =+A67 -> HSS3.500X0.216 | C75: =C60 -> 2.08 | D75: =+G60*C60 -> 41.88533391 | E75: =+I$49/D75 -> 1.238247535 | F75: =IF(E75<=1,"OK",IF(E75<=1.03,"Close","NG")) -> NG | G75: =+L$49/D75 -> 1.448038483 | H75: =IF(G75<=1,"OK",IF(G75<=1.03,"Close","NG")) -> NG
A76: =+A68 -> HSS4X0.188 | C76: =C61 -> 2.09 | D76: =+G61*C61 -> 50.53623356 | E76: =+I$49/D76 -> 1.026281696 | F76: =IF(E76<=1,"OK",IF(E76<=1.03,"Close","NG")) -> Close | G76: =+L$49/D76 -> 1.200160184 | H76: NG
A77: =+A69 -> HSS5.563X0.134 | C77: =C62 -> 2.12 | D77: =+G62*C62 -> 67.76965751 | E77: =+I$49/D77 -> 0.7653043174 | F77: OK | G77: =+L$49/D77 -> 0.8949665324 | H77: OK
A78: =+A70 -> HSS6X0.125 | C78: =C63 -> 2.14 | D78: =+G63*C63 -> 71.22790403 | E78: =+I$49/D78 -> 0.7281473769 | F78: OK | G78: =+L$49/D78 -> 0.8515142515 | H78: OK
B81: Conclusion:
C82: For LRFD, can use the HSS4X0.188. Given the rounding up on the trib area, this column is close enough.
D83: use HSS.563X0.134: slight increase in weight gets lots of reserve capacity!
C84: For ASD, use the HSS5.563X0.134.

Sheet Example 7.3
A1: A Beginners Guide to the Steel Construction Manual, 16th Edition | H1: last modified: 29 May 2023
A2: Example 7.3 | H2: by: TBQ
B9: Required Pn | C9: 800 | D9: kips | E9: (Lc)x | F9: 30 | G9: ft
B10: Fy | C10: 50 | D10: ksi | E10: (Lc)y | F10: 6 | G10: ft
B12: Slenderness limit | C12: 200
A17: Solution:
B19: Best Solution: | D19: W18x65
A21: Computed Constants
C22: 4.71*sqrt(E/Fy) = | D22: =4.71*SQRT(29000/C10) -> 113.4318209
A24: Local Buckling Criteria: SCM Table B4.1a
B25: Case 1, lr | D25: =0.56*SQRT(29000/C10) -> 13.48658593 | E25: (Unstiffened Element, flange)
B26: Case 5, lr | D26: =1.49*SQRT(29000/C10) -> 35.88395184 | E26: (Stiffened Element, web)
A28: Table E7.1 Factors
C29: c1 | D29: c2
B30: Case (a) | C30: 0.18 | D30: 1.31 | E30: (Stiffened Element, web)
B31: Case (c) | C31: 0.22 | D31: 1.49 | E31: (Unstiffened Element, flange)
A33: Sections sorted by weight: Lightest to Heaviest
B35: Summary | C35: Section Properties | K35: General Slenderness Ratios | Q35: Unstiffened | T35: Area | U35: Stiffened | X35: Area | Y35: Slenderness | Z35: Compressive Strength: SCM E3, E7
B36: Req'd/Act | C36: Area | D36: tw | E36: tf | F36: bf | G36: bf/2tf | H36: h/tw | I36: rx | J36: ry | K36: (Lc/r)x | L36: (Lc/r)y | M36: Control | N36: Fe | O36: Fn | P36: Fy/Fcr | Q36: Act/limit | R36: Fel | S36: be | T36: Reduction | U36: Act/limit | V36: Fel | W36: be | X36: Reduction | Y36: Act/Limit | Z36: Ae | AA36: Pn | AB36: Req'd/Act
A37: Section | C37: (in2) | D37: (in) | E37: (in) | F37: (in) | I37: (in) | J37: (in) | N37: (ksi) | O37: (ksi) | R37: (ksi) | S37: (in) | T37: (in2) | V37: (ksi) | W37: (in) | X37: (in2) | Z37: (in2) | AA37: (kips)
A38: W6X8.5 | B38: =AB38 -> 27.75776942 | C38: 2.52 | D38: 0.17 | E38: 0.195 | F38: 3.94 | G38: 10.1 | H38: 29.1 | I38: 2.43 | J38: 0.89 | K38: =12*F$9/I38 -> 148.1481481 | L38: =12*F$10/J38 -> 80.8988764 | M38: =MAX(K38:L38) -> 148.1481481 | N38: =+(PI()^2)*29000/(M38^2) -> 13.04083167 | O38: =IF(M38<=D$22,C$10*0.658^(C$10/N38),0.877*N38) -> 11.43680937 | P38: =+C$10/O38 -> 4.371848684 | Q38: =+G38/(D$25*SQRT(P38)) -> 0.3581680059 | R38: =+C$10*(D$31*D$25/G38)^2 -> 197.9264527 | S38: =IF(G38<=D$25*SQRT(P38),1,(1-C31*SQRT(R38/O38))*SQRT(R38/O38))*(F38/2) -> 1.97 | T38: =-4*(F38/2-S38)*E38 -> 0 | U38: =+H38/(D$26*SQRT(P38)) -> 0.3878467555 | V38: =+C$10*(D$30*D$26/H38)^2 -> 130.4749527 | W38: =IF(H38<=D$26*SQRT(P38),1,(1-C$30*SQRT(V38/O38))*SQRT(V38/O38))*(H38*D38) -> 4.947 | X38: =-(H38*D38-W38)*D38 -> 0 | Y38: =+M38/C$12 -> 0.7407407407 | Z38: =+C38+T38+X38 -> 2.52 | AA38: =+O38*Z38 -> 28.82075961 | AB38: =C$9/AA38 -> 27.75776942 | AC38: =IF(AB38<=1,"Good", IF(AB38<=1.03,"Close","No Good")) -> No Good
A39: W6X9 | B39: =AB39 -> 25.262071 | C39: 2.68 | D39: 0.17 | E39: 0.215 | F39: 3.94 | G39: 9.16 | H39: 29.2 | I39: 2.47 | J39: 0.905 | K39: 145.7489879 | L39: 79.55801105 | M39: 145.7489879 | N39: 13.47369302 | O39: 11.81642878 | P39: 4.231396892 | Q39: 0.3301806123 | R39: 240.6332526 | S39: =IF(G39<=D$25*SQRT(P39),1,(1-J33*SQRT(R39/O39))*SQRT(R39/O39))*(F39/2) -> 1.97 | T39: 0 | U39: 0.3955858102 | V39: 129.5828189 | W39: 4.964 | X39: 0 | Y39: 0.7287449393 | Z39: 2.68 | AA39: =+O39*Z39 -> 31.66802912 | AB39: 25.262071 | AC39: =IF(AB39<=1,"Good", IF(AB39<=1.03,"Close","No Good")) -> No Good
A40: W8X10 | B40: =AB40 -> 13.48165766 | C40: 2.96 | D40: 0.17 | E40: 0.205 | F40: 3.94 | G40: 9.61 | H40: 40.5 | I40: 3.22 | J40: 0.841 | K40: 111.8012422 | L40: 85.61236623 | M40: 111.8012422 | N40: 22.8983656 | O40: 20.04725806 | P40: 2.494106668 | Q40: 0.4511945573 | R40: 218.6249954 | S40: 1.97 | T40: 0 | U40: 0.7146563325 | V40: 67.36015528 | W40: 6.885 | X40: 0 | Y40: 0.5590062112 | Z40: 2.96 | AA40: 59.33988386 | AB40: 13.48165766 | AC40: No Good
A41: W10X12 | B41: 8.427271496 | C41: 3.54 | D41: 0.19 | E41: 0.21 | F41: 3.96 | G41: 9.43 | H41: 46.6 | I41: 3.9 | J41: 0.785 | K41: 92.30769231 | L41: 91.71974522 | M41: 92.30769231 | N41: 33.59092442 | O41: 26.81635458 | P41: 1.864533818 | Q41: 0.5120643444 | R41: 227.0508872 | S41: 1.98 | T41: 0 | U41: 0.9510438008 | V41: 50.87931933 | W41: 8.854 | X41: 0 | Y41: 0.4615384615 | Z41: 3.54 | AA41: 94.92989521 | AB41: 8.427271496 | AC41: No Good
A42: W6X12 | B42: 18.76595215 | C42: 3.55 | D42: 0.23 | E42: 0.28 | F42: 4 | G42: 7.14 | H42: 21.6 | I42: 2.49 | J42: 0.918 | K42: 144.5783133 | L42: 78.43137255 | M42: 144.5783133 | N42: 13.69277387 | O42: 12.00856268 | P42: 4.163695633 | Q42: 0.2594518074 | R42: 396.0501346 | S42: 2 | T42: 0 | U42: 0.294994554 | V42: 236.8130459 | W42: 4.968 | X42: 0 | Y42: 0.7228915663 | Z42: 3.55 | AA42: 42.63039752 | AB42: 18.76595215 | AC42: No Good
A43: W4X13 | B43: 36.45373097 | C43: 3.83 | D43: 0.28 | E43: 0.345 | F43: 4.06 | G43: 5.88 | H43: 10.6 | I43: 1.72 | J43: 1 | K43: 209.3023256 | L43: 72 | M43: 209.3023256 | N43: 6.533556267 | O43: 5.729928846 | P43: 8.72611185 | Q43: 0.1475927126 | R43: 583.9718821 | S43: 2.03 | T43: 0 | U43: 0.09999889761 | V43: 983.3347694 | W43: 2.968 | X43: 0 | Y43: 1.046511628 | Z43: 3.83 | AA43: 21.94562748 | AB43: 36.45373097 | AC43: No Good
A44: W8X13 | B44: 10.45154812 | C44: 3.84 | D44: 0.23 | E44: 0.255 | F44: 4 | G44: 7.84 | H44: 29.9 | I44: 3.21 | J44: 0.843 | K44: 112.1495327 | L44: 85.40925267 | M44: 112.1495327 | N44: 22.75636058 | O44: 19.93325112 | P44: 2.508371549 | Q44: 0.3670439803 | R44: 328.4841837 | S44: 2 | T44: 0 | U44: 0.5261081021 | V44: 123.5864193 | W44: 6.877 | X44: 0 | Y44: 0.5607476636 | Z44: 3.84 | AA44: 76.54368431 | AB44: 10.45154812 | AC44: No Good
A45: W12X14 | B45: 7.722425512 | C45: 4.16 | D45: 0.2 | E45: 0.225 | F45: 3.97 | G45: 8.82 | H45: 54.3 | I45: 4.62 | J45: 0.753 | K45: 77.92207792 | L45: 95.61752988 | M45: 95.61752988 | N45: 31.30564837 | O45: 25.62408838 | P45: 1.95128893 | Q45: 0.4681723608 | R45: 259.5430587 | S45: 1.985 | T45: 0 | U45: 1.083275133 | V45: 37.4725689 | W45: 10.27425965 | X45: -0.1171480706 | Y45: 0.4780876494 | Z45: 4.042851929 | AA45: 103.5943952 | AB45: 7.722425512 | AC45: No Good
A46: W10X15 | B46: 6.659553798 | C46: 4.41 | D46: 0.23 | E46: 0.27 | F46: 4 | G46: 7.41 | H46: 38.5 | I46: 3.95 | J46: 0.81 | K46: 91.13924051 | L46: 88.88888889 | M46: 91.13924051 | N46: 34.45775137 | O46: 27.23994748 | P46: 1.835539516 | Q46: 0.4055405772 | R46: 367.7140065 | S46: 2 | T46: 0 | U46: 0.7919150472 | V46: 74.54039109 | W46: 8.855 | X46: 0 | Y46: 0.4556962025 | Z46: 4.41 | AA46: 120.1281684 | AB46: 6.659553798 | AC46: No Good
A47: W6X15 | B47: 14.22702174 | C47: 4.43 | D47: 0.23 | E47: 0.26 | F47: 5.99 | G47: 11.5 | H47: 21.2 | I47: 2.56 | J47: 1.45 | K47: 140.625 | L47: 49.65517241 | M47: 140.625 | N47: 14.47347024 | O47: 12.6932334 | P47: 3.939106643 | Q47: 0.4296323226 | R47: 152.6690166 | S47: 2.995 | T47: 0 | U47: 0.2976711371 | V47: 245.8336924 | W47: 4.876 | X47: 0 | Y47: 0.703125 | Z47: 4.43 | AA47: 56.23102395 | AB47: 14.22702174 | AC47: No Good
A48: W8X15 | B48: 8.648518442 | C48: 4.44 | D48: 0.245 | E48: 0.315 | F48: 4.01 | G48: 6.37 | H48: 28.1 | I48: 3.29 | J48: 0.876 | K48: 109.4224924 | L48: 82.19178082 | M48: 109.4224924 | N48: 23.90476825 | O48: 20.83364699 | P48: 2.399963868 | Q48: 0.3048842971 | R48: 497.585509 | S48: 2.005 | T48: 0 | U48: 0.5054796814 | V48: 139.9266659 | W48: 6.8845 | X48: 0 | Y48: 0.547112462 | Z48: 4.44 | AA48: 92.50139262 | AB48: 8.648518442 | AC48: No Good
A49: W12X16 | B49: 6.408088622 | C49: 4.71 | D49: 0.22 | E49: 0.265 | F49: 3.99 | G49: 7.53 | H49: 49.4 | I49: 4.67 | J49: 0.773 | K49: 77.08779443 | L49: 93.14359638 | M49: 93.14359638 | N49: 32.99071578 | O49: 26.51411798 | P49: 1.885787792 | Q49: 0.4065804971 | R49: 356.0874244 | S49: 1.995 | T49: 0 | U49: 1.002490519 | V49: 45.27508019 | W49: 10.86126651 | X49: -0.001481368355 | Y49: 0.4657179819 | Z49: 4.708518632 | AA49: 124.8422185 | AB49: 6.408088622 | AC49: No Good
A50: W5X16 | B50: 19.32936281 | C50: 4.71 | D50: 0.24 | E50: 0.36 | F50: 5 | G50: 6.94 | H50: 15.4 | I50: 2.13 | J50: 1.26 | K50: 169.0140845 | L50: 57.14285714 | M50: 169.0140845 | N50: 10.0196361 | O50: 8.787220856 | P50: 5.690081178 | Q50: 0.2157238763 | R50: 419.2061524 | S50: 2.5 | T50: 0 | U50: 0.1799124528 | V50: 465.8774443 | W50: 3.696 | X50: 0 | Y50: 0.8450704225 | Z50: 4.71 | AA50: 41.38781023 | AB50: 19.32936281 | AC50: No Good
A51: W6X16 | B51: 12.89058462 | C51: 4.74 | D51: 0.26 | E51: 0.405 | F51: 4.03 | G51: 4.98 | H51: 19.1 | I51: 2.6 | J51: 0.967 | K51: 138.4615385 | L51: 74.45708376 | M51: 138.4615385 | N51: 14.92929974 | O51: 13.09299588 | P51: 3.818835695 | Q51: 0.1889564984 | R51: 814.1190239 | S51: 2.015 | T51: 0 | U51: 0.2723752334 | V51: 302.8631197 | W51: 4.966 | X51: 0 | Y51: 0.6923076923 | Z51: 4.74 | AA51: 62.06080045 | AB51: 12.89058462 | AC51: No Good
A52: W10X17 | B52: 5.713715509 | C52: 4.99 | D52: 0.24 | E52: 0.33 | F52: 4.01 | G52: 6.08 | H52: 36.9 | I52: 4.05 | J52: 0.845 | K52: 88.88888889 | L52: 85.20710059 | M52: 88.88888889 | N52: 36.2245324 | O52: 28.05891211 | P52: 1.781965025 | Q52: 0.3377162573 | R52: 546.1845741 | S52: 2.005 | T52: 0 | U52: 0.7703294707 | V52: 81.14474386 | W52: 8.856 | X52: 0 | Y52: 0.4444444444 | Z52: 4.99 | AA52: 140.0139714 | AB52: 5.713715509 | AC52: No Good
A53: W8X18 | B53: 6.806678433 | C53: 5.26 | D53: 0.23 | E53: 0.33 | F53: 5.25 | G53: 7.95 | H53: 29.9 | I53: 3.43 | J53: 1.23 | K53: 104.9562682 | L53: 58.53658537 | M53: 104.9562682 | N53: 25.98250274 | O53: 22.34441604 | P53: 2.237695535 | Q53: 0.3940620454 | R53: 319.456943 | S53: 2.625 | T53: 0 | U53: 0.5570195338 | V53: 123.5864193 | W53: 6.877 | X53: 0 | Y53: 0.5247813411 | Z53: 5.26 | AA53: 117.5316284 | AB53: 6.806678433 | AC53: No Good
A54: W5X19 | B54: 15.77623594 | C54: 5.56 | D54: 0.27 | E54: 0.43 | F54: 5.03 | G54: 5.85 | H54: 13.7 | I54: 2.17 | J54: 1.28 | K54: 165.8986175 | L54: 56.25 | M54: 165.8986175 | N54: 10.39949402 | O54: 9.120356254 | P54: 5.482241988 | Q54: 0.1852570489 | R54: 589.9766949 | S54: 2.515 | T54: 0 | U54: 0.1630576584 | V54: 588.6701193 | W54: 3.699 | X54: 0 | Y54: 0.8294930876 | Z54: 5.56 | AA54: 50.70918077 | AB54: 15.77623594 | AC54: No Good
A55: W12X19 | B55: 5.033753108 | C55: 5.57 | D55: 0.235 | E55: 0.35 | F55: 4.01 | G55: 5.72 | H55: 46.2 | I55: 4.82 | J55: 0.822 | K55: 74.68879668 | L55: 87.59124088 | M55: 87.59124088 | N55: 37.3058024 | O55: 28.53270072 | P55: 1.752375301 | Q55: 0.3203910999 | R55: 617.0985574 | S55: 2.005 | T55: 0 | U55: 0.9725863022 | V55: 51.76416048 | W55: 10.857 | X55: 0 | Y55: 0.4379562044 | Z55: 5.57 | AA55: 158.927143 | AB55: 5.033753108 | AC55: No Good
A56: W10X19 | B56: 4.948718557 | C56: 5.62 | D56: 0.25 | E56: 0.395 | F56: 4.02 | G56: 5.09 | H56: 35.4 | I56: 4.14 | J56: 0.874 | K56: 86.95652174 | L56: 82.3798627 | M56: 86.95652174 | N56: 37.85240028 | O56: 28.76477068 | P56: 1.738237393 | Q56: 0.2862603609 | R56: 779.3113906 | S56: 2.01 | T56: 0 | U56: 0.7482529758 | V56: 88.1671093 | W56: 8.85 | X56: 0 | Y56: 0.4347826087 | Z56: 5.62 | AA56: 161.6580112 | AB56: 4.948718557 | AC56: No Good
A57: W6X20 | B57: 9.944805127 | C57: 5.87 | D57: 0.26 | E57: 0.365 | F57: 6.02 | G57: 8.25 | H57: 18.7 | I57: 2.66 | J57: 1.5 | K57: 135.3383459 | L57: 48 | M57: 135.3383459 | N57: 15.62629486 | O57: 13.70426059 | P57: 3.648500381 | Q57: 0.3202541209 | R57: 296.6461332 | S57: 3.01 | T57: 0 | U57: 0.2728249871 | V57: 315.9584051 | W57: 4.862 | X57: 0 | Y57: 0.6766917293 | Z57: 5.87 | AA57: 80.44400969 | AB57: 9.944805127 | AC57: No Good
A58: W8X21 | B58: 5.654785204 | C58: 6.16 | D58: 0.25 | E58: 0.4 | F58: 5.27 | G58: 6.59 | H58: 27.5 | I58: 3.49 | J58: 1.26 | K58: 103.1518625 | L58: 57.14285714 | M58: 103.1518625 | N58: 26.8994621 | O58: 22.96641255 | P58: 2.177092303 | Q58: 0.3311654106 | R58: 464.9173563 | S58: 2.635 | T58: 0 | U58: 0.5193905067 | V58: 146.0991665 | W58: 6.875 | X58: 0 | Y58: 0.5157593123 | Z58: 6.16 | AA58: 141.4731013 | AB58: 5.654785204 | AC58: No Good
A59: W12X22 | B59: 4.182748237 | C59: 6.48 | D59: 0.26 | E59: 0.425 | F59: 4.03 | G59: 4.74 | H59: 41.8 | I59: 4.91 | J59: 0.848 | K59: 73.3197556 | L59: 84.90566038 | M59: 84.90566038 | N59: 39.70310341 | O59: 29.51571147 | P59: 1.694013036 | Q59: 0.2700336855 | R59: 898.6486069 | S59: 2.015 | T59: 0 | U59: 0.8949888866 | V59: 63.23544258 | W59: 10.868 | X59: 0 | Y59: 0.4245283019 | Z59: 6.48 | AA59: 191.2618104 | AB59: 4.182748237 | AC59: No Good
A60: W10X22 | B60: 4.145593405 | C60: 6.49 | D60: 0.24 | E60: 0.36 | F60: 5.75 | G60: 7.99 | H60: 36.9 | I60: 4.27 | J60: 1.33 | K60: 84.30913349 | L60: 54.13533835 | M60: 84.30913349 | N60: 40.26692741 | O60: 29.73435933 | P60: 1.681556325 | Q60: 0.4568662178 | R60: 316.2663818 | S60: 2.875 | T60: 0 | U60: 0.7929948951 | V60: 81.14474386 | W60: 8.856 | X60: 0 | Y60: 0.4215456674 | Z60: 6.49 | AA60: 192.9759921 | AB60: 4.145593405 | AC60: No Good
A61: W14X22 | B61: 3.740394145 | C61: 6.49 | D61: 0.23 | E61: 0.335 | F61: 5 | G61: 7.46 | H61: 53.3 | I61: 5.54 | J61: 1.04 | K61: 64.98194946 | L61: 69.23076923 | M61: 69.23076923 | N61: 59.71719897 | O61: 35.21877373 | P61: 1.419697358 | Q61: 0.4642361081 | R61: 362.8013829 | S61: 2.5 | T61: 0 | U61: 1.246605552 | V61: 38.89185948 | W61: 10.44565904 | X61: -0.4170684208 | Y61: 0.3461538462 | Z61: 6.072931579 | AA61: 213.8812032 | AB61: 3.740394145 | AC61: No Good
A62: W8X24 | B62: 5.080849499 | C62: 7.08 | D62: 0.245 | E62: 0.4 | F62: 6.5 | G62: 8.12 | H62: 25.9 | I62: 3.42 | J62: 1.61 | K62: 105.2631579 | L62: 44.72049689 | M62: 105.2631579 | N62: 25.83122212 | O62: 22.2392634 | P62: 2.248275903 | Q62: 0.4015403587 | R62: 306.2206897 | S62: 3.25 | T62: 0 | U62: 0.4813652066 | V62: 164.7075844 | W62: 6.3455 | X62: 0 | Y62: 0.5263157895 | Z62: 7.08 | AA62: 157.4539848 | AB62: 5.080849499 | AC62: No Good
A63: W6X25 | B63: 7.719231465 | C63: 7.34 | D63: 0.32 | E63: 0.455 | F63: 6.08 | G63: 6.68 | H63: 15.5 | I63: 2.7 | J63: 1.52 | K63: 133.3333333 | L63: 47.36842105 | M63: 133.3333333 | N63: 16.09979218 | O63: 14.11951774 | P63: 3.541197434 | Q63: 0.2632081715 | R63: 452.4740364 | S63: 3.04 | T63: 0 | U63: 0.2295389351 | V63: 459.8855138 | W63: 4.96 | X63: 0 | Y63: 0.6666666667 | Z63: 7.34 | AA63: 103.6372602 | AB63: 7.719231465 | AC63: No Good
A64: W10X26 | B64: 3.469133846 | C64: 7.61 | D64: 0.26 | E64: 0.44 | F64: 5.77 | G64: 6.56 | H64: 34 | I64: 4.35 | J64: 1.36 | K64: 82.75862069 | L64: 52.94117647 | M64: 82.75862069 | N64: 41.78989266 | O64: 30.30290569 | P64: 1.650006785 | Q64: 0.3786683005 | R64: 469.1793724 | S64: 2.885 | T64: 0 | U64: 0.7376252703 | V64: 95.57741755 | W64: 8.84 | X64: 0 | Y64: 0.4137931034 | Z64: 7.61 | AA64: 230.6051123 | AB64: 3.469133846 | AC64: No Good
A65: W12X26 | B65: 3.046488323 | C65: 7.65 | D65: 0.23 | E65: 0.38 | F65: 6.49 | G65: 8.54 | H65: 47.2 | I65: 5.17 | J65: 1.51 | K65: 69.63249516 | L65: 47.68211921 | M65: 69.63249516 | N65: 59.030142 | O65: 35.07541438 | P65: 1.425499909 | Q65: 0.5303618172 | R65: 276.8412792 | S65: 3.245 | T65: 0 | U65: 1.101686776 | V65: 49.59399898 | W65: 10.14579223 | X65: -0.1633477869 | Y65: 0.3481624758 | Z65: 7.486652213 | AA65: 262.5974287 | AB65: 3.046488323 | AC65: No Good
A66: W16X26 | B66: 3.112053068 | C66: 7.68 | D66: 0.25 | E66: 0.345 | F66: 5.5 | G66: 7.97 | H66: 56.8 | I66: 6.26 | J66: 1.12 | K66: 57.50798722 | L66: 64.28571429 | M66: 64.28571429 | N66: 69.25781656 | O66: 36.96068187 | P66: 1.352788895 | Q66: 0.5080907434 | R66: 317.8556576 | S66: 2.75 | T66: 0 | U66: 1.360921439 | V66: 34.24652062 | W66: 11.3003769 | X66: -0.7249057742 | Y66: 0.3214285714 | Z66: 6.955094226 | AA66: 257.0650251 | AB66: 3.112053068 | AC66: No Good
A67: W14X26 | B67: 2.98670841 | C67: 7.69 | D67: 0.255 | E67: 0.42 | F67: 5.03 | G67: 5.98 | H67: 48.1 | I67: 5.65 | J67: 1.08 | K67: 63.71681416 | L67: 66.66666667 | M67: 66.66666667 | N67: 64.39916872 | O67: 36.12760883 | P67: 1.383983098 | Q67: 0.3769066214 | R67: 564.6043512 | S67: 2.515 | T67: 0 | U67: 1.139408403 | V67: 47.75545346 | W67: 11.18350606 | X67: -0.2759084549 | Y67: 0.3333333333 | Z67: 7.414091545 | AA67: 267.8533992 | AB67: 2.98670841 | AC67: No Good
A68: W8X28 | B68: 4.304769064 | C68: 8.24 | D68: 0.285 | E68: 0.465 | F68: 6.54 | G68: 7.03 | H68: 22.3 | I68: 3.45 | J68: 1.62 | K68: 104.3478261 | L68: 44.44444444 | M68: 104.3478261 | N68: 26.28638908 | O68: 22.55344647 | P68: 2.216956068 | Q68: 0.3500860114 | R68: 408.5412738 | S68: 3.27 | T68: 0 | U68: 0.417374637 | V68: 222.1792006 | W68: 6.3555 | X68: 0 | Y68: 0.5217391304 | Z68: 8.24 | AA68: 185.8403989 | AB68: 4.304769064 | AC68: No Good
A69: W12X30 | B69: 2.580733727 | C69: 8.79 | D69: 0.26 | E69: 0.44 | F69: 6.52 | G69: 7.41 | H69: 41.8 | I69: 5.21 | J69: 1.52 | K69: 69.09788868 | L69: 47.36842105 | M69: 69.09788868 | N69: 59.94710136 | O69: 35.26613896 | P69: 1.417790591 | Q69: 0.4614345818 | R69: 367.7140065 | S69: 3.26 | T69: 0 | U69: 0.9782953103 | V69: 63.23544258 | W69: 10.868 | X69: 0 | Y69: 0.3454894434 | Z69: 8.79 | AA69: 309.9893615 | AB69: 2.580733727 | AC69: No Good
A70: W10X30 | B70: 2.966090475 | C70: 8.84 | D70: 0.3 | E70: 0.51 | F70: 5.81 | G70: 5.7 | H70: 29.5 | I70: 4.38 | J70: 1.37 | K70: 82.19178082 | L70: 52.55474453 | M70: 82.19178082 | N70: 42.3682926 | O70: 30.51078122 | P70: 1.638764987 | Q70: 0.3301524266 | R70: 621.436671 | S70: 2.905 | T70: 0 | U70: 0.6421898136 | V70: 126.9606374 | W70: 8.85 | X70: 0 | Y70: 0.4109589041 | Z70: 8.84 | AA70: 269.715306 | AB70: 2.966090475 | AC70: No Good
A71: W14X30 | B71: 2.469483095 | C71: 8.85 | D71: 0.27 | E71: 0.385 | F71: 6.73 | G71: 8.74 | H71: 45.4 | I71: 5.73 | J71: 1.49 | K71: 62.82722513 | L71: 48.32214765 | M71: 62.82722513 | N71: 72.5106813 | O71: 37.46511053 | P71: 1.334575003 | Q71: 0.5609677776 | R71: 264.3161644 | S71: 3.365 | T71: 0 | U71: 1.095176445 | V71: 53.60452109 | W71: 11.50551782 | X71: -0.2031701884 | Y71: 0.3141361257 | Z71: 8.646829812 | AA71: 323.9544346 | AB71: 2.469483095 | AC71: No Good
A72: W8X31 | B72: 3.853967474 | C72: 9.12 | D72: 0.285 | E72: 0.435 | F72: 8 | G72: 9.19 | H72: 22.3 | I72: 3.47 | J72: 2.02 | K72: 103.7463977 | L72: 35.64356436 | M72: 103.7463977 | N72: 26.5920422 | O72: 22.76077804 | P72: 2.19676146 | Q72: 0.4597503169 | R72: 239.0647619 | S72: 4 | T72: 0 | U72: 0.4192886897 | V72: 222.1792006 | W72: 6.3555 | X72: 0 | Y72: 0.5187319885 | Z72: 9.12 | AA72: 207.5782957 | AB72: 3.853967474 | AC72: No Good
A73: W16X31 | B73: 2.470758749 | C73: 9.13 | D73: 0.275 | E73: 0.44 | F73: 5.53 | G73: 6.28 | H73: 51.6 | I73: 6.41 | J73: 1.17 | K73: 56.16224649 | L73: 61.53846154 | M73: 61.53846154 | N73: 75.57957995 | O73: 37.90675019 | P73: 1.319026288 | Q73: 0.4054440155 | R73: 511.9497099 | S73: 2.765 | T73: 0 | U73: 1.252052994 | V73: 41.49671545 | W73: 12.05063985 | X73: -0.588324041 | Y73: 0.3076923077 | Z73: 8.541675959 | AA73: 323.7871768 | AB73: 2.470758749 | AC73: No Good
A74: W10X33 | B74: 2.826919916 | C74: 9.71 | D74: 0.29 | E74: 0.435 | F74: 7.96 | G74: 9.15 | H74: 27.1 | I74: 4.19 | J74: 1.94 | K74: 85.91885442 | L74: 37.11340206 | M74: 85.91885442 | N74: 38.77223066 | O74: 29.14454312 | P74: 1.715587024 | Q74: 0.5179796453 | R74: 241.1595143 | S74: 3.98 | T74: 0 | U74: 0.5765840831 | V74: 150.4438865 | W74: 7.859 | X74: 0 | Y74: 0.4295942721 | Z74: 9.71 | AA74: 282.9935137 | AB74: 2.826919916 | AC74: No Good
A75: W14X34 | B75: 2.136264682 | C75: 10 | D75: 0.285 | E75: 0.455 | F75: 6.75 | G75: 7.41 | H75: 43.1 | I75: 5.83 | J75: 1.53 | K75: 61.74957118 | L75: 47.05882353 | M75: 61.74957118 | N75: 75.06367989 | O75: 37.83468056 | P75: 1.321538844 | Q75: 0.4779431238 | R75: 367.7140065 | S75: 3.375 | T75: 0 | U75: 1.044809321 | V75: 59.47830529 | W75: 11.92539778 | X75: -0.1020591316 | Y75: 0.3087478559 | Z75: 9.897940868 | AA75: 374.4854309 | AB75: 2.136264682 | AC75: No Good
A76: W12X35 | B76: 2.19075277 | C76: 10.3 | D76: 0.3 | E76: 0.52 | F76: 6.56 | G76: 6.31 | H76: 36.2 | I76: 5.25 | J76: 1.54 | K76: 68.57142857 | L76: 46.75324675 | M76: 68.57142857 | N76: 60.87112784 | O76: 35.45352264 | P76: 1.410297096 | Q76: 0.3939780531 | R76: 507.0932974 | S76: 3.28 | T76: 0 | U76: 0.8494796894 | V76: 84.31328004 | W76: 10.86 | X76: 0 | Y76: 0.3428571429 | Z76: 10.3 | AA76: 365.1712832 | AB76: 2.19075277 | AC76: No Good
A77: W18X35 | B77: 2.189491815 | C77: 10.3 | D77: 0.3 | E77: 0.425 | F77: 6 | G77: 7.06 | H77: 53.5 | I77: 7.04 | J77: 1.22 | K77: 51.13636364 | L77: 59.01639344 | M77: 59.01639344 | N77: 82.17740288 | O77: 38.75889697 | P77: 1.290026392 | Q77: 0.4608964676 | R77: 405.0766285 | S77: 3 | T77: 0 | U77: 1.312665948 | V77: 38.60162274 | W77: 13.14012625 | X77: -0.8729621241 | Y77: 0.2950819672 | Z77: 9.427037876 | AA77: 365.3815898 | AB77: 2.189491815 | AC77: No Good
A78: W8X35 | B78: 3.352124359 | C78: 10.3 | D78: 0.31 | E78: 0.495 | F78: 8.02 | G78: 8.1 | H78: 20.5 | I78: 3.51 | J78: 2.03 | K78: 102.5641026 | L78: 35.4679803 | M78: 102.5641026 | N78: 27.20864878 | O78: 23.17035246 | P78: 2.157930056 | Q78: 0.4088502928 | R78: 307.7347575 | S78: 4.01 | T78: 0 | U78: 0.3888972873 | V78: 262.9089701 | W78: 6.355 | X78: 0 | Y78: 0.5128205128 | Z78: 10.3 | AA78: 238.6546304 | AB78: 3.352124359 | AC78: No Good
A79: W16X36 | B79: 1.983271412 | C79: 10.6 | D79: 0.295 | E79: 0.43 | F79: 6.99 | G79: 8.12 | H79: 48.1 | I79: 6.51 | J79: 1.52 | K79: 55.29953917 | L79: 47.36842105 | M79: 55.29953917 | N79: 93.59544616 | O79: 39.9819275 | P79: 1.250565021 | Q79: 0.5383948128 | R79: 306.2206897 | S79: 3.495 | T79: 0 | U79: 1.198648021 | V79: 47.75545346 | W79: 12.4569805 | X79: -0.5110932514 | Y79: 0.2764976959 | Z79: 10.08890675 | AA79: 403.3739382 | AB79: 1.983271412 | AC79: No Good
A80: W14X38 | B80: 1.880777249 | C80: 11.2 | D80: 0.31 | E80: 0.515 | F80: 6.77 | G80: 6.57 | H80: 39.6 | I80: 5.87 | J80: 1.55 | K80: 61.32879046 | L80: 46.4516129 | M80: 61.32879046 | N80: 76.0972468 | O80: 37.97821962 | P80: 1.316544075 | Q80: 0.4245664226 | R80: 467.7522116 | S80: 3.385 | T80: 0 | U80: 0.9617832722 | V80: 70.45677398 | W80: 12.276 | X80: 0 | Y80: 0.3066439523 | Z80: 11.2 | AA80: 425.3560597 | AB80: 1.880777249 | AC80: No Good
A81: W10X39 | B81: 2.339556626 | C81: 11.5 | D81: 0.315 | E81: 0.53 | F81: 7.99 | G81: 7.53 | H81: 25 | I81: 4.27 | J81: 1.98 | K81: 84.30913349 | L81: 36.36363636 | M81: 84.30913349 | N81: 40.26692741 | O81: 29.73435933 | P81: 1.681556325 | Q81: 0.4305635319 | R81: 356.0874244 | S81: 3.995 | T81: 0 | U81: 0.537259414 | V81: 176.7799915 | W81: 7.875 | X81: 0 | Y81: 0.4215456674 | Z81: 11.5 | AA81: 341.9451323 | AB81: 2.339556626 | AC81: No Good
A82: W12X40 | B82: 1.960251178 | C82: 11.7 | D82: 0.295 | E82: 0.515 | F82: 8.01 | G82: 7.77 | H82: 33.6 | I82: 5.13 | J82: 1.94 | K82: 70.1754386 | L82: 37.11340206 | M82: 70.1754386 | N82: 58.12024977 | O82: 34.88127907 | P82: 1.433433674 | Q82: 0.4812050692 | R82: 334.4294781 | S82: 4.005 | T82: 0 | U82: 0.7820782551 | V82: 97.8666159 | W82: 9.912 | X82: 0 | Y82: 0.350877193 | Z82: 11.7 | AA82: 408.1109651 | AB82: 1.960251178 | AC82: No Good
A83: W8X40 | B83: 2.925479652 | C83: 11.7 | D83: 0.36 | E83: 0.56 | F83: 8.07 | G83: 7.21 | H83: 17.6 | I83: 3.53 | J83: 2.04 | K83: 101.9830028 | L83: 35.29411765 | M83: 101.9830028 | N83: 27.51960225 | O83: 23.37260091 | P83: 2.139256996 | Q83: 0.3655121017 | R83: 388.3971722 | S83: 4.035 | T83: 0 | U83: 0.3353365734 | V83: 356.6874183 | W83: 6.336 | X83: 0 | Y83: 0.5099150142 | Z83: 11.7 | AA83: 273.4594306 | AB83: 2.925479652 | AC83: No Good
A84: W16X40 | B84: 1.74762905 | C84: 11.8 | D84: 0.305 | E84: 0.505 | F84: 7 | G84: 6.93 | H84: 46.5 | I84: 6.63 | J84: 1.57 | K84: 54.29864253 | L84: 45.85987261 | M84: 54.29864253 | N84: 97.07777158 | O84: 40.30390025 | P84: 1.240574726 | Q84: 0.46133855 | R84: 420.4168554 | S84: 3.5 | T84: 0 | U84: 1.163432585 | V84: 51.09839042 | W84: 12.73261588 | X84: -0.4422146581 | Y84: 0.2714932127 | Z84: 11.35778534 | AA84: 457.7630475 | AB84: 1.74762905 | AC84: No Good
A85: W18X40 | B85: 1.837440033 | C85: 11.8 | D85: 0.315 | E85: 0.525 | F85: 6.02 | G85: 5.73 | H85: 50.9 | I85: 7.21 | J85: 1.27 | K85: 49.93065187 | L85: 56.69291339 | M85: 56.69291339 | N85: 89.05128534 | O85: 39.52833593 | P85: 1.264915378 | Q85: 0.3777651252 | R85: 614.9465152 | S85: 3.01 | T85: 0 | U85: 1.261208186 | V85: 42.64592722 | W85: 13.5401305 | X85: -0.7854113919 | Y85: 0.2834645669 | Z85: 11.01458861 | AA85: 435.3883586 | AB85: 1.837440033 | AC85: No Good
A86: W14X43 | B86: 1.679754488 | C86: 12.6 | D86: 0.305 | E86: 0.53 | F86: 8 | G86: 7.54 | H86: 37.4 | I86: 5.82 | J86: 1.89 | K86: 61.8556701 | L86: 38.0952381 | M86: 61.8556701 | N86: 74.8063924 | O86: 37.79841873 | P86: 1.322806659 | Q86: 0.4860949797 | R86: 355.1435217 | S86: 4 | T86: 0 | U86: 0.9061981072 | V86: 78.98960128 | W86: 11.407 | X86: 0 | Y86: 0.3092783505 | Z86: 12.6 | AA86: 476.260076 | AB86: 1.679754488 | AC86: No Good
A87: W21X44 | B87: 1.72619375 | C87: 13 | D87: 0.35 | E87: 0.45 | F87: 6.5 | G87: 7.22 | H87: 53.6 | I87: 8.06 | J87: 1.26 | K87: 44.66501241 | L87: 57.14285714 | M87: 57.14285714 | N87: 87.65442409 | O87: 39.38057742 | P87: 1.269661424 | Q87: 0.4751067618 | R87: 387.3220248 | S87: 3.25 | T87: 0 | U87: 1.325624622 | V87: 38.4577212 | W87: 15.24121611 | X87: -1.231574362 | Y87: 0.2857142857 | Z87: 11.76842564 | AA87: 463.4473969 | AB87: 1.72619375 | AC87: No Good
A88: W12X45 | B88: 1.745878692 | C88: 13.1 | D88: 0.335 | E88: 0.575 | F88: 8.05 | G88: 7 | H88: 29.6 | I88: 5.15 | J88: 1.95 | K88: 69.90291262 | L88: 36.92307692 | M88: 69.90291262 | N88: 58.57431249 | O88: 34.97877748 | P88: 1.429438179 | Q88: 0.4341235317 | R88: 412.05056 | S88: 4.025 | T88: 0 | U88: 0.6899359214 | V88: 126.1042443 | W88: 9.916 | X88: 0 | Y88: 0.3495145631 | Z88: 13.1 | AA88: 458.221985 | AB88: 1.745878692 | AC88: No Good
A89: W10X45 | B89: 1.99887297 | C89: 13.3 | D89: 0.35 | E89: 0.62 | F89: 8.02 | G89: 6.47 | H89: 22.5 | I89: 4.32 | J89: 2.01 | K89: 83.33333333 | L89: 35.82089552 | M89: 83.33333333 | N89: 41.21546798 | O89: 30.09214534 | P89: 1.661563157 | Q89: 0.3721721146 | R89: 482.3230614 | S89: 4.01 | T89: 0 | U89: 0.4864338915 | V89: 218.2469031 | W89: 7.875 | X89: 0 | Y89: 0.4166666667 | Z89: 13.3 | AA89: 400.225533 | AB89: 1.99887297 | AC89: No Good
A90: W16X45 | B90: 1.500781858 | C90: 13.3 | D90: 0.345 | E90: 0.565 | F90: 7.04 | G90: 6.23 | H90: 41.1 | I90: 6.65 | J90: 1.57 | K90: 54.13533835 | L90: 45.85987261 | M90: 54.13533835 | N90: 97.66434289 | O90: 40.35611713 | P90: 1.238969543 | Q90: 0.4150072729 | R90: 520.2001767 | S90: 3.52 | T90: 0 | U90: 1.028990207 | V90: 65.40779103 | W90: 13.91512376 | X90: -0.09120980391 | Y90: 0.2706766917 | Z90: 13.2087902 | AA90: 533.0554844 | AB90: 1.500781858 | AC90: No Good
A91: W18X46 | B91: 1.534332892 | C91: 13.5 | D91: 0.36 | E91: 0.605 | F91: 6.06 | G91: 5.01 | H91: 44.6 | I91: 7.25 | J91: 1.29 | K91: 49.65517241 | L91: 55.81395349 | M91: 55.81395349 | N91: 91.878135 | O91: 39.81518115 | P91: 1.255802399 | Q91: 0.3314935235 | R91: 804.3982869 | S91: 3.03 | T91: 0 | U91: 1.109108259 | V91: 55.54480016 | W91: 14.93235629 | X91: -0.4045117343 | Y91: 0.2790697674 | Z91: 13.09548827 | AA91: 521.3992376 | AB91: 1.534332892 | AC91: No Good
A92: W14X48 | B92: 1.496767419 | C92: 14.1 | D92: 0.34 | E92: 0.595 | F92: 8.03 | G92: 6.75 | H92: 33.6 | I92: 5.85 | J92: 1.91 | K92: 61.53846154 | L92: 37.69633508 | M92: 61.53846154 | N92: 75.57957995 | O92: 37.90675019 | P92: 1.319026288 | Q92: 0.4357877555 | R92: 443.1380508 | S92: 4.015 | T92: 0 | U92: 0.8152903213 | V92: 97.8666159 | W92: 11.424 | X92: 0 | Y92: 0.3076923077 | Z92: 14.1 | AA92: 534.4851777 | AB92: 1.496767419 | AC92: No Good
A93: W21X48 | B93: 1.452709671 | C93: 14.1 | D93: 0.35 | E93: 0.43 | F93: 8.14 | G93: 9.47 | H93: 53.6 | I93: 8.24 | J93: 1.66 | K93: 43.68932039 | L93: 43.37349398 | M93: 43.68932039 | N93: 149.95024 | O93: 43.48690791 | P93: 1.149771331 | Q93: 0.6548505813 | R93: 225.1368735 | S93: 4.07 | T93: 0 | U93: 1.393024603 | V93: 38.4577212 | W93: 14.65562063 | X93: -1.436532779 | Y93: 0.2184466019 | Z93: 12.66346722 | AA93: 550.6950328 | AB93: 1.452709671 | AC93: No Good
A94: W8X48 | B94: 2.347947208 | C94: 14.1 | D94: 0.4 | E94: 0.685 | F94: 8.11 | G94: 5.92 | H94: 15.9 | I94: 3.61 | J94: 2.08 | K94: 99.72299169 | L94: 34.61538462 | M94: 99.72299169 | N94: 28.7810839 | O94: 24.16476336 | P94: 2.069128477 | Q94: 0.3051588391 | R94: 576.1070307 | S94: 4.055 | T94: 0 | U94: 0.3080371739 | V94: 437.0376753 | W94: 6.36 | X94: 0 | Y94: 0.4986149584 | Z94: 14.1 | AA94: 340.7231634 | AB94: 2.347947208 | AC94: No Good
A95: W10X49 | B95: 1.833340873 | C95: 14.4 | D95: 0.34 | E95: 0.56 | F95: 10 | G95: 8.93 | H95: 23.1 | I95: 4.35 | J95: 2.54 | K95: 82.75862069 | L95: 28.34645669 | M95: 82.75862069 | N95: 41.78989266 | O95: 30.30290569 | P95: 1.650006785 | Q95: 0.5154737688 | R95: 253.1883223 | S95: 5 | T95: 0 | U95: 0.5011512866 | V95: 207.0566419 | W95: 7.854 | X95: 0 | Y95: 0.4137931034 | Z95: 14.4 | AA95: 436.3618419 | AB95: 1.833340873 | AC95: No Good
A96: W12X50 | B96: 1.560056857 | C96: 14.6 | D96: 0.37 | E96: 0.64 | F96: 8.08 | G96: 6.31 | H96: 26.8 | I96: 5.18 | J96: 1.96 | K96: 69.4980695 | L96: 36.73469388 | M96: 69.4980695 | N96: 59.2587193 | O96: 35.12341253 | P96: 1.423551882 | Q96: 0.3921395856 | R96: 507.0932974 | S96: 4.04 | T96: 0 | U96: 0.6259618695 | V96: 153.8308848 | W96: 9.916 | X96: 0 | Y96: 0.3474903475 | Z96: 14.6 | AA96: 512.8018229 | AB96: 1.560056857 | AC96: No Good
A97: W16X50 | B97: 1.345951099 | C97: 14.7 | D97: 0.38 | E97: 0.63 | F97: 7.07 | G97: 5.61 | H97: 37.4 | I97: 6.68 | J97: 1.59 | K97: 53.89221557 | L97: 45.28301887 | M97: 53.89221557 | N97: 98.54751256 | O97: 40.43368942 | P97: 1.236592572 | Q97: 0.3740653842 | R97: 641.5357552 | S97: 3.535 | T97: 0 | U97: 0.9372555489 | V97: 78.98960128 | W97: 14.212 | X97: 0 | Y97: 0.2694610778 | Z97: 14.7 | AA97: 594.3752345 | AB97: 1.345951099 | AC97: No Good
A98: W18X50 | B98: 1.345955847 | C98: 14.7 | D98: 0.355 | E98: 0.57 | F98: 7.5 | G98: 6.57 | H98: 45.2 | I98: 7.38 | J98: 1.65 | K98: 48.7804878 | L98: 43.63636364 | M98: 48.7804878 | N98: 120.2833362 | O98: 42.01546773 | P98: 1.190037924 | Q98: 0.4465632141 | R98: 467.7522116 | S98: 3.75 | T98: 0 | U98: 1.154669698 | V98: 54.07994689 | W98: 14.48693381 | X98: -0.5534684979 | Y98: 0.243902439 | Z98: 14.1465315 | AA98: 594.3731378 | AB98: 1.345955847 | AC98: No Good
A99: W21X50 | B99: 1.460972152 | C99: 14.7 | D99: 0.38 | E99: 0.535 | F99: 6.53 | G99: 6.1 | H99: 49.4 | I99: 8.18 | J99: 1.3 | K99: 44.00977995 | L99: 55.38461538 | M99: 55.38461538 | N99: 93.3081234 | O99: 39.95440881 | P99: 1.25142635 | Q99: 0.4043199432 | R99: 542.6089073 | S99: 3.265 | T99: 0 | U99: 1.23062019 | V99: 45.27508019 | W99: 16.15393607 | X99: -0.994864292 | Y99: 0.2769230769 | Z99: 13.70513571 | AA99: 547.5805949 | AB99: 1.460972152 | AC99: No Good
A100: W12X53 | B100: 1.450274244 | C100: 15.6 | D100: 0.345 | E100: 0.575 | F100: 10 | G100: 8.69 | H100: 28.1 | I100: 5.23 | J100: 2.48 | K100: 68.83365201 | L100: 29.03225806 | M100: 68.83365201 | N100: 60.40823121 | O100: 35.3602441 | P100: 1.414017388 | Q100: 0.5418640987 | R100: 267.3665277 | S100: 5 | T100: 0 | U100: 0.6585347238 | V100: 139.9266659 | W100: 9.6945 | X100: 0 | Y100: 0.34416826 | Z100: 15.6 | AA100: 551.619808 | AB100: 1.450274244 | AC100: No Good
A101: W14X53 | B101: 1.347786363 | C101: 15.6 | D101: 0.37 | E101: 0.66 | F101: 8.06 | G101: 6.11 | H101: 30.9 | I101: 5.89 | J101: 1.92 | K101: 61.12054329 | L101: 37.5 | M101: 61.12054329 | N101: 76.61668042 | O101: 38.04909494 | P101: 1.314091704 | Q101: 0.3952085664 | R101: 540.8342268 | S101: 4.03 | T101: 0 | U101: 0.7511823541 | V101: 115.7167339 | W101: 11.433 | X101: 0 | Y101: 0.3056027165 | Z101: 15.6 | AA101: 593.565881 | AB101: 1.347786363 | AC101: No Good
A102: W10X54 | B102: 1.663268893 | C102: 15.8 | D102: 0.37 | E102: 0.615 | F102: 10 | G102: 8.15 | H102: 21.2 | I102: 4.37 | J102: 2.56 | K102: =12*F$9/I102 -> 82.3798627 | L102: =12*F$10/J102 -> 28.125 | M102: =MAX(K102:L102) -> 82.3798627 | N102: =+(PI()^2)*29000/(M102^2) -> 42.17505093 | O102: =IF(M102<=D$22,C$10*0.658^(C$10/N102),0.877*N102) -> 30.44180746 | P102: =+C$10/O102 -> 1.642478032 | Q102: =+G102/(D$25*SQRT(P102)) -> 0.4715261687 | R102: =+C$10*(D$31*D$25/G102)^2 -> 303.9704534 | S102: 5 | T102: =-4*(F102/2-S102)*E102 -> 0 | U102: =+H102/(D$26*SQRT(P102)) -> 0.4609839565 | V102: =+C$10*(D$30*D$26/H102)^2 -> 245.8336924 | W102: =IF(H102<=D$26*SQRT(P102),1,(1-C$30*SQRT(V102/O102))*SQRT(V102/O102))*(H102*D102) -> 7.844 | X102: =-(H102*D102-W102)*D102 -> 0 | Y102: =+M102/C$12 -> 0.4118993135 | Z102: =+C102+T102+X102 -> 15.8 | AA102: 480.9805579 | AB102: =C$9/AA102 -> 1.663268893 | AC102: No Good
A103: W18X55 | B103: 1.188833167 | C103: 16.2 | D103: 0.39 | E103: 0.63 | F103: 7.53 | G103: 5.98 | H103: 41.1 | I103: 7.41 | J103: 1.67 | K103: 48.58299595 | L103: 43.11377246 | M103: 48.58299595 | N103: 121.2632372 | O103: 42.07458029 | P103: 1.188365984 | Q103: 0.4067467151 | R103: 564.6043512 | S103: =IF(G103<=D$25*SQRT(P103),1,(1-J97*SQRT(R103/O103))*SQRT(R103/O103))*(F103/2) -> 3.765 | T103: 0 | U103: 1.050670287 | V103: 65.40779103 | W103: 15.50005737 | X103: -0.2062876272 | Y103: 0.2429149798 | Z103: 15.99371237 | AA103: =+O103*Z103 -> 672.9287354 | AB103: 1.188833167 | AC103: =IF(AB103<=1,"Good", IF(AB103<=1.03,"Close","No Good")) -> No Good
A104: W21X55 | B104: =AB104 -> 1.223333519 | C104: 16.2 | D104: 0.375 | E104: 0.522 | F104: 8.22 | G104: 7.87 | H104: 50 | I104: 8.4 | J104: 1.73 | K104: 42.85714286 | L104: 41.61849711 | M104: 42.85714286 | N104: 155.8300873 | O104: 43.71651633 | P104: 1.143732488 | Q104: 0.5456453767 | R104: 325.9846302 | S104: 4.11 | T104: 0 | U104: 1.302889279 | V104: 44.19499788 | W104: 15.44039134 | X104: -1.241103246 | Y104: 0.2142857143 | Z104: 14.95889675 | AA104: 653.9508542 | AB104: 1.223333519 | AC104: No Good
A105: W24X55 | B105: 1.3695766 | C105: 16.2 | D105: 0.395 | E105: 0.505 | F105: 7.01 | G105: 6.94 | H105: 54.6 | I105: 9.11 | J105: 1.34 | K105: 39.51701427 | L105: 53.73134328 | M105: 53.73134328 | N105: 99.13850081 | O105: 40.48490792 | P105: 1.235028127 | Q105: 0.4630405469 | R105: 419.2061524 | S105: 3.505 | T105: 0 | U105: 1.369159213 | V105: 37.06191371 | W105: 17.08129161 | X105: -1.771854814 | Y105: 0.2686567164 | Z105: 14.42814519 | AA105: 584.1221293 | AB105: 1.3695766 | AC105: No Good
A106: W21X57 | B106: 1.236889041 | C106: 16.7 | D106: 0.405 | E106: 0.65 | F106: 6.56 | G106: 5.04 | H106: 46.3 | I106: 8.36 | J106: 1.35 | K106: 43.06220096 | L106: 53.33333333 | M106: 53.33333333 | N106: 100.6237011 | O106: 40.61124476 | P106: 1.231186099 | Q106: 0.3367957954 | R106: 794.8506173 | S106: 3.28 | T106: 0 | U106: 1.162837086 | V106: 51.54079866 | W106: 16.84095324 | X106: -0.7737714387 | Y106: 0.2666666667 | Z106: 15.92622856 | AA106: 646.7839662 | AB106: 1.236889041 | AC106: No Good
A107: W16X57 | B107: 1.174742459 | C107: 16.8 | D107: 0.43 | E107: 0.715 | F107: 7.12 | G107: 4.98 | H107: 33 | I107: 6.72 | J107: 1.6 | K107: 53.57142857 | L107: 45 | M107: 53.57142857 | N107: 99.73125585 | O107: 40.53573381 | P107: 1.233479582 | Q107: 0.3324767928 | R107: 814.1190239 | S107: 3.56 | T107: 0 | U107: 0.8280330894 | V107: 101.4577545 | W107: 14.19 | X107: 0 | Y107: 0.2678571429 | Z107: 16.8 | AA107: 681.0003279 | AB107: 1.174742459 | AC107: No Good
A108: W12X58 | B108: 1.322177558 | C108: 17 | D108: 0.36 | E108: 0.64 | F108: 10 | G108: 7.82 | H108: 27 | I108: 5.28 | J108: 2.51 | K108: 68.18181818 | L108: 28.68525896 | M108: 68.18181818 | N108: 61.5687855 | O108: 35.59190915 | P108: 1.404813656 | Q108: 0.4892100487 | R108: 330.1665583 | S108: 5 | T108: 0 | U108: 0.6348251718 | V108: 151.5603494 | W108: 9.72 | X108: 0 | Y108: 0.3409090909 | Z108: 17 | AA108: 605.0624555 | AB108: 1.322177558 | AC108: No Good
A109: W8X58 | B109: 1.905583073 | C109: 17.1 | D109: 0.51 | E109: 0.81 | F109: 8.22 | G109: 5.07 | H109: 12.4 | I109: 3.65 | J109: 2.1 | K109: 98.63013699 | L109: 34.28571429 | M109: 98.63013699 | N109: 29.42242542 | O109: 24.55081932 | P109: 2.03659191 | Q109: 0.2634231438 | R109: 785.471931 | S109: 4.11 | T109: 0 | U109: 0.2421416028 | V109: 718.5711153 | W109: 6.324 | X109: 0 | Y109: 0.4931506849 | Z109: 17.1 | AA109: 419.8190104 | AB109: 1.905583073 | AC109: No Good
A110: W10X60 | B110: 1.486441451 | C110: 17.6 | D110: 0.42 | E110: 0.68 | F110: 10.1 | G110: 7.41 | H110: 18.7 | I110: 4.39 | J110: 2.57 | K110: 82.00455581 | L110: 28.0155642 | M110: 82.00455581 | N110: 42.56197598 | O110: 30.57943885 | P110: 1.635085596 | Q110: 0.42968079 | R110: 367.7140065 | S110: 5.05 | T110: 0 | U110: 0.4075408013 | V110: 315.9584051 | W110: 7.854 | X110: 0 | Y110: 0.410022779 | Z110: 17.6 | AA110: 538.1981238 | AB110: 1.486441451 | AC110: No Good
A111: W18X60 | B111: 1.077353787 | C111: 17.6 | D111: 0.415 | E111: 0.695 | F111: 7.56 | G111: 5.44 | H111: 38.7 | I111: 7.47 | J111: 1.68 | K111: 48.19277108 | L111: 42.85714286 | M111: 48.19277108 | N111: 123.2349648 | O111: 42.19091815 | P111: 1.185089166 | Q111: 0.3705282813 | R111: 682.2582396 | S111: 3.78 | T111: 0 | U111: 0.9906840842 | V111: 73.77193858 | W111: 16.0605 | X111: 0 | Y111: 0.2409638554 | Z111: 17.6 | AA111: 742.5601594 | AB111: 1.077353787 | AC111: No Good
A112: W14X61 | B112: 1.165061423 | C112: 17.9 | D112: 0.375 | E112: 0.645 | F112: 10 | G112: 7.75 | H112: 30.4 | I112: 5.98 | J112: 2.45 | K112: 60.2006689 | L112: 29.3877551 | M112: 60.2006689 | N112: 78.97599564 | O112: 38.36084222 | P112: 1.303412467 | Q112: 0.5033368691 | R112: 336.157793 | S112: 5 | T112: 0 | U112: 0.7420486564 | V112: 119.5545086 | W112: 11.4 | X112: 0 | Y112: 0.3010033445 | Z112: 17.9 | AA112: 686.6590758 | AB112: 1.165061423 | AC112: No Good
A113: W24X62 | B113: 1.165828118 | C113: 18.2 | D113: 0.43 | E113: 0.59 | F113: 7.04 | G113: 5.97 | H113: 50.1 | I113: 9.23 | J113: 1.38 | K113: 39.00325027 | L113: 52.17391304 | M113: 52.17391304 | N113: 105.1455563 | O113: 40.97611053 | P113: 1.220223183 | Q113: 0.4007307521 | R113: 566.4974072 | S113: 3.52 | T113: 0 | U113: 1.263914874 | V113: 44.01874681 | W113: 18.16282798 | X113: -1.453473967 | Y113: 0.2608695652 | Z113: 16.74652603 | AA113: 686.2075016 | AB113: 1.165828118 | AC113: No Good
A114: W21X62 | B114: 1.054586305 | C114: 18.3 | D114: 0.4 | E114: 0.615 | F114: 8.24 | G114: 6.7 | H114: 46.9 | I114: 8.54 | J114: 1.77 | K114: 42.15456674 | L114: 40.6779661 | M114: 42.15456674 | N114: 161.0677096 | O114: 43.90784775 | P114: 1.138748597 | Q114: 0.4655419824 | R114: 449.7767307 | S114: 4.12 | T114: 0 | U114: 1.224781591 | V114: 50.23049299 | W114: 16.20223911 | X114: -1.023104356 | Y114: 0.2107728337 | Z114: 17.27689564 | AA114: 758.5913035 | AB114: 1.054586305 | AC114: No Good
A115: W12X65 | B115: 1.176807251 | C115: 19.1 | D115: 0.39 | E115: 0.605 | F115: 12 | G115: 9.92 | H115: 24.9 | I115: 5.28 | J115: 3.02 | K115: 68.18181818 | L115: 23.8410596 | M115: 68.18181818 | N115: 61.5687855 | O115: 35.59190915 | P115: 1.404813656 | Q115: 0.6205835912 | R115: 205.1744342 | S115: 6 | T115: 0 | U115: 0.5854498807 | V115: 178.2027624 | W115: 9.711 | X115: 0 | Y115: 0.3409090909 | Z115: 19.1 | AA115: 679.8054647 | AB115: 1.176807251 | AC115: No Good
A116: W18X65 | B116: 0.9918461346 | C116: 19.1 | D116: 0.45 | E116: 0.75 | F116: 7.59 | G116: 5.06 | H116: 35.7 | I116: 7.49 | J116: 1.69 | K116: 48.06408545 | L116: 42.6035503 | M116: 48.06408545 | N116: 123.8957409 | O116: 42.22914754 | P116: 1.184016323 | Q116: 0.3448018983 | R116: 788.579631 | S116: 3.795 | T116: 0 | U116: 0.9143008132 | V116: 86.69153519 | W116: 16.065 | X116: 0 | Y116: 0.2403204272 | Z116: 19.1 | AA116: 806.576718 | AB116: 0.9918461346 | AC116: Good
A117: W16X67 | B117: 0.9876637627 | C117: 19.7 | D117: 0.395 | E117: 0.665 | F117: 10.2 | G117: 7.7 | H117: 35.9 | I117: 6.96 | J117: 2.46 | K117: 51.72413793 | L117: 29.26829268 | M117: 51.72413793 | N117: 106.9821252 | O117: 41.11635821 | P117: 1.216061008 | Q117: 0.5177391659 | R117: 340.5376529 | S117: 5.1 | T117: 0 | U117: 0.9072281174 | V117: 85.72830339 | W117: 14.1805 | X117: 0 | Y117: 0.2586206897 | Z117: 19.7 | AA117: 809.9922567 | AB117: 0.9876637627 | AC117: Good
A118: W8X67 | B118: 1.610800404 | C118: 19.7 | D118: 0.57 | E118: 0.935 | F118: 8.28 | G118: 4.43 | H118: 11.1 | I118: 3.72 | J118: 2.12 | K118: 96.77419355 | L118: 33.96226415 | M118: 96.77419355 | N118: 30.56177834 | O118: 25.2105332 | P118: 1.983297997 | Q118: 0.2332425151 | R118: 1028.819379 | S118: 4.14 | T118: 0 | U118: 0.2196487454 | V118: 896.7412928 | W118: 6.327 | X118: 0 | Y118: 0.4838709677 | Z118: 19.7 | AA118: 496.6475041 | AB118: 1.610800404 | AC118: No Good
A119: W10X68 | B119: 1.293743228 | C119: 20 | D119: 0.47 | E119: 0.77 | F119: 10.1 | G119: 6.58 | H119: 16.7 | I119: 4.44 | J119: 2.59 | K119: 81.08108108 | L119: 27.7992278 | M119: 81.08108108 | N119: 43.53701826 | O119: 30.91803624 | P119: 1.617179035 | Q119: 0.3836584948 | R119: 466.3315527 | S119: 5.05 | T119: 0 | U119: 0.3659629795 | V119: 396.1687213 | W119: 7.849 | X119: 0 | Y119: 0.4054054054 | Z119: 20 | AA119: 618.3607247 | AB119: 1.293743228 | AC119: No Good
A120: W14X68 | B120: 1.039981997 | C120: 20 | D120: 0.415 | E120: 0.72 | F120: 10 | G120: 6.97 | H120: 27.5 | I120: 6.01 | J120: 2.46 | K120: 59.90016639 | L120: 29.26829268 | M120: 59.90016639 | N120: 79.77038457 | O120: 38.46220427 | P120: 1.299977496 | Q120: 0.4532761174 | R120: 415.6052572 | S120: 5 | T120: 0 | U120: 0.6721473821 | V120: 146.0991665 | W120: 11.4125 | X120: 0 | Y120: 0.2995008319 | Z120: 20 | AA120: 769.2440854 | AB120: 1.039981997 | AC120: No Good
A121: W21X68 | B121: 0.9429332261 | C121: 20 | D121: 0.43 | E121: 0.685 | F121: 8.27 | G121: 6.04 | H121: 43.6 | I121: 8.6 | J121: 1.8 | K121: 41.86046512 | L121: 40 | M121: 41.86046512 | N121: 163.3389067 | O121: 43.98724563 | P121: 1.136693132 | Q121: 0.4200619043 | R121: 553.4427613 | S121: 4.135 | T121: 0 | U121: 1.139631923 | V121: 58.12194612 | W121: 17.0916781 | X121: -0.7122184188 | Y121: 0.2093023256 | Z121: 19.28778158 | AA121: 848.4163861 | AB121: 0.9429332261 | AC121: Good
A122: W24X68 | B122: 0.9785345298 | C122: 20.1 | D122: 0.415 | E122: 0.585 | F122: 8.97 | G122: 7.66 | H122: 52 | I122: 9.55 | J122: 1.87 | K122: 37.69633508 | L122: 38.5026738 | M122: 38.5026738 | N122: 193.0705188 | O122: 44.86373918 | P122: 1.114485794 | Q122: 0.5380089213 | R122: 344.1034679 | S122: 4.485 | T122: 0 | U122: 1.37266895 | V122: 40.86075987 | W122: 17.0569557 | X122: -1.877063386 | Y122: 0.192513369 | Z122: 18.22293661 | AA122: 817.5490753 | AB122: 0.9785345298 | AC122: Good
A123: W18X71 | B123: 0.9103719067 | C123: 20.8 | D123: 0.495 | E123: 0.81 | F123: 7.64 | G123: 4.71 | H123: 32.4 | I123: 7.5 | J123: 1.7 | K123: 48 | L123: 42.35294118 | M123: 48 | N123: 124.2267915 | O123: 42.24816053 | P123: 1.183483479 | Q123: 0.3210242082 | R123: 910.1328176 | S123: 3.82 | T123: 0 | U123: 0.8299723898 | V123: 105.2502426 | W123: 16.038 | X123: 0 | Y123: 0.24 | Z123: 20.8 | AA123: 878.7617391 | AB123: 0.9103719067 | AC123: Good
A124: W12X72 | B124: 1.061189517 | C124: 21.1 | D124: 0.43 | E124: 0.67 | F124: 12 | G124: 8.99 | H124: 22.6 | I124: 5.31 | J124: 3.04 | K124: 67.79661017 | L124: 23.68421053 | M124: 67.79661017 | N124: 62.27041842 | O124: 35.72848329 | P124: 1.399443676 | Q124: 0.5634818814 | R124: 249.8200007 | S124: 6 | T124: 0 | U124: 0.5323907019 | V124: 216.3197876 | W124: 9.718 | X124: 0 | Y124: 0.3389830508 | Z124: 21.1 | AA124: 753.8709975 | AB124: 1.061189517 | AC124: No Good
A125: W21X73 | B125: 0.8621164086 | C125: 21.5 | D125: 0.455 | E125: 0.74 | F125: 8.3 | G125: 5.6 | H125: 41.2 | I125: 8.64 | J125: 1.81 | K125: 41.66666667 | L125: 39.77900552 | M125: 41.66666667 | N125: 164.8618719 | O125: 44.0393389 | P125: 1.13534856 | Q125: 0.3896919159 | R125: 643.829 | S125: 4.15 | T125: 0 | U125: 1.077537378 | V125: 65.09066282 | W125: 17.8029443 | X125: -0.4290903454 | Y125: 0.2083333333 | Z125: 21.07090965 | AA125: 927.9489313 | AB125: 0.8621164086 | AC125: Good
A126: W14X74 | B126: 0.9516348132 | C126: 21.8 | D126: 0.45 | E126: 0.785 | F126: 10.1 | G126: 6.41 | H126: 25.4 | I126: 6.04 | J126: 2.48 | K126: 59.60264901 | L126: 29.03225806 | M126: 59.60264901 | N126: 80.56874875 | O126: 38.56232159 | P126: 1.296602433 | Q126: 0.4174001393 | R126: 491.3947698 | S126: 5.05 | T126: 0 | U126: 0.6216272373 | V126: 171.2559593 | W126: 11.43 | X126: 0 | Y126: 0.298013245 | Z126: 21.8 | AA126: 840.6586108 | AB126: 0.9516348132 | AC126: Good
A127: W18X76 | B127: 0.8407915233 | C127: 22.3 | D127: 0.425 | E127: 0.68 | F127: 11 | G127: 8.11 | H127: 37.8 | I127: 7.73 | J127: 2.61 | K127: 46.57179819 | L127: 27.5862069 | M127: 46.57179819 | N127: 131.9628631 | O127: 42.66746092 | P127: 1.171853186 | Q127: 0.5554976525 | R127: 306.9763234 | S127: 5.5 | T127: 0 | U127: 0.9730943079 | V127: 77.32670886 | W127: 16.065 | X127: 0 | Y127: 0.2328589909 | Z127: 22.3 | AA127: 951.4843785 | AB127: 0.8407915233 | AC127: Good
A128: W24X76 | B128: 0.8544751127 | C128: 22.4 | D128: 0.44 | E128: 0.68 | F128: 8.99 | G128: 6.61 | H128: 49 | I128: 9.69 | J128: 1.92 | K128: 37.15170279 | L128: 37.5 | M128: 37.5 | N128: 203.5331752 | O128: 45.11441617 | P128: 1.108293185 | Q128: 0.4655561888 | R128: 462.1081944 | S128: 4.495 | T128: 0 | U128: 1.297085139 | V128: 46.01728225 | W128: 17.81620364 | X128: -1.647270398 | Y128: 0.1875 | Z128: 20.7527296 | AA128: 936.2472799 | AB128: 0.8544751127 | AC128: Good
A129: W10X77 | B129: 1.13278146 | C129: 22.6 | D129: 0.53 | E129: 0.87 | F129: 10.2 | G129: 5.86 | H129: 14.8 | I129: 4.49 | J129: 2.6 | K129: 80.17817372 | L129: 27.69230769 | M129: 80.17817372 | N129: 44.52310292 | O129: 31.248949 | P129: 1.600053813 | Q129: 0.3435012309 | R129: 587.9648406 | S129: 5.1 | T129: 0 | U129: 0.326057471 | V129: 504.4169772 | W129: 7.844 | X129: 0 | Y129: 0.4008908686 | Z129: 22.6 | AA129: 706.2262474 | AB129: 1.13278146 | AC129: No Good
A130: W16X77 | B130: 0.8590110737 | C130: 22.6 | D130: 0.455 | E130: 0.76 | F130: 10.3 | G130: 6.77 | H130: 31.2 | I130: 7 | J130: 2.47 | K130: 51.42857143 | L130: 29.14979757 | M130: 51.42857143 | N130: 108.2153384 | O130: 41.20811846 | P130: 1.213353142 | Q130: 0.4557146974 | R130: 440.5236727 | S130: 5.15 | T130: 0 | U130: 0.789333835 | V130: 113.5021108 | W130: 14.196 | X130: 0 | Y130: 0.2571428571 | Z130: 22.6 | AA130: 931.3034773 | AB130: 0.8590110737 | AC130: Good
A131: W12X79 | B131: 0.9615061794 | C131: 23.2 | D131: 0.47 | E131: 0.735 | F131: 12.1 | G131: 8.22 | H131: 20.7 | I131: 5.34 | J131: 3.05 | K131: 67.41573034 | L131: 23.60655738 | M131: 67.41573034 | N131: 62.97602659 | O131: 35.86327302 | P131: 1.39418396 | Q131: 0.5161901972 | R131: 298.8153847 | S131: 6.05 | T131: 0 | U131: 0.4885511493 | V131: 257.8531464 | W131: 9.729 | X131: 0 | Y131: 0.3370786517 | Z131: 23.2 | AA131: 832.027934 | AB131: 0.9615061794 | AC131: Good
A132: W14X82 | B132: 0.8636603187 | C132: 24 | D132: 0.51 | E132: 0.855 | F132: 10.1 | G132: 5.92 | H132: 22.4 | I132: 6.05 | J132: 2.48 | K132: 59.50413223 | L132: 29.03225806 | M132: 59.50413223 | N132: 80.83575353 | O132: 38.59542069 | P132: 1.295490478 | Q132: 0.3856582004 | R132: 576.1070307 | S132: 5.05 | T132: 0 | U132: 0.5484419174 | V132: 220.1998858 | W132: 11.424 | X132: 0 | Y132: 0.2975206612 | Z132: 24 | AA132: 926.2900966 | AB132: 0.8636603187 | AC132: Good
A133: W21X83 | B133: 0.7468993225 | C133: 24.3 | D133: 0.515 | E133: 0.835 | F133: 8.36 | G133: 5 | H133: 36.4 | I133: 8.67 | J133: 1.83 | K133: 41.52249135 | L133: 39.3442623 | M133: 41.52249135 | N133: 166.0087337 | O133: 44.07797639 | P133: 1.134353346 | Q133: 0.3480918077 | R133: 807.6190976 | S133: 4.18 | T133: 0 | U133: 0.9524165649 | V133: 83.38930586 | W133: 18.746 | X133: 0 | Y133: 0.2076124567 | Z133: 24.3 | AA133: 1071.094826 | AB133: 0.7468993225 | AC133: Good
A134: W24X84 | B134: 0.7567087766 | C134: 24.7 | D134: 0.47 | E134: 0.77 | F134: 9.02 | G134: 5.86 | H134: 45.9 | I134: 9.79 | J134: 1.95 | K134: 36.77221655 | L134: 36.92307692 | M134: 36.92307692 | N134: 209.9432776 | O134: 45.25627054 | P134: 1.104819275 | Q134: 0.4133804856 | R134: 587.9648406 | S134: 4.51 | T134: 0 | U134: 1.216933367 | V134: 52.44302746 | W134: 18.72303661 | X134: -1.339482792 | Y134: 0.1846153846 | Z134: 23.36051721 | AA134: 1057.209887 | AB134: 0.7567087766 | AC134: Good
A135: W27X84 | B135: 0.7838274798 | C135: 24.8 | D135: 0.46 | E135: 0.64 | F135: 10 | G135: 7.78 | H135: 52.7 | I135: 10.7 | J135: 2.07 | K135: 33.64485981 | L135: 34.7826087 | M135: 34.7826087 | N135: 236.5775017 | O135: 45.76701102 | P135: 1.092489959 | Q135: 0.551910741 | R135: 333.5703148 | S135: 5 | T135: 0 | U135: 1.405081847 | V135: 39.78248389 | W135: 18.80856681 | X135: -2.499379269 | Y135: 0.1739130435 | Z135: 22.30062073 | AA135: 1020.632755 | AB135: 0.7838274798 | AC135: Good
A136: W18X86 | B136: 0.7398869587 | C136: 25.3 | D136: 0.48 | E136: 0.77 | F136: 11.1 | G136: 7.2 | H136: 33.4 | I136: 7.77 | J136: 2.63 | K136: 46.33204633 | L136: 27.37642586 | M136: 46.33204633 | N136: 133.3321184 | O136: 42.73700595 | P136: 1.169946253 | Q136: 0.4935685935 | R136: 389.4768025 | S136: 5.55 | T136: 0 | U136: 0.8605245128 | V136: 99.04218033 | W136: 16.032 | X136: 0 | Y136: 0.2316602317 | Z136: 25.3 | AA136: 1081.246251 | AB136: 0.7398869587 | AC136: Good
A137: W12X87 | B137: 0.8670857592 | C137: 25.6 | D137: 0.515 | E137: 0.81 | F137: 12.1 | G137: 7.48 | H137: 18.9 | I137: 5.38 | J137: 3.07 | K137: 66.91449814 | L137: 23.45276873 | M137: 66.91449814 | N137: 63.92302123 | O137: 36.04026438 | P137: 1.387337215 | Q137: 0.470878169 | R137: 360.8638623 | S137: 6.05 | T137: 0 | U137: 0.4471677978 | V137: 309.3068354 | W137: 9.7335 | X137: 0 | Y137: 0.3345724907 | Z137: 25.6 | AA137: 922.630768 | AB137: 0.8670857592 | AC137: Good
A138: W10X88 | B138: 0.9783251332 | C138: 25.9 | D138: 0.605 | E138: 0.99 | F138: 10.3 | G138: 5.18 | H138: 13 | I138: 4.54 | J138: 2.63 | K138: 79.29515419 | L138: 27.37642586 | M138: 79.29515419 | N138: 45.52022997 | O138: 31.57235753 | P138: 1.583663809 | Q138: 0.3052082297 | R138: 752.4663258 | S138: 5.15 | T138: 0 | U138: 0.2878800643 | V138: 653.7721579 | W138: 7.865 | X138: 0 | Y138: 0.3964757709 | Z138: 25.9 | AA138: 817.72406 | AB138: 0.9783251332 | AC138: Good
A139: W16X89 | B139: 0.7389564202 | C139: 26.2 | D139: 0.525 | E139: 0.875 | F139: 10.4 | G139: 5.92 | H139: 27 | I139: 7.05 | J139: 2.49 | K139: 51.06382979 | L139: 28.91566265 | M139: 51.06382979 | N139: 109.766793 | O139: 41.3209092 | P139: 1.210041138 | Q139: 0.399042925 | R139: 576.1070307 | S139: 5.2 | T139: 0 | U139: 0.6840115439 | V139: 151.5603494 | W139: 14.175 | X139: 0 | Y139: 0.2553191489 | Z139: 26.2 | AA139: 1082.607821 | AB139: 0.7389564202 | AC139: Good
A140: W30X90 | B140: 0.7628204286 | C140: 26.4 | D140: 0.47 | E140: 0.61 | F140: 10.4 | G140: 8.52 | H140: 57.5 | I140: 11.7 | J140: 2.09 | K140: 30.76923077 | L140: 34.44976077 | M140: 34.44976077 | N140: 241.1711324 | O140: 45.84418902 | P140: 1.090650769 | Q140: 0.6049155046 | R140: 278.142529 | S140: 5.2 | T140: 0 | U140: 1.534351014 | V140: 33.41776777 | W140: 19.52749632 | X140: -3.523826728 | Y140: 0.1722488038 | Z140: 22.87617327 | AA140: 1048.739612 | AB140: 0.7628204286 | AC140: Good
A141: W14X90 | B141: 0.776312133 | C141: 26.5 | D141: 0.44 | E141: 0.71 | F141: 14.5 | G141: 10.2 | H141: 25.9 | I141: 6.14 | J141: 3.7 | K141: 58.63192182 | L141: 19.45945946 | M141: 58.63192182 | N141: 83.25867287 | O141: 38.88729541 | P141: 1.28576697 | Q141: 0.6669864565 | R141: 194.0645659 | S141: 7.25 | T141: 0 | U141: 0.6365292515 | V141: 164.7075844 | W141: 11.396 | X141: 0 | Y141: 0.2931596091 | Z141: 26.5 | AA141: 1030.513328 | AB141: 0.776312133 | AC141: Good
A142: W21X93 | B142: 0.6642457252 | C142: 27.3 | D142: 0.58 | E142: 0.93 | F142: 8.42 | G142: 4.53 | H142: 32.3 | I142: 8.7 | J142: 1.84 | K142: 41.37931034 | L142: 39.13043478 | M142: 41.37931034 | N142: 167.1595707 | O142: 44.11624824 | P142: 1.133369269 | Q142: 0.3155080627 | R142: 983.8982423 | S142: 4.21 | T142: 0 | U142: 0.8455057022 | V142: 105.9029557 | W142: 18.734 | X142: 0 | Y142: 0.2068965517 | Z142: 27.3 | AA142: 1204.373577 | AB142: 0.6642457252 | AC142: Good
A143: W24X94 | B143: 0.6555324014 | C143: 27.7 | D143: 0.515 | E143: 0.875 | F143: 9.07 | G143: 5.18 | H143: 41.9 | I143: 9.87 | J143: 1.98 | K143: 36.47416413 | L143: 36.36363636 | M143: 36.47416413 | N143: 215.1429142 | O143: 45.36543058 | P143: 1.102160816 | Q143: 0.3658518474 | R143: 752.4663258 | S143: 4.535 | T143: 0 | U143: 1.11222147 | V143: 62.93396295 | W143: 20.02732784 | X143: -0.7988536615 | Y143: 0.1823708207 | Z143: 26.90114634 | AA143: 1220.382087 | AB143: 0.6555324014 | AC143: Good
A144: W27X94 | B144: 0.6829659567 | C144: 27.7 | D144: 0.49 | E144: 0.745 | F144: 10 | G144: 6.7 | H144: 49.5 | I144: 10.9 | J144: 2.12 | K144: 33.02752294 | L144: 33.96226415 | M144: 33.96226415 | N144: 248.1443963 | O144: 45.95611681 | P144: 1.087994449 | Q144: 0.4762768132 | R144: 449.7767307 | S144: 5 | T144: 0 | U144: 1.322487555 | V144: 45.09233535 | W144: 19.74213331 | X144: -2.211304676 | Y144: 0.1698113208 | Z144: 25.48869532 | AA144: 1171.36146 | AB144: 0.6829659567 | AC144: Good
A145: W12X96 | B145: 0.7815087381 | C145: 28.2 | D145: 0.55 | E145: 0.9 | F145: 12.2 | G145: 6.76 | H145: 17.7 | I145: 5.44 | J145: 3.09 | K145: 66.17647059 | L145: 23.30097087 | M145: 66.17647059 | N145: 65.35676404 | O145: 36.30003472 | P145: 1.377409151 | Q145: 0.4270838904 | R145: 441.8279612 | S145: 6.1 | T145: 0 | U145: 0.4202827054 | V145: 352.6684372 | W145: 9.735 | X145: 0 | Y145: 0.3308823529 | Z145: 28.2 | AA145: 1023.660979 | AB145: 0.7815087381 | AC145: Good
A146: W18X97 | B146: 0.655499151 | C146: 28.5 | D146: 0.535 | E146: 0.87 | F146: 11.1 | G146: 6.41 | H146: 30 | I146: 7.82 | J146: 2.65 | K146: 46.03580563 | L146: 27.16981132 | M146: 46.03580563 | N146: 135.0536257 | O146: 42.82259618 | P146: 1.167607863 | Q146: 0.4398529411 | R146: 491.3947698 | S146: 5.55 | T146: 0 | U146: 0.7736997991 | V146: 122.763883 | W146: 16.05 | X146: 0 | Y146: 0.2301790281 | Z146: 28.5 | AA146: 1220.443991 | AB146: 0.655499151 | AC146: Good
A147: W14X99 | B147: 0.705229213 | C147: 29.1 | D147: 0.485 | E147: 0.78 | F147: 14.6 | G147: 9.34 | H147: 23.5 | I147: 6.17 | J147: 3.71 | K147: 58.34683955 | L147: 19.40700809 | M147: 58.34683955 | N147: 84.07426317 | O147: 38.9822322 | P147: 1.282635631 | Q147: 0.6114954111 | R147: 231.4476824 | S147: 7.3 | T147: 0 | U147: 0.5782504067 | V147: 200.0678944 | W147: 11.3975 | X147: 0 | Y147: 0.2917341977 | Z147: 29.1 | AA147: 1134.382957 | AB147: 0.705229213 | AC147: Good
A148: W30X99 | B148: 0.6686350176 | C148: 29.1 | D148: 0.52 | E148: 0.67 | F148: 10.5 | G148: 7.8 | H148: 51.9 | I148: 11.7 | J148: 2.1 | K148: 30.76923077 | L148: 34.28571429 | M148: 34.28571429 | N148: 243.4845114 | O148: 45.88200115 | P148: 1.089751945 | Q148: 0.5540242219 | R148: 331.8618909 | S148: 5.25 | T148: 0 | U148: 1.385489587 | V148: 41.01837114 | W148: 21.17464133 | X148: -3.022946507 | Y148: 0.1714285714 | Z148: 26.07705349 | AA148: 1196.467398 | AB148: 0.6686350176 | AC148: Good
A149: W10X100 | B149: 0.8516497313 | C149: 29.4 | D149: 0.68 | E149: 1.12 | F149: 10.3 | G149: 4.62 | H149: 11.6 | I149: 4.6 | J149: 2.65 | K149: 78.26086957 | L149: 27.16981132 | M149: 78.26086957 | N149: 46.73135837 | O149: 31.95079309 | P149: 1.564906381 | Q149: 0.2738392969 | R149: 945.9379247 | S149: 5.15 | T149: 0 | U149: 0.2584125153 | V149: 821.1020711 | W149: 7.888 | X149: 0 | Y149: 0.3913043478 | Z149: 29.4 | AA149: 939.353317 | AB149: 0.8516497313 | AC149: Good
A150: W16X100 | B150: 0.6545397245 | C150: 29.5 | D150: 0.585 | E150: 0.985 | F150: 10.4 | G150: 5.29 | H150: 24.3 | I150: 7.1 | J150: 2.51 | K150: 50.70422535 | L150: 28.68525896 | M150: 50.70422535 | N150: 111.32929 | O150: 41.43162448 | P150: 1.206807617 | Q150: 0.3570545954 | R150: 721.4981879 | S150: 5.2 | T150: 0 | U150: 0.6164345712 | V150: 187.1115424 | W150: 14.2155 | X150: 0 | Y150: 0.2535211268 | Z150: 29.5 | AA150: 1222.232922 | AB150: 0.6545397245 | AC150: Good
A151: W21X101 | B151: 0.6032339045 | C151: 29.8 | D151: 0.5 | E151: 0.8 | F151: 12.3 | G151: 7.68 | H151: 37.5 | I151: 9.02 | J151: 2.89 | K151: 39.9113082 | L151: 24.91349481 | M151: 39.9113082 | N151: 179.6825146 | O151: 44.50286594 | P151: 1.123523147 | Q151: 0.5372398066 | R151: 342.3135959 | S151: 6.15 | T151: 0 | U151: 0.9859161719 | V151: 78.56888511 | W151: 18.75 | X151: 0 | Y151: 0.199556541 | Z151: 29.8 | AA151: 1326.185405 | AB151: 0.6032339045 | AC151: Good
A152: W27X102 | B152: 0.618797117 | C152: 30 | D152: 0.515 | E152: 0.83 | F152: 10 | G152: 6.03 | H152: 47.1 | I152: 11 | J152: 2.15 | K152: 32.72727273 | L152: 33.48837209 | M152: 33.48837209 | N152: 255.2170417 | O152: 46.06364848 | P152: 1.085454619 | Q152: 0.429150332 | R152: 555.2799144 | S152: 5 | T152: 0 | U152: 1.259838298 | V152: 49.80481277 | W152: 20.50151797 | X152: -1.933815747 | Y152: 0.1674418605 | Z152: 28.06618425 | AA152: 1292.830846 | AB152: 0.618797117 | AC152: Good
A153: W24X103 | B153: 0.5872707034 | C153: 30.3 | D153: 0.55 | E153: 0.98 | F153: 9 | G153: 4.59 | H153: 39.2 | I153: 10 | J153: 1.99 | K153: 36 | L153: 36.18090452 | M153: 36.18090452 | N153: 218.6446742 | O153: 45.43616023 | P153: 1.100445102 | Q153: 0.324434082 | R153: 958.3435355 | S153: 4.5 | T153: 0 | U153: 1.041361724 | V153: 71.90200352 | W153: 20.98049127 | X153: -0.3187298033 | Y153: 0.1809045226 | Z153: 29.9812702 | AA153: 1362.233797 | AB153: 0.5872707034 | AC153: Good
A154: W24X104 | B154: 0.5930797538 | C154: 30.6 | D154: 0.5 | E154: 0.75 | F154: 12.8 | G154: 8.5 | H154: 43.1 | I154: 10.1 | J154: 2.91 | K154: 35.64356436 | L154: 24.74226804 | M154: 35.64356436 | N154: 225.2866667 | O154: 45.56455763 | P154: 1.097344133 | Q154: 0.6016521582 | R154: 279.4529749 | S154: 6.4 | T154: 0 | U154: 1.146583221 | V154: 59.47830529 | W154: 19.55790928 | X154: -0.9960453598 | Y154: 0.1782178218 | Z154: 29.60395464 | AA154: 1348.891097 | AB154: 0.5930797538 | AC154: Good
A155: W18X106 | B155: 0.6002244611 | C155: 31.1 | D155: 0.59 | E155: 0.94 | F155: 11.2 | G155: 5.96 | H155: 27.2 | I155: 7.84 | J155: 2.66 | K155: 45.91836735 | L155: 27.06766917 | M155: 45.91836735 | N155: 135.7453205 | O155: 42.85642178 | P155: 1.166686296 | Q155: 0.4091355221 | R155: 568.4 | S155: 5.6 | T155: 0 | U155: 0.701764816 | V155: 149.3397149 | W155: 16.048 | X155: 0 | Y155: 0.2295918367 | Z155: 31.1 | AA155: 1332.834717 | AB155: 0.6002244611 | AC155: Good
A156: W12X106 | B156: 0.7038938403 | C156: 31.2 | D156: 0.61 | E156: 0.99 | F156: 12.2 | G156: 6.17 | H156: 15.9 | I156: 5.47 | J156: 3.11 | K156: 65.81352834 | L156: 23.1511254 | M156: 65.81352834 | N156: 66.07959833 | O156: 36.42740449 | P156: 1.372592989 | Q156: 0.3904921 | R156: 530.3667151 | S156: 6.1 | T156: 0 | U156: 0.3782038723 | V156: 437.0376753 | W156: 9.699 | X156: 0 | Y156: 0.3290676417 | Z156: 31.2 | AA156: 1136.53502 | AB156: 0.7038938403 | AC156: Good
A157: W30X108 | B157: 0.6003414506 | C157: 31.7 | D157: 0.545 | E157: 0.76 | F157: 10.5 | G157: 6.89 | H157: 49.6 | I157: 11.9 | J157: 2.15 | K157: 30.25210084 | L157: 33.48837209 | M157: 33.48837209 | N157: 255.2170417 | O157: 46.06364848 | P157: 1.085454619 | Q157: 0.490355852 | R157: 425.3124981 | S157: 5.25 | T157: 0 | U157: 1.326708696 | V157: 44.91069471 | W157: 21.94758434 | X157: -2.771006536 | Y157: 0.1674418605 | Z157: 28.92899346 | AA157: 1332.574986 | AB157: 0.6003414506 | AC157: Good
A158: W14X109 | B158: 0.6387667403 | C158: 32 | D158: 0.525 | E158: 0.86 | F158: 14.6 | G158: 8.49 | H158: 21.7 | I158: 6.22 | J158: 3.73 | K158: 57.8778135 | L158: 19.30294906 | M158: 57.8778135 | N158: 85.44241423 | O158: 39.13791752 | P158: 1.277533481 | Q158: 0.5569542485 | R158: 280.1116735 | S158: 7.3 | T158: 0 | U158: 0.5350240732 | V158: 234.6354662 | W158: 11.3925 | X158: 0 | Y158: 0.2893890675 | Z158: 32 | AA158: 1252.413361 | AB158: 0.6387667403 | AC158: Good
A159: W21X111 | B159: 0.549312472 | C159: 32.7 | D159: 0.55 | E159: 0.875 | F159: 12.3 | G159: 7.05 | H159: 34.1 | I159: 9.05 | J159: 2.9 | K159: 39.77900552 | L159: 24.82758621 | M159: 39.77900552 | N159: 180.8797296 | O159: 44.53718612 | P159: 1.122657365 | Q159: 0.4933594808 | R159: 406.2265971 | S159: 6.15 | T159: 0 | U159: 0.8968720686 | V159: 95.01766814 | W159: 18.755 | X159: 0 | Y159: 0.1988950276 | Z159: 32.7 | AA159: 1456.365986 | AB159: 0.549312472 | AC159: Good
A160: W10X112 | B160: 0.7523785481 | C160: 32.9 | D160: 0.755 | E160: 1.25 | F160: 10.4 | G160: 4.17 | H160: 10.4 | I160: 4.66 | J160: 2.68 | K160: 77.25321888 | L160: 26.86567164 | M160: 77.25321888 | N160: 47.9583878 | O160: 32.31898289 | P160: 1.547078389 | Q160: 0.2485866898 | R160: 1161.112977 | S160: 5.2 | T160: 0 | U160: 0.2330112632 | V160: 1021.518997 | W160: 7.852 | X160: 0 | Y160: 0.3862660944 | Z160: 32.9 | AA160: 1063.294537 | AB160: 0.7523785481 | AC160: Good
A161: W27X114 | B161: 0.5366016769 | C161: 33.5 | D161: 0.57 | E161: 0.93 | F161: 10.1 | G161: 5.41 | H161: 42.5 | I161: 11 | J161: 2.18 | K161: 32.72727273 | L161: 33.02752294 | M161: 33.02752294 | N161: 262.3890684 | O161: 46.16700772 | P161: 1.08302449 | Q161: 0.385457147 | R161: 689.845854 | S161: 5.05 | T161: 0 | U161: 1.138071444 | V161: 61.16954723 | W161: 22.10717461 | X161: -1.207160474 | Y161: 0.1651376147 | Z161: 32.29283953 | AA161: 1490.863772 | AB161: 0.5366016769 | AC161: Good
A162: W30X116 | B162: 0.5466327858 | C162: 34.2 | D162: 0.565 | E162: 0.85 | F162: 10.5 | G162: 6.17 | H162: 47.8 | I162: 12 | J162: 2.19 | K162: 30 | L162: 32.87671233 | M162: 32.87671233 | N162: 264.8018288 | O162: 46.20057025 | P162: 1.082237724 | Q162: 0.4397661588 | R162: 530.3667151 | S162: 5.25 | T162: 0 | U162: 1.280460829 | V162: 48.35677539 | W162: 22.54189155 | X162: -2.522786277 | Y162: 0.1643835616 | Z162: 31.67721372 | AA162: 1463.505338 | AB162: 0.5466327858 | AC162: Good
A163: W24X117 | B163: 0.5153399426 | C163: 34.4 | D163: 0.55 | E163: 0.85 | F163: 12.8 | G163: 7.53 | H163: 39.2 | I163: 10.1 | J163: 2.94 | K163: 35.64356436 | L163: 24.48979592 | M163: 35.64356436 | N163: 225.2866667 | O163: 45.56455763 | P163: 1.097344133 | Q163: 0.5329930295 | R163: 356.0874244 | S163: 6.4 | T163: 0 | U163: 1.042832071 | V163: 71.90200352 | W163: 20.95955647 | X163: -0.3302439429 | Y163: 0.1782178218 | Z163: 34.06975606 | AA163: 1552.373363 | AB163: 0.5153399426 | AC163: Good
A164: W33X118 | B164: 0.5614936245 | C164: 34.7 | D164: 0.55 | E164: 0.74 | F164: 11.5 | G164: 7.76 | H164: 54.5 | I164: 13 | J164: 2.32 | K164: 27.69230769 | L164: 31.03448276 | M164: 31.03448276 | N164: 297.17257 | O164: 46.60001683 | P164: 1.072960986 | Q164: 0.5554791114 | R164: 335.2919651 | S164: 5.75 | T164: 0 | U164: 1.466237328 | V164: 37.19804551 | W164: 22.47405513 | X164: -4.125519677 | Y164: 0.1551724138 | Z164: 30.57448032 | AA164: 1424.771298 | AB164: 0.5614936245 | AC164: Good
A165: W18X119 | B165: 0.530583574 | C165: 35.1 | D165: 0.655 | E165: 1.06 | F165: 11.3 | G165: 5.31 | H165: 24.5 | I165: 7.9 | J165: 2.69 | K165: 45.56962025 | L165: 26.76579926 | M165: 45.56962025 | N165: 137.8310055 | O165: 42.9565179 | P165: 1.163967715 | Q165: 0.3649404725 | R165: 716.0734087 | S165: 5.65 | T165: 0 | U165: 0.6328420838 | V165: 184.069129 | W165: 16.0475 | X165: 0 | Y165: 0.2278481013 | Z165: 35.1 | AA165: 1507.773778 | AB165: 0.530583574 | AC165: Good
A166: W12X120 | B166: 0.6192946456 | C166: 35.3 | D166: 0.71 | E166: 1.11 | F166: 12.3 | G166: 5.57 | H166: 13.7 | I166: 5.51 | J166: 3.13 | K166: =12*F$9/I166 -> 65.33575318 | L166: =12*F$10/J166 -> 23.00319489 | M166: =MAX(K166:L166) -> 65.33575318 | N166: =+(PI()^2)*29000/(M166^2) -> 67.04956112 | O166: =IF(M166<=D$22,C$10*0.658^(C$10/N166),0.877*N166) -> 36.59468022 | P166: =+C$10/O166 -> 1.366318812 | Q166: =+G166/(D$25*SQRT(P166)) -> 0.3533272616 | R166: =+C$10*(D$31*D$25/G166)^2 -> 650.7829982 | S166: 6.15 | T166: =-4*(F166/2-S166)*E166 -> 0 | U166: =+H166/(D$26*SQRT(P166)) -> 0.3266211308 | V166: =+C$10*(D$30*D$26/H166)^2 -> 588.6701193 | W166: =IF(H166<=D$26*SQRT(P166),1,(1-C$30*SQRT(V166/O166))*SQRT(V166/O166))*(H166*D166) -> 9.727 | X166: =-(H166*D166-W166)*D166 -> 0 | Y166: =+M166/C$12 -> 0.3266787659 | Z166: =+C166+T166+X166 -> 35.3 | AA166: 1291.792212 | AB166: =C$9/AA166 -> 0.6192946456 | AC166: Good
A167: W14X120 | B167: 0.5781450172 | C167: 35.3 | D167: 0.59 | E167: 0.94 | F167: 14.7 | G167: 7.8 | H167: 19.3 | I167: 6.24 | J167: 3.74 | K167: 57.69230769 | L167: 19.2513369 | M167: 57.69230769 | N167: 85.99276652 | O167: 39.19931651 | P167: 1.275532444 | Q167: 0.5120906237 | R167: 331.8618909 | S167: =IF(G167<=D$25*SQRT(P167),1,(1-J161*SQRT(R167/O167))*SQRT(R167/O167))*(F167/2) -> 7.35 | T167: 0 | U167: 0.4762240114 | V167: 296.6186869 | W167: 11.387 | X167: 0 | Y167: 0.2884615385 | Z167: 35.3 | AA167: =+O167*Z167 -> 1383.735873 | AB167: 0.5781450172 | AC167: =IF(AB167<=1,"Good", IF(AB167<=1.03,"Close","No Good")) -> Good
A168: W21X122 | B168: =AB168 -> 0.4998405859 | C168: 35.9 | D168: 0.6 | E168: 0.96 | F168: 12.4 | G168: 6.45 | H168: 31.3 | I168: 9.09 | J168: 2.92 | K168: 39.6039604 | L168: 24.65753425 | M168: 39.6039604 | N168: 182.4822 | O168: 44.58245927 | P168: 1.121517315 | Q168: 0.4516007967 | R168: 485.3188496 | S168: 6.2 | T168: 0 | U168: 0.8236469242 | V168: 112.7780162 | W168: 18.78 | X168: 0 | Y168: 0.198019802 | Z168: 35.9 | AA168: 1600.510288 | AB168: 0.4998405859 | AC168: Good
A169: W30X124 | B169: 0.5045688917 | C169: 36.5 | D169: 0.585 | E169: 0.93 | F169: 10.5 | G169: 5.65 | H169: 46.2 | I169: 12.1 | J169: 2.23 | K169: 29.75206612 | L169: 32.28699552 | M169: 32.28699552 | N169: 274.563294 | O169: 46.33056532 | P169: 1.079201163 | Q169: 0.4032693559 | R169: 632.4842177 | S169: 5.25 | T169: 0 | U169: 1.239340117 | V169: 51.76416048 | W169: 23.13251539 | X169: -2.278273496 | Y169: 0.1614349776 | Z169: 34.2217265 | AA169: 1585.511935 | AB169: 0.5045688917 | AC169: Good
A170: W27X129 | B170: 0.4650356066 | C170: 37.8 | D170: 0.61 | E170: 1.1 | F170: 10 | G170: 4.55 | H170: 39.7 | I170: 11.2 | J170: 2.21 | K170: 32.14285714 | L170: 32.57918552 | M170: 32.57918552 | N170: 269.6604766 | O170: 46.26640444 | P170: 1.080697768 | Q170: 0.3245317903 | R170: 975.2675976 | S170: 5 | T170: 0 | U170: 1.064236413 | V170: 70.10227505 | W170: 23.20462682 | X170: -0.6175476413 | Y170: 0.1628959276 | Z170: 37.18245236 | AA170: 1720.298379 | AB170: 0.4650356066 | AC170: Good
A171: W18X130 | B171: 0.485154164 | C171: 38.2 | D171: 0.67 | E171: 1.2 | F171: 11.2 | G171: 4.65 | H171: 23.9 | I171: 8.03 | J171: 2.7 | K171: 44.83188045 | L171: 26.66666667 | M171: 44.83188045 | N171: 142.404539 | O171: 43.16650239 | P171: 1.158305566 | Q171: 0.3203607911 | R171: 933.7716471 | S171: 5.6 | T171: 0 | U171: 0.618850953 | V171: 193.4271016 | W171: 16.013 | X171: 0 | Y171: 0.2241594022 | Z171: 38.2 | AA171: 1648.960391 | AB171: 0.485154164 | AC171: Good
A172: W33X130 | B172: 0.4957387502 | C172: 38.3 | D172: 0.58 | E172: 0.855 | F172: 11.5 | G172: 6.73 | H172: 51.7 | I172: 13.2 | J172: 2.39 | K172: 27.27272727 | L172: 30.12552301 | M172: 30.12552301 | N172: 315.3759359 | O172: 46.78981899 | P172: 1.068608537 | Q172: 0.4827293678 | R172: 445.7757715 | S172: 5.75 | T172: 0 | U172: 1.393737413 | V172: 41.33634182 | W172: 23.41601578 | X172: -3.81059085 | Y172: 0.1506276151 | Z172: 34.48940915 | AA172: 1613.753211 | AB172: 0.4957387502 | AC172: Good
A173: W24X131 | B173: 0.4552132982 | C173: 38.5 | D173: 0.605 | E173: 0.96 | F173: 12.9 | G173: 6.7 | H173: 35.6 | I173: 10.2 | J173: 2.97 | K173: 35.29411765 | L173: 24.24242424 | M173: 35.29411765 | N173: 229.7698736 | O173: 45.64721826 | P173: 1.095356999 | Q173: 0.4746734437 | R173: 449.7767307 | S173: 6.45 | T173: 0 | U173: 0.9479204421 | V173: 87.17925032 | W173: 21.538 | X173: 0 | Y173: 0.1764705882 | Z173: 38.5 | AA173: 1757.417903 | AB173: 0.4552132982 | AC173: Good
A174: W14X132 | B174: 0.5243697934 | C174: 38.8 | D174: 0.645 | E174: 1.03 | F174: 14.7 | G174: 7.15 | H174: 17.7 | I174: 6.28 | J174: 3.76 | K174: 57.32484076 | L174: 19.14893617 | M174: 57.32484076 | N174: 87.09877145 | O174: 39.32064158 | P174: 1.271596749 | Q174: 0.4701422848 | R174: 394.9430767 | S174: 7.35 | T174: 0 | U174: 0.437419658 | V174: 352.6684372 | W174: 11.4165 | X174: 0 | Y174: 0.2866242038 | Z174: 38.8 | AA174: 1525.640893 | AB174: 0.5243697934 | AC174: Good
A175: W21X132 | B175: 0.4621331342 | C175: 38.8 | D175: 0.65 | E175: 1.04 | F175: 12.4 | G175: 6.01 | H175: 28.9 | I175: 9.12 | J175: 2.93 | K175: 39.47368421 | L175: 24.57337884 | M175: 39.47368421 | N175: 183.6886906 | O175: 44.61605363 | P175: 1.120672851 | Q175: 0.4209524319 | R175: 558.9817703 | S175: 6.2 | T175: 0 | U175: 0.7607783624 | V175: 132.2870831 | W175: 18.785 | X175: 0 | Y175: 0.1973684211 | Z175: 38.8 | AA175: 1731.102881 | AB175: 0.4621331342 | AC175: Good
A176: W30X132 | B176: 0.4652928895 | C176: 38.9 | D176: 0.615 | E176: 1 | F176: 10.5 | G176: 5.27 | H176: 43.9 | I176: 12.2 | J176: 2.25 | K176: 29.50819672 | L176: 32 | M176: 32 | N176: 279.5102809 | O176: 46.39310833 | P176: 1.077746282 | Q176: 0.3764006154 | R176: 726.9848464 | S176: 5.25 | T176: 0 | U176: 1.178435965 | V176: 57.33028299 | W176: 24.00728015 | X176: -1.839600206 | Y176: 0.16 | Z176: 37.06039979 | AA176: 1719.347142 | AB176: 0.4652928895 | AC176: Good
A177: W36X135 | B177: 0.4902830916 | C177: 39.7 | D177: 0.6 | E177: 0.79 | F177: 12 | G177: 7.56 | H177: 54.1 | I177: 14 | J177: 2.38 | K177: 25.71428571 | L177: 30.25210084 | M177: 30.25210084 | N177: 312.7423279 | O177: 46.76368031 | P177: 1.069205838 | Q177: 0.5421121126 | R177: 353.266941 | S177: 6 | T177: 0 | U177: 1.458029594 | V177: 37.75014254 | W177: 24.44780811 | X177: -4.807315137 | Y177: 0.1512605042 | Z177: 34.89268486 | AA177: 1631.71036 | AB177: 0.4902830916 | AC177: Good
A178: W12X136 | B178: 0.5436501592 | C178: 39.9 | D178: 0.79 | E178: 1.25 | F178: 12.4 | G178: 4.96 | H178: 12.3 | I178: 5.58 | J178: 3.16 | K178: 64.51612903 | L178: 22.78481013 | M178: 64.51612903 | N178: 68.76400126 | O178: 36.88056552 | P178: 1.355727584 | Q178: 0.3158591312 | R178: 820.6977367 | S178: 6.2 | T178: 0 | U178: 0.2943870014 | V178: 730.3026948 | W178: 9.717 | X178: 0 | Y178: 0.3225806452 | Z178: 39.9 | AA178: 1471.534564 | AB178: 0.5436501592 | AC178: Good
A179: W33X141 | B179: 0.4479927665 | C179: 41.6 | D179: 0.605 | E179: 0.96 | F179: 11.5 | G179: 6.01 | H179: 49.6 | I179: 13.4 | J179: 2.43 | K179: 26.86567164 | L179: 29.62962963 | M179: 29.62962963 | N179: 326.0207916 | O179: 46.89130486 | P179: 1.06629577 | Q179: 0.4315524685 | R179: 558.9817703 | S179: 5.75 | T179: 0 | U179: 1.338574564 | V179: 44.91069471 | W179: 24.19412671 | X179: -3.517393341 | Y179: 0.1481481481 | Z179: 38.08260666 | AA179: 1785.743119 | AB179: 0.4479927665 | AC179: Good
A180: W18X143 | B180: 0.4392561432 | C180: 42.1 | D180: 0.73 | E180: 1.32 | F180: 11.2 | G180: 4.25 | H180: 22 | I180: 8.09 | J180: 2.72 | K180: 44.49938195 | L180: 26.47058824 | M180: 44.49938195 | N180: 144.5405773 | O180: 43.26035182 | P180: 1.155792727 | Q180: 0.293120996 | R180: 1117.8119 | S180: 5.6 | T180: 0 | U180: 0.5702725101 | V180: 228.2799477 | W180: 16.06 | X180: 0 | Y180: 0.2224969098 | Z180: 42.1 | AA180: 1821.260812 | AB180: 0.4392561432 | AC180: Good
A181: W14X145 | B181: 0.4746784738 | C181: 42.7 | D181: 0.68 | E181: 1.09 | F181: 15.5 | G181: 7.11 | H181: 16.8 | I181: 6.33 | J181: 3.98 | K181: 56.87203791 | L181: 18.09045226 | M181: 56.87203791 | N181: 88.49121575 | O181: 39.46958633 | P181: 1.266798177 | Q181: 0.4683967382 | R181: 399.3993808 | S181: 7.75 | T181: 0 | U181: 0.4159635746 | V181: 391.4664636 | W181: 11.424 | X181: 0 | Y181: 0.2843601896 | Z181: 42.7 | AA181: 1685.351336 | AB181: 0.4746784738 | AC181: Good
A182: W24X146 | B182: 0.4068580109 | C182: 43 | D182: 0.65 | E182: 1.09 | F182: 12.9 | G182: 5.92 | H182: 33.2 | I182: 10.3 | J182: 3.01 | K182: 34.95145631 | L182: 23.92026578 | M182: 34.95145631 | N182: 234.29725 | O182: 45.72762651 | P182: 1.093430904 | Q182: 0.4197821917 | R182: 576.1070307 | S182: 6.45 | T182: 0 | U182: 0.8847939539 | V182: 100.2390538 | W182: 21.58 | X182: 0 | Y182: 0.1747572816 | Z182: 43 | AA182: 1966.28794 | AB182: 0.4068580109 | AC182: Good
A183: W27X146 | B183: 0.4040295175 | C183: 43.1 | D183: 0.605 | E183: 0.975 | F183: 14 | G183: 7.16 | H183: 39.4 | I183: 11.5 | J183: 3.2 | K183: 31.30434783 | L183: 22.5 | M183: 31.30434783 | N183: 292.0709898 | O183: 46.54273138 | P183: 1.074281601 | Q183: 0.5122145721 | R183: 393.8406542 | S183: 7 | T183: 0 | U183: 1.059343699 | V183: 71.17388666 | W183: 22.91583916 | X183: -0.5573023083 | Y183: 0.1565217391 | Z183: 42.54269769 | AA183: 1980.053351 | AB183: 0.4040295175 | AC183: Good
A184: W21X147 | B184: 0.4145500622 | C184: 43.2 | D184: 0.72 | E184: 1.15 | F184: 12.5 | G184: 5.44 | H184: 26.1 | I184: 9.17 | J184: 2.95 | K184: 39.25845147 | L184: 24.40677966 | M184: 39.25845147 | N184: 185.7083422 | O184: 44.67136833 | P184: 1.119285168 | Q184: 0.3812646159 | R184: 682.2582396 | S184: 6.25 | T184: 0 | U184: 0.6874955125 | V184: 162.1930017 | W184: 18.792 | X184: 0 | Y184: 0.1962922574 | Z184: 43.2 | AA184: 1929.803112 | AB184: 0.4145500622 | AC184: Good
A185: W30X148 | B185: 0.4080470639 | C185: 43.5 | D185: 0.65 | E185: 1.18 | F185: 10.5 | G185: 4.44 | H185: 41.6 | I185: 12.4 | J185: 2.28 | K185: 29.03225806 | L185: 31.57894737 | M185: 31.57894737 | N185: 287.0135791 | O185: 46.48400506 | P185: 1.075638812 | Q185: 0.3174298136 | R185: 1024.190277 | S185: 5.25 | T185: 0 | U185: 1.117789004 | V185: 63.8449373 | W185: 25.00469074 | X185: -1.322951021 | Y185: 0.1578947368 | Z185: 42.17704898 | AA185: 1960.558158 | AB185: 0.4080470639 | AC185: Good
A186: W40X149 | B186: 0.4471164645 | C186: 43.8 | D186: 0.63 | E186: 0.83 | F186: 11.8 | G186: 7.11 | H186: 54.3 | I186: 15 | J186: 2.29 | K186: 24 | L186: 31.44104803 | M186: 31.44104803 | N186: 289.5367633 | O186: 46.51355129 | P186: 1.074955548 | Q186: 0.5084781838 | R186: 399.3993808 | S186: 5.9 | T186: 0 | U186: 1.459500714 | V186: 37.4725689 | W186: 25.74413266 | X186: -5.332866427 | Y186: 0.1572052402 | Z186: 38.46713357 | AA186: 1789.24299 | AB186: 0.4471164645 | AC186: Good
A187: W36X150 | B187: 0.429041626 | C187: 44.2 | D187: 0.625 | E187: 0.94 | F187: 12 | G187: 6.37 | H187: 51.9 | I187: 14.3 | J187: 2.47 | K187: 25.17482517 | L187: 29.14979757 | M187: 29.14979757 | N187: 336.8423255 | O187: 46.98810473 | P187: 1.064099101 | Q187: 0.4578744083 | R187: 497.585509 | S187: 6 | T187: 0 | U187: 1.402090525 | V187: 41.01837114 | W187: 25.21002691 | X187: -4.51717068 | Y187: 0.1457489879 | Z187: 39.68282932 | AA187: 1864.62094 | AB187: 0.429041626 | AC187: Good
A188: W12X152 | B188: 0.4811438888 | C188: 44.7 | D188: 0.87 | E188: 1.4 | F188: 12.5 | G188: 4.46 | H188: 11.2 | I188: 5.66 | J188: 3.19 | K188: 63.60424028 | L188: 22.57053292 | M188: 63.60424028 | N188: 70.74986315 | O188: 37.19696361 | P188: 1.344195739 | Q188: 0.2852341874 | R188: 1015.025309 | S188: 6.25 | T188: 0 | U188: 0.2692070941 | V188: 880.7995431 | W188: 9.744 | X188: 0 | Y188: 0.3180212014 | Z188: 44.7 | AA188: 1662.704273 | AB188: 0.4811438888 | AC188: Good
A189: W33X152 | B189: 0.4082400464 | C189: 44.8 | D189: 0.635 | E189: 1.06 | F189: 11.6 | G189: 5.48 | H189: 47.2 | I189: 13.5 | J189: 2.47 | K189: 26.66666667 | L189: 29.14979757 | M189: 29.14979757 | N189: 336.8423255 | O189: 46.98810473 | P189: 1.064099101 | Q189: 0.3939013748 | R189: 672.3346156 | S189: 5.8 | T189: 0 | U189: 1.275118936 | V189: 49.59399898 | W189: 25.09773152 | X189: -3.095160487 | Y189: 0.1457489879 | Z189: 41.70483951 | AA189: 1959.631367 | AB189: 0.4082400464 | AC189: Good
A190: W18X158 | B190: 0.3989837216 | C190: 46.3 | D190: 0.81 | E190: 1.44 | F190: 11.3 | G190: 3.92 | H190: 19.8 | I190: 8.12 | J190: 2.74 | K190: 44.33497537 | L190: 26.27737226 | M190: 44.33497537 | N190: 145.6145593 | O190: 43.30657312 | P190: 1.154559144 | Q190: 0.2705054071 | R190: 1313.936735 | S190: 5.65 | T190: 0 | U190: 0.513519373 | V190: 281.8270959 | W190: 16.038 | X190: 0 | Y190: 0.2216748768 | Z190: 46.3 | AA190: 2005.094335 | AB190: 0.3989837216 | AC190: Good
A191: W14X159 | B191: 0.4324212278 | C191: 46.7 | D191: 0.745 | E191: 1.19 | F191: 15.6 | G191: 6.54 | H191: 15.3 | I191: 6.38 | J191: 4 | K191: 56.42633229 | L191: 18 | M191: 56.42633229 | N191: 89.89470244 | O191: 39.61558749 | P191: 1.262129459 | Q191: 0.4316420762 | R191: 472.0533588 | S191: 7.8 | T191: 0 | U191: 0.3795239731 | V191: 471.9872472 | W191: 11.3985 | X191: 0 | Y191: 0.2821316614 | Z191: 46.7 | AA191: 1850.047936 | AB191: 0.4324212278 | AC191: Good
A192: W36X160 | B192: 0.3971004279 | C192: 47 | D192: 0.65 | E192: 1.02 | F192: 12 | G192: 5.88 | H192: 49.9 | I192: 14.4 | J192: 2.5 | K192: 25 | L192: 28.8 | M192: 28.8 | N192: 345.0744209 | O192: 47.05779923 | P192: 1.062523127 | Q192: 0.4229666313 | R192: 583.9718821 | S192: 6 | T192: 0 | U192: 1.349059438 | V192: 44.37230963 | W192: 25.99078606 | X192: -4.188739058 | Y192: 0.144 | Z192: 42.81126094 | AA192: 2014.603722 | AB192: 0.3971004279 | AC192: Good
A193: W27X161 | B193: 0.3611030593 | C193: 47.6 | D193: 0.66 | E193: 1.08 | F193: 14 | G193: 6.49 | H193: 36.1 | I193: 11.5 | J193: 3.23 | K193: 31.30434783 | L193: 22.29102167 | M193: 31.30434783 | N193: 292.0709898 | O193: 46.54273138 | P193: 1.074281601 | Q193: 0.4642838789 | R193: 479.3549265 | S193: 7 | T193: 0 | U193: 0.9706169424 | V193: 84.78103659 | W193: 23.826 | X193: 0 | Y193: 0.1565217391 | Z193: 47.6 | AA193: 2215.434014 | AB193: 0.3611030593 | AC193: Good
A194: W24X162 | B194: 0.3661428411 | C194: 47.7 | D194: 0.705 | E194: 1.22 | F194: 13 | G194: 5.31 | H194: 30.6 | I194: 10.4 | J194: 3.05 | K194: 34.61538462 | L194: 23.60655738 | M194: 34.61538462 | N194: 238.8687959 | O194: 45.80586205 | P194: 1.091563345 | Q194: 0.3768495713 | R194: 716.0734087 | S194: 6.5 | T194: 0 | U194: 0.8162001862 | V194: 117.9968118 | W194: 21.573 | X194: 0 | Y194: 0.1730769231 | Z194: 47.7 | AA194: 2184.93962 | AB194: 0.3661428411 | AC194: Good
A195: W21X166 | B195: 0.3653206023 | C195: 48.8 | D195: 0.75 | E195: 1.36 | F195: 12.4 | G195: 4.57 | H195: 25 | I195: 9.36 | J195: 2.99 | K195: 38.46153846 | L195: 24.08026756 | M195: 38.46153846 | N195: 193.4837247 | O195: 44.87412569 | P195: 1.114227837 | Q195: 0.321016366 | R195: 966.7500175 | S195: 6.2 | T195: 0 | U195: 0.6600133823 | V195: 176.7799915 | W195: 18.75 | X195: 0 | Y195: 0.1923076923 | Z195: 48.8 | AA195: 2189.857334 | AB195: 0.3653206023 | AC195: Good
A196: W40X167 | B196: 0.3875820958 | C196: 49.2 | D196: 0.65 | E196: 1.03 | F196: 11.8 | G196: 5.76 | H196: 52.6 | I196: 15.3 | J196: 2.4 | K196: 23.52941176 | L196: 30 | M196: 30 | N196: 318.0205863 | O196: 46.81564596 | P196: 1.068019013 | Q196: 0.4132672283 | R196: 608.5575039 | S196: 5.9 | T196: 0 | U196: 1.418391065 | V196: 39.93389188 | W196: 26.3277058 | X196: -5.110491233 | Y196: 0.15 | Z196: 44.08950877 | AA196: 2064.078833 | AB196: 0.3875820958 | AC196: Good
A197: W33X169 | B197: 0.3621605818 | C197: 49.5 | D197: 0.67 | E197: 1.22 | F197: 11.5 | G197: 4.71 | H197: 44.7 | I197: 13.7 | J197: 2.5 | K197: 26.27737226 | L197: 28.8 | M197: 28.8 | N197: 345.0744209 | O197: 47.05779923 | P197: 1.062523127 | Q197: 0.3388049036 | R197: 910.1328176 | S197: 5.75 | T197: 0 | U197: 1.208476089 | V197: 55.29655556 | W197: 26.13038073 | X197: -2.558474913 | Y197: 0.144 | Z197: 46.94152509 | AA197: 2208.964863 | AB197: 0.3621605818 | AC197: Good
A198: W12X170 | B198: 0.4266351265 | C198: 50 | D198: 0.96 | E198: 1.56 | F198: 12.6 | G198: 4.03 | H198: 10.1 | I198: 5.74 | J198: 3.22 | K198: 62.71777003 | L198: 22.36024845 | M198: 62.71777003 | N198: 72.76399353 | O198: 37.50277229 | P198: 1.33323477 | Q198: 0.2587913205 | R198: 1243.187104 | S198: 6.3 | T198: 0 | U198: 0.2437630038 | V198: 1083.104546 | W198: 9.696 | X198: 0 | Y198: 0.3135888502 | Z198: 50 | AA198: 1875.138614 | AB198: 0.4266351265 | AC198: Good
A199: W36X170 | B199: 0.3663202795 | C199: 50.1 | D199: 0.68 | E199: 1.1 | F199: 12 | G199: 5.47 | H199: 47.7 | I199: 14.5 | J199: 2.53 | K199: 24.82758621 | L199: 28.45849802 | M199: 28.45849802 | N199: 353.4058977 | O199: 47.12512716 | P199: 1.061005095 | Q199: 0.3937554409 | R199: 674.7951245 | S199: 6 | T199: 0 | U199: 1.290504072 | V199: 48.5597417 | W199: 26.90979887 | X199: -3.757816771 | Y199: 0.1422924901 | Z199: 46.34218323 | AA199: 2183.881277 | AB199: 0.3663202795 | AC199: Good
A200: W30X173 | B200: 0.3405283421 | C200: 51 | D200: 0.655 | E200: 1.07 | F200: 15 | G200: 7.04 | H200: 40.8 | I200: 12.7 | J200: 3.42 | K200: 28.34645669 | L200: 21.05263158 | M200: 28.34645669 | N200: 356.2051414 | O200: 47.14706218 | P200: 1.060511465 | Q200: 0.5068890987 | R200: 407.3814695 | S200: 7.5 | T200: 0 | U200: 1.104084248 | V200: 66.37320663 | W200: 24.9361989 | X200: -1.171009719 | Y200: 0.1417322835 | Z200: 49.82899028 | AA200: 2349.290503 | AB200: 0.3405283421 | AC200: Good
A201: W18X175 | B201: 0.3590929402 | C201: 51.3 | D201: 0.89 | E201: 1.59 | F201: 11.4 | G201: 3.58 | H201: 18 | I201: 8.2 | J201: 2.76 | K201: 43.90243902 | L201: 26.08695652 | M201: 43.90243902 | N201: 148.497946 | O201: 43.42759259 | P201: 1.15134174 | Q201: 0.2473881416 | R201: 1575.362617 | S201: 5.7 | T201: 0 | U201: 0.4674876209 | V201: 341.0107861 | W201: 16.02 | X201: 0 | Y201: 0.2195121951 | Z201: 51.3 | AA201: 2227.8355 | AB201: 0.3590929402 | AC201: Good
A202: W24X176 | B202: 0.3372539869 | C202: 51.7 | D202: 0.75 | E202: 1.34 | F202: 12.9 | G202: 4.81 | H202: 28.7 | I202: 10.5 | J202: 3.04 | K202: 34.28571429 | L202: 23.68421053 | M202: 34.28571429 | N202: 243.4845114 | O202: 45.88200115 | P202: 1.089751945 | Q202: 0.3416482702 | R202: 872.6828394 | S202: 6.45 | T202: 0 | U202: 0.7661570551 | V202: 134.1372296 | W202: 21.525 | X202: 0 | Y202: 0.1714285714 | Z202: 51.7 | AA202: 2372.099459 | AB202: 0.3372539869 | AC202: Good
A203: W14X176 | B203: 0.3884435029 | C203: 51.8 | D203: 0.83 | E203: 1.31 | F203: 15.7 | G203: 5.97 | H203: 13.7 | I203: 6.43 | J203: 4.02 | K203: 55.98755832 | L203: 17.91044776 | M203: 55.98755832 | N203: 91.30923151 | O203: 39.75871736 | P203: 1.257585841 | Q203: 0.3947330478 | R203: 566.4974072 | S203: 7.85 | T203: 0 | U203: 0.340448545 | V203: 588.6701193 | W203: 11.371 | X203: 0 | Y203: 0.2799377916 | Z203: 51.8 | AA203: 2059.501559 | AB203: 0.3884435029 | AC203: Good
A204: W27X178 | B204: 0.3269976338 | C204: 52.5 | D204: 0.725 | E204: 1.19 | F204: 14.1 | G204: 5.92 | H204: 32.9 | I204: 11.6 | J204: 3.25 | K204: 31.03448276 | L204: 22.15384615 | M204: 31.03448276 | N204: 297.17257 | O204: 46.60001683 | P204: 1.072960986 | Q204: 0.4237675695 | R204: 576.1070307 | S204: 7.05 | T204: 0 | U204: 0.8851230841 | V204: 102.0754563 | W204: 23.8525 | X204: 0 | Y204: 0.1551724138 | Z204: 52.5 | AA204: 2446.500884 | AB204: 0.3269976338 | AC204: Good
A205: W40X183 | B205: 0.3531881781 | C205: 53.3 | D205: 0.65 | E205: 1.2 | F205: 11.8 | G205: 4.92 | H205: 52.6 | I205: 15.7 | J205: 2.49 | K205: 22.92993631 | L205: 28.91566265 | M205: 28.91566265 | N205: 342.3193467 | O205: 47.03483603 | P205: 1.063041869 | Q205: 0.3538244938 | R205: 834.096662 | S205: 5.9 | T205: 0 | U205: 1.421707629 | V205: 39.93389188 | W205: 26.27850604 | X205: -5.142471073 | Y205: 0.1445783133 | Z205: 48.15752893 | AA205: 2265.081477 | AB205: 0.3531881781 | AC205: Good
A206: W21X182 | B206: 0.3322999448 | C206: 53.6 | D206: 0.83 | E206: 1.48 | F206: 12.5 | G206: 4.22 | H206: 22.6 | I206: 9.4 | J206: 3 | K206: 38.29787234 | L206: 24 | M206: 38.29787234 | N206: 195.1409653 | O206: 44.91536447 | P206: 1.113204815 | Q206: 0.2965670445 | R206: 1133.761452 | S206: 6.25 | T206: 0 | U206: 0.5969261927 | V206: 216.3197876 | W206: 18.758 | X206: 0 | Y206: 0.1914893617 | Z206: 53.6 | AA206: 2407.463536 | AB206: 0.3322999448 | AC206: Good
A207: W36X182 | B207: 0.3355537367 | C207: 53.6 | D207: 0.725 | E207: 1.18 | F207: 12.1 | G207: 5.12 | H207: 44.8 | I207: 14.5 | J207: 2.55 | K207: 24.82758621 | L207: 28.23529412 | M207: 28.23529412 | N207: 359.0154275 | O207: 47.16874967 | P207: 1.060023858 | Q207: 0.3687313956 | R207: 770.2055908 | S207: 6.05 | T207: 0 | U207: 1.212606603 | V207: 55.04997145 | W207: 28.2654592 | X207: -3.055542082 | Y207: 0.1411764706 | Z207: 50.54445792 | AA207: 2384.118883 | AB207: 0.3355537367 | AC207: Good
A208: W12X190 | B208: 0.3792994005 | C208: 55.8 | D208: 1.06 | E208: 1.74 | F208: 12.7 | G208: 3.65 | H208: 9.16 | I208: 5.82 | J208: 3.25 | K208: 61.8556701 | L208: 22.15384615 | M208: 61.8556701 | N208: 74.8063924 | O208: 37.79841873 | P208: 1.322806659 | Q208: 0.2353112302 | R208: 1515.517166 | S208: 6.35 | T208: 0 | U208: 0.2219458466 | V208: 1316.807158 | W208: 9.7096 | X208: 0 | Y208: 0.3092783505 | Z208: 55.8 | AA208: 2109.151765 | AB208: 0.3792994005 | AC208: Good
A209: W24X192 | B209: 0.309698599 | C209: 56.3 | D209: 0.81 | E209: 1.46 | F209: 13 | G209: 4.43 | H209: 26.6 | I209: 10.5 | J209: 3.07 | K209: 34.28571429 | L209: 23.45276873 | M209: 34.28571429 | N209: 243.4845114 | O209: 45.88200115 | P209: 1.089751945 | Q209: 0.3146573465 | R209: 1028.819379 | S209: 6.5 | T209: 0 | U209: 0.7100967828 | V209: 156.1528276 | W209: 21.546 | X209: 0 | Y209: 0.1714285714 | Z209: 56.3 | AA209: 2583.156665 | AB209: 0.309698599 | AC209: Good
A210: W30X191 | B210: 0.302444253 | C210: 56.3 | D210: 0.71 | E210: 1.19 | F210: 15 | G210: 6.35 | H210: 37.7 | I210: 12.8 | J210: 3.46 | K210: 28.125 | L210: 20.80924855 | M210: 28.125 | N210: 361.8367559 | O210: 47.19019332 | P210: 1.059542174 | Q210: 0.4574172911 | R210: 500.724842 | S210: 7.5 | T210: 0 | U210: 1.020662036 | V210: 77.73747419 | W210: 26.41802792 | X210: -0.2477701783 | Y210: 0.140625 | Z210: 56.05222982 | AA210: 2645.115561 | AB210: 0.302444253 | AC210: Good
A211: W18x192 | B211: 0.3257377939 | C211: 56.4 | D211: 0.96 | E211: 1.75 | F211: 11.5 | G211: 3.27 | H211: 16.7 | I211: 8.28 | J211: 2.79 | K211: 43.47826087 | L211: 25.80645161 | M211: 43.47826087 | N211: 151.4096011 | O211: 43.54544492 | P211: 1.148225723 | Q211: 0.2262726655 | R211: 1888.213435 | S211: 5.75 | T211: 0 | U211: 0.4343127409 | V211: 396.1687213 | W211: 16.032 | X211: 0 | Y211: 0.2173913043 | Z211: 56.4 | AA211: 2455.963094 | AB211: 0.3257377939 | AC211: Good
A212: W14X193 | B212: 0.3525144649 | C212: 56.8 | D212: 0.89 | E212: 1.44 | F212: 15.7 | G212: 5.45 | H212: 12.8 | I212: 6.5 | J212: 4.05 | K212: 55.38461538 | L212: 17.77777778 | M212: 55.38461538 | N212: 93.3081234 | O212: 39.95440881 | P212: 1.25142635 | Q212: 0.3612366705 | R212: 679.7568366 | S212: 7.85 | T212: 0 | U212: 0.3188651505 | V212: 674.3621502 | W212: 11.392 | X212: 0 | Y212: 0.2769230769 | Z212: 56.8 | AA212: 2269.41042 | AB212: 0.3525144649 | AC212: Good
A213: W36X194 | B213: 0.3099947081 | C213: 57 | D213: 0.765 | E213: 1.26 | F213: 12.1 | G213: 4.81 | H213: 42.4 | I213: 14.6 | J213: 2.56 | K213: 24.65753425 | L213: 28.125 | M213: 28.125 | N213: 361.8367559 | O213: 47.19019332 | P213: 1.059542174 | Q213: 0.3464845937 | R213: 872.6828394 | S213: 6.05 | T213: 0 | U213: 1.147906374 | V213: 61.45842309 | W213: 29.41244603 | X213: -2.31301879 | Y213: 0.140625 | Z213: 54.68698121 | AA213: 2580.689215 | AB213: 0.3099947081 | AC213: Good
A214: W27X194 | B214: 0.2997694124 | C214: 57.2 | D214: 0.75 | E214: 1.34 | F214: 14 | G214: 5.24 | H214: 31.8 | I214: 11.7 | J214: 3.29 | K214: 30.76923077 | L214: 21.88449848 | M214: 30.76923077 | N214: 302.3183198 | O214: 46.65590753 | P214: 1.071675649 | Q214: 0.3753164344 | R214: 735.3329293 | S214: 7 | T214: 0 | U214: 0.8560421979 | V214: 109.2594188 | W214: 23.85 | X214: 0 | Y214: 0.1538461538 | Z214: 57.2 | AA214: 2668.717911 | AB214: 0.2997694124 | AC214: Good
A215: W40X199 | B215: 0.3121340592 | C215: 58.5 | D215: 0.65 | E215: 1.07 | F215: 15.8 | G215: 7.39 | H215: 52.6 | I215: 16 | J215: 3.45 | K215: 22.5 | L215: 20.86956522 | M215: 22.5 | N215: 565.3699311 | O215: 48.18305424 | P215: 1.037709228 | Q215: 0.5379037541 | R215: 369.7070327 | S215: 7.9 | T215: 0 | U215: 1.438956415 | V215: 39.93389188 | W215: 26.02538771 | X215: -5.306997987 | Y215: 0.1125 | Z215: 53.19300201 | AA215: 2563.001301 | AB215: 0.3121340592 | AC215: Good
A216: W21X201 | B216: 0.3003913018 | C216: 59.2 | D216: 0.91 | E216: 1.63 | F216: 12.6 | G216: 3.86 | H216: 20.6 | I216: 9.47 | J216: 3.02 | K216: 38.01478353 | L216: 23.8410596 | M216: 38.01478353 | N216: 198.0581416 | O216: 44.98636756 | P216: 1.111447817 | Q216: 0.271481814 | R216: 1355.101979 | S216: 6.3 | T216: 0 | U216: 0.5445307588 | V216: 260.3626513 | W216: 18.746 | X216: 0 | Y216: 0.1900739176 | Z216: 59.2 | AA216: 2663.192959 | AB216: 0.3003913018 | AC216: Good
A217: W33X201 | B217: 0.2926362444 | C217: 59.2 | D217: 0.715 | E217: 1.15 | F217: 15.7 | G217: 6.85 | H217: 41.7 | I217: 14 | J217: 3.56 | K217: 25.71428571 | L217: 20.2247191 | M217: 25.71428571 | N217: 432.8613535 | O217: 47.64015871 | P217: 1.049534707 | Q217: 0.4957813039 | R217: 430.294154 | S217: 7.85 | T217: 0 | U217: 1.134324696 | V217: 63.53909373 | W217: 27.27524346 | X217: -1.816283427 | Y217: 0.1285714286 | Z217: 57.38371657 | AA217: 2733.769365 | AB217: 0.2926362444 | AC217: Good
... 94 more rows

Sheet SteelProps (hidden)
B2: Fy | C2: Fu
A3: A36 | B3: 36 | C3: 58
A4: A36, PL of 8" thick | B4: 32 | C4: 58
A5: A500 Gr B, Rect HSS | B5: 46 | C5: 58
A6: A500 Gr B, Rnd HSS | B6: 42 | C6: 58
A7: A53 Gr. B, Pipe | B7: 35 | C7: 60
A8: A572 Gr 50 | B8: 50 | C8: 65
A9: A588 | B9: 50 | C9: 70
A10: A992 | B10: 50 | C10: 65

Sheet StlSubTables (hidden)
B6: RndHSS | F6: RectHSS | I6: IShapes
B7: ---- | C7: =VLOOKUP(B7,StlSects,4) ->  | F7: ---- | G7: =VLOOKUP(F7,StlSects,4) ->  | I7: ---- | J7: =VLOOKUP(I7,StlSects,4) -> 
B8: HSS1.660X0.140 | C8: 2.274862147 | D8: =VLOOKUP(B8,StlSects,5) -> 0.625 | F8: HSS2X1X1/8 | G8: 2.194178528 | I8: S3X5.7 | J8: 5.7
B9: HSS1.900X0.120 | C9: 2.28341426 | D9: 0.624 | F9: HSS2-1/2X1X1/8 | G9: 2.61952575 | I9: S3X7.5 | J9: 7.5
B10: HSS1.900X0.145 | C10: 2.720373801 | D10: 0.749 | F10: HSS2X2X1/8 | G10: 2.61952575 | I10: S4X7.7 | J10: 7.7
B11: HSS2.375X0.125 | C11: 3.006602344 | D11: 0.823 | F11: HSS2X2X1/8 | G11: 2.61952575 | I11: W6X8.5 | J11: 8.5
B12: HSS2.500X0.125 | C12: 3.173635808 | D12: 0.869 | F12: HSS2X1X3/16 | G12: 3.028310854 | I12: W6X9 | J12: 9
B13: HSS1.900X0.188 | C13: 3.440686237 | D13: 0.943 | F13: HSS2-1/2X1-1/2X1/8 | G13: 3.044872972 | I13: S4X9.5 | J13: 9.5
B14: HSS2.375X0.154 | C14: 3.656391915 | D14: 1 | F14: HSS3X1X1/8 | G14: 3.044872972 | I14: S5X10 | J14: 10
B15: HSS2.875X0.125 | C15: 3.674736199 | D15: 1.01 | F15: HSS2-1/4X2X1/8 | G15: 3.257546583 | I15: W8X10 | J15: 10
B16: HSS3X0.125 | C16: 3.841769662 | D16: 1.05 | F16: HSS2-1/2X2X1/8 | G16: 3.470220194 | I16: W10X12 | J16: 12
B17: HSS3X0.134 | C17: 4.105484767 | D17: 1.12 | F17: HSS2-1/4X2-1/4X1/8 | G17: 3.470220194 | I17: W6X12 | J17: 12
B18: HSS2.375X0.188 | C18: 4.395315888 | D18: 1.2 | F18: HSS3X1-1/2X1/8 | G18: 3.470220194 | I18: S6X12.5 | J18: 12.5
B19: HSS3.500X0.125 | C19: 4.509903516 | D19: 1.23 | F19: HSS2-1/2X1X3/16 | G19: 3.668033076 | I19: W4X13 | J19: 13
B20: HSS3X0.152 | C20: 4.627719568 | D20: 1.27 | F20: HSS2X1-1/2X3/16 | G20: 3.668033076 | I20: W8X13 | J20: 13
B21: HSS2.500X0.188 | C21: 4.646534217 | D21: 1.27 | F21: HSS2-1/2X2-1/2X1/8 | G21: 3.895567417 | I21: W12X14 | J21: 14
B22: HSS2.375X0.218 | C22: 5.026782556 | D22: 1.39 | F22: HSS3-1/2X1-1/2X1/8 | G22: 3.895567417 | I22: W10X15 | J22: 15
B23: HSS4X0.125 | C23: 5.178037371 | D23: 1.42 | F23: HSS3X2X1/8 | G23: 3.895567417 | I23: W6X15 | J23: 15
B24: HSS2.875X0.188 | C24: 5.400189205 | D24: 1.48 | F24: HSS2X2X3/16 | G24: 4.298880854 | I24: W8X15 | J24: 15
B25: HSS3X0.188 | C25: 5.651407534 | D25: 1.54 | F25: HSS2-1/2X1-1/2X3/16 | G25: 4.307755299 | I25: W12X16 | J25: 16
B26: HSS2.375X0.250 | C26: 5.679137761 | D26: 1.57 | F26: HSS3X1X3/16 | G26: 4.307755299 | I26: W5X16 | J26: 16
B27: HSS2.875X0.203 | C27: 5.798503883 | D27: 1.59 | F27: HSS3-1/2X2X1/8 | G27: 4.320914639 | I27: W6X16 | J27: 16
B28: HSS4.500X0.125 | C28: 5.846171225 | D28: 1.6 | F28: HSS3X2-1/2X1/8 | G28: 4.320914639 | I28: W10X17 | J28: 17
B29: HSS2.500X0.250 | C29: 6.013204689 | D29: 1.66 | F29: HSS2-1/4X2X3/16 | G29: 4.62761641 | I29: S6X17.2 | J29: 17.3
B30: HSS3X0.203 | C30: 6.069766228 | D30: 1.67 | F30: HSS3X3X1/8 | G30: 4.746261861 | I30: W8X18 | J30: 18
B31: HSS3X0.216 | C31: 6.428452551 | D31: 1.77 | F31: HSS4X2X1/8 | G31: 4.746261861 | I31: S8X18.4 | J31: 18.4
B32: HSS5X0.125 | C32: 6.514305079 | D32: 1.78 | F32: HSS2-1/4X2-1/4X3/16 | G32: 4.936901687 | I32: W10X19 | J32: 19
B33: HSS3.500X0.188 | C33: 6.656280851 | D33: 1.82 | F33: HSS2-1/2X2X3/16 | G33: 4.947477521 | I33: W12X19 | J33: 19
B34: HSS2.875X0.250 | C34: 7.01540547 | D34: 1.93 | F34: HSS3X1-1/2X3/16 | G34: 4.947477521 | I34: W5X19 | J34: 19
B35: HSS3.500X0.203 | C35: 7.154815607 | D35: 1.97 | F35: HSS4X2-1/2X1/8 | G35: 5.171609083 | I35: W6X20 | J35: 20
B36: HSS3X0.250 | C36: 7.349472397 | D36: 2.03 | F36: HSS2-1/2X1-1/2X1/4 | G36: 5.37523797 | I36: W8X21 | J36: 21
B37: HSS3.500X0.216 | C37: 7.582987852 | D37: 2.08 | F37: HSS2X2X1/4 | G37: 5.37523797 | I37: W10X22 | J37: 22
B38: HSS4X0.188 | C38: 7.661154168 | D38: 2.09 | F38: HSS2-1/2X2-1/2X3/16 | G38: 5.574922521 | I38: W12X22 | J38: 22
B39: HSS5.563X0.134 | C39: =VLOOKUP(B39,StlSects,4) -> 7.776928402 | D39: 2.12 | F39: HSS3-1/2X1-1/2X3/16 | G39: 5.587199743 | I39: W14X22 | J39: 22
B40: HSS6X0.125 | C40: 7.850572788 | D40: =VLOOKUP(B40,StlSects,5) -> 2.14 | F40: HSS3X2X3/16 | G40: 5.587199743 | I40: S8X23 | J40: 23
B41: HSS4.500X0.188 | C41: 8.666027484 | D41: 2.36 | F41: HSS3-1/2X3-1/2X1/8 | G41: 5.596956306 | I41: W8X24 | J41: 24
B42: HSS3.500X0.250 | C42: 8.685740106 | D42: 2.39 | F42: HSS4X3X1/8 | G42: 5.596956306 | I42: W6X25 | J42: 25
B43: HSS6.625X0.125 | C43: 8.685740106 | D43: 2.37 | F43: HSS5X2X1/8 | G43: 5.596956306 | I43: S10X25.4 | J43: 25.4
B44: HSS4X0.220 | C44: 8.889921811 | D44: 2.44 | F44: HSS5X2-1/2X1/8 | G44: 6.022303528 | I44: W10X26 | J44: 26
B45: HSS4X0.226 | C45: 9.117878392 | D45: 2.5 | F45: HSS2-1/2X2X1/4 | G45: 6.225932414 | I45: W12X26 | J45: 26
B46: HSS7X0.125 | C46: 9.186840496 | D46: 2.51 | F46: HSS2-1/4X2-1/4X1/4 | G46: 6.225932414 | I46: W14X26 | J46: 26
B47: HSS4X0.237 | C47: 9.533799734 | D47: 2.61 | F47: HSS3X1-1/2X1/4 | G47: 6.225932414 | I47: W16X26 | J47: 26
B48: HSS5X0.188 | C48: 9.670900801 | D48: 2.64 | F48: HSS3-1/2X2X3/16 | G48: 6.226921965 | I48: W8X28 | J48: 28
B49: HSS4X0.250 | C49: 10 | D49: 2.76 | F49: HSS3X2-1/2X3/16 | G49: 6.226921965 | I49: W10X30 | J49: 30
B50: HSS3.500X0.300 | C50: 10.262536 | D50: 2.82 | F50: HSS4X4X1/8 | G50: 6.44765075 | I50: W12X30 | J50: 30
B51: HSS3.500X0.313 | C51: 10.66374771 | D51: 2.93 | F51: HSS5X3X1/8 | G51: 6.44765075 | I51: W14X30 | J51: 30
B52: HSS4.500X0.237 | C52: 10.80058152 | D52: 2.96 | F52: HSS6X2X1/8 | G52: 6.44765075 | I52: W16X31 | J52: 31
B53: HSS5.563X0.188 | C53: 10.80238816 | D53: 2.95 | F53: HSS3X3X3/16 | G53: 6.850964187 | I53: W8X31 | J53: 31
B54: HSS6X0.188 | C54: 11.68064743 | D54: 3.18 | F54: HSS4X2X3/16 | G54: 6.866644187 | I54: S12X31.8 | J54: 31.8
B55: HSS4X0.313 | C55: 12.33675488 | D55: 3.39 | F55: HSS2-1/2X2-1/2X1/4 | G55: 7.076626859 | I55: W10X33 | J55: 33
B56: HSS5X0.250 | C56: 12.69454323 | D56: 3.49 | F56: HSS3-1/2X1-1/2X1/4 | G56: 7.076626859 | I56: W14X34 | J56: 34
B57: HSS6.625X0.188 | C57: 12.93673908 | D57: 3.53 | F57: HSS3X2X1/4 | G57: 7.076626859 | I57: S10X35 | J57: 35
B58: HSS5X0.258 | C58: 13.07870416 | D58: 3.59 | F58: HSS4-1/2X4-1/2X1/8 | G58: 7.298345194 | I58: S12X35 | J58: 35
B59: HSS6.875X0.188 | C59: 13.43917574 | D59: 3.66 | F59: HSS5X4X1/8 | G59: 7.298345194 | I59: W12X35 | J59: 35
B60: HSS7X0.188 | C60: 13.69039407 | D60: 3.73 | F60: HSS6X3X1/8 | G60: 7.298345194 | I60: W18X35 | J60: 35
B61: HSS5.500X0.258 | C61: 14.45773244 | D61: 3.97 | F61: HSS7X2X1/4 | G61: 7.298345194 | I61: W8X35 | J61: 35
B62: HSS5.563X0.258 | C62: 14.63149 | D62: 4.01 | F62: HSS4X2-1/2X3/16 | G62: 7.50636641 | I62: W16X36 | J62: 36
B63: HSS7.500X0.188 | C63: 14.69526739 | D63: 4 | F63: HSS3-1/2X2X1/4 | G63: 7.927321303 | I63: W14X38 | J63: 38
B64: HSS4.500X0.337 | C64: 14.99753114 | D64: 4.12 | F64: HSS3X2-1/2X1/4 | G64: 7.927321303 | I64: W10X39 | J64: 39
B65: HSS6X0.250 | C65: 15.36707865 | D65: 4.22 | F65: HSS3-1/2X3-1/2X3/16 | G65: 8.127005854 | I65: W12X40 | J65: 40
B66: HSS5X0.312 | C66: 15.63599985 | D66: 4.3 | F66: HSS4X3X3/16 | G66: 8.146088632 | I66: W16X40 | J66: 40
B67: HSS4.500X0.375 | C67: 16.53631289 | D67: 4.55 | F67: HSS5X2X3/16 | G67: 8.146088632 | I67: W18X40 | J67: 40
B68: HSS8.625X0.188 | C68: 16.95623235 | D68: 4.62 | F68: HSS5X5X1/8 | G68: 8.149039639 | I68: W8X40 | J68: 40
B69: HSS6.625X0.250 | C69: 17.03741328 | D69: 4.68 | F69: HSS6X4X1/8 | G69: 8.149039639 | I69: S12X40.8 | J69: 40.8
B70: HSS6X0.280 | C70: 17.1213309 | D70: 4.69 | F70: HSS7X3X1/8 | G70: 8.149039639 | I70: S15X42.9 | J70: 42.9
B71: HSS6.875X0.250 | C71: =VLOOKUP(B71,StlSects,4) -> 17.70554714 | D71: 4.86 | F71: HSS8X2X1/8 | G71: =VLOOKUP(F71,StlSects,4) -> 8.149039639 | I71: W14X43 | J71: =VLOOKUP(I71,StlSects,4) -> 43
B72: HSS7X0.250 | C72: 18.03961407 | D72: =VLOOKUP(B72,StlSects,5) -> 4.95 | F72: HSS2-1/2X2-1/2X5/16 | G72: 8.398394549 | I72: W21X44 | J72: 44
B73: HSS5X0.375 | C73: 18.54071446 | D73: 5.1 | F73: HSS3X2X5/16 | G73: 8.407486771 | I73: W10X45 | J73: 45
B74: HSS9.625X0.188 | C74: 18.96597898 | D74: 5.17 | F74: HSS3X3X1/4 | G74: 8.778015748 | I74: W12X45 | J74: 45
B75: HSS6X0.312 | C75: 18.97132405 | D75: 5.22 | F75: HSS4X2X1/4 | G75: 8.778015748 | I75: W16X45 | J75: 45
B76: HSS6.625X0.280 | C76: 18.99210569 | D76: 5.2 | F76: HSS5X2-1/2X3/16 | G76: 8.785810854 | I76: W18X46 | J76: 46
B77: HSS7.500X0.250 | C77: 19.37588177 | D77: 5.32 | F77: HSS5-1/2X5-1/2X1/8 | G77: 8.999734083 | I77: W14X48 | J77: 48
B78: HSS10X0.188 | C78: 19.71963397 | D78: 5.37 | F78: HSS6X5X1/8 | G78: 8.999734083 | I78: W21X48 | J78: 48
B79: HSS5.500X0.375 | C79: 20.54511602 | D79: 5.65 | F79: HSS7X4X1/8 | G79: 8.999734083 | I79: W8X48 | J79: 48
B80: HSS5.563X0.375 | C80: 20.79767062 | D80: 5.72 | F80: HSS8X3X1/8 | G80: 8.999734083 | I80: W10X49 | J80: 49
B81: HSS6.625X0.312 | C81: 21.05590168 | D81: 5.79 | F81: HSS4X4X3/16 | G81: 9.403047521 | I81: S12X50 | J81: 50
B82: HSS6.875X0.312 | C82: 21.88973273 | D82: 6.02 | F82: HSS5X3X3/16 | G82: 9.425533076 | I82: S15X50 | J82: 50
B83: HSS7X0.312 | C83: 22.30664825 | D83: 6.13 | F83: HSS6X2X3/16 | G83: 9.425533076 | I83: W12X50 | J83: 50
B84: HSS8.625X0.250 | C84: 22.38248412 | D84: 6.14 | F84: HSS3X2-1/2X5/16 | G84: 9.472556215 | I84: W16X50 | J84: 50
B85: HSS6X0.375 | C85: 22.54951758 | D85: 6.2 | F85: HSS4X2-1/2X1/4 | G85: 9.628710192 | I85: W18X50 | J85: 50
B86: HSS7.500X0.312 | C86: 23.97431035 | D86: 6.59 | F86: HSS10X2X1/8 | G86: 9.850428528 | I86: W21X50 | J86: 50
B87: HSS5X0.500 | C87: 24.05281875 | D87: 6.62 | F87: HSS6X6X1/8 | G87: 9.850428528 | I87: W12X53 | J87: 53
B88: HSS6.625X0.375 | C88: 25.05501954 | D88: 6.88 | F88: HSS7X5X1/8 | G88: 9.850428528 | I88: W14X53 | J88: 53
B89: HSS9.625X0.250 | C89: 25.05501954 | D89: 6.87 | F89: HSS8X4X1/8 | G89: 9.850428528 | I89: W10X54 | J89: 54
B90: HSS7.625X0.328 | C90: 25.58595611 | D90: 7.01 | F90: HSS3-1/2X3-1/2X1/4 | G90: 10.47940464 | I90: S18X54.7 | J90: 54.7
B91: HSS10X0.250 | C91: 26.05722032 | D91: 7.15 | F91: HSS4X3X1/4 | G91: 10.47940464 | I91: W18X55 | J91: 55
B92: HSS6.875X0.375 | C92: 26.05722032 | D92: 7.16 | F92: HSS5X2X1/4 | G92: 10.47940464 | I92: W21X55 | J92: 55
B93: HSS7X0.375 | C93: 26.55832071 | D93: 7.29 | F93: HSS3X3X5/16 | G93: 10.52513066 | I93: W24X55 | J93: 55
B94: HSS5.500X0.500 | C94: 26.72535417 | D94: 7.36 | F94: HSS4X2X5/16 | G94: 10.53762566 | I94: W16X57 | J94: 57
B95: HSS5.563X0.500 | C95: 27.06209363 | D95: 7.45 | F95: HSS4-1/2X4-1/2X3/16 | G95: 10.67908919 | I95: W21X57 | J95: 57
B96: HSS10.750X0.250 | C96: 28.06162188 | D96: 7.7 | F96: HSS10X3X1/8 | G96: 10.70112297 | I96: W12X58 | J96: 58
B97: HSS7.500X0.375 | C97: 28.56272227 | D97: 7.84 | F97: HSS5X4X3/16 | G97: 10.70497752 | I97: W8X58 | J97: 58
B98: HSS8.625X0.322 | C98: 28.5807993 | D98: 7.85 | F98: HSS6X3X3/16 | G98: 10.70497752 | I98: W10X60 | J98: 60
B99: HSS6.625X0.432 | C99: 28.60014846 | D99: 7.86 | F99: HSS7X2X3/16 | G99: 10.70497752 | I99: W18X60 | J99: 60
B100: HSS7.625X0.375 | C100: 29.06382266 | D100: 7.98 | F100: HSS10X3-1/2X1/8 | G100: 11.12647019 | I100: W14X61 | J100: 61
B101: HSS6X0.500 | C101: 29.39788959 | D101: 8.09 | F101: HSS5X2-1/2X1/4 | G101: 11.33009908 | I101: W21X62 | J101: 62
B102: HSS9.625X0.312 | C102: 31.06187428 | D102: 8.53 | F102: HSS10X4X1/8 | G102: 11.55181742 | I102: W24X62 | J102: 62
B103: HSS10X0.312 | C103: =VLOOKUP(B103,StlSects,4) -> 32.31262086 | D103: 8.88 | F103: HSS7X7X1/8 | G103: 11.55181742 | I103: W12X65 | J103: 65
B104: HSS6.625X0.500 | C104: 32.73855886 | D104: =VLOOKUP(B104,StlSects,5) -> 9 | F104: HSS4X2-1/2X5/16 | G104: 11.6026951 | I104: W18X65 | J104: 65
B105: HSS8.625X0.375 | C105: 33.07262579 | D105: 9.07 | F105: HSS5X5X3/16 | G105: 11.95513085 | I105: S20X66 | J105: 66
B106: HSS12.750X0.250 | C106: 33.40669271 | D106: 9.16 | F106: HSS6X4X3/16 | G106: 11.98442197 | I106: W16X67 | J106: 67
B107: HSS6.875X0.500 | C107: 34.07482657 | D107: 9.36 | F107: HSS7X3X3/16 | G107: 11.98442197 | I107: W8X67 | J107: 67
B108: HSS7X0.500 | C108: 34.74296042 | D108: 9.55 | F108: HSS8X2X3/16 | G108: 11.98442197 | I108: W10X68 | J108: 68
B109: HSS14X0.250 | C109: 36.74736199 | D109: 10.1 | F109: HSS3X3X3/8 | G109: 12.09329317 | I109: W14X68 | J109: 68
B110: HSS9.625X0.375 | C110: 37.08142891 | D110: 10.2 | F110: HSS4X2X3/8 | G110: 12.09329317 | I110: W21X68 | J110: 68
B111: HSS7.500X0.500 | C111: 37.41549584 | D111: 10.3 | F111: HSS4X4X1/4 | G111: 12.18079353 | I111: W24X68 | J111: 68
B112: HSS10X0.375 | C112: 38.58473008 | D112: 10.6 | F112: HSS5X3X1/4 | G112: 12.18079353 | I112: S18X70 | J112: 70
B113: HSS10.750X0.375 | C113: 41.59133243 | D113: 11.4 | F113: HSS6X2X1/4 | G113: 12.18079353 | I113: W18X71 | J113: 71
B114: HSS16X0.250 | C114: 42.09243282 | D114: 11.5 | F114: HSS3-1/2X3-1/2X5/16 | G114: 12.65186677 | I114: W12X72 | J114: 72
B115: HSS8.625X0.500 | C115: 43.42870053 | D115: 11.9 | F115: HSS4X3X5/16 | G115: 12.66776455 | I115: W21X73 | J115: 73
B116: HSS14X0.312 | C116: 45.65391766 | D116: 12.5 | F116: HSS5X2X5/16 | G116: 12.66776455 | I116: W14X74 | J116: 74
B117: HSS9.625X0.500 | C117: 48.77377136 | D117: 13.4 | F117: HSS5-1/2X5-1/2X3/16 | G117: 13.23117252 | I117: S20X75 | J117: 75
B118: HSS12.750X0.375 | C118: 49.60893868 | D118: 13.6 | F118: HSS8X8X1/8 | G118: 13.25320631 | I118: W18X76 | J118: 76
B119: HSS10X0.500 | C119: 50.77817293 | D119: 13.9 | F119: HSS6X5X3/16 | G119: 13.26386641 | I119: W24X76 | J119: 76
B120: HSS16X0.312 | C120: 52.32456606 | D120: 14.4 | F120: HSS7X4X3/16 | G120: 13.26386641 | I120: W10X77 | J120: 77
B121: HSS8.625X0.625 | C121: 53.45070834 | D121: 14.7 | F121: HSS8X3X3/16 | G121: 13.26386641 | I121: W16X77 | J121: 77
B122: HSS14X0.375 | C122: 54.61994259 | D122: 15 | F122: HSS4X2-1/2X3/8 | G122: 13.36933484 | I122: W12X79 | J122: 79
B123: HSS10.750X0.500 | C123: 54.78697605 | D123: 15 | F123: HSS4-1/2X4-1/2X1/4 | G123: 13.88218241 | I123: S24X80 | J123: 80
B124: HSS10X0.625 | C124: 62.63754884 | D124: 17.2 | F124: HSS5X4X1/4 | G124: 13.88218241 | I124: W14X82 | J124: 82
B125: HSS16X0.375 | C125: 62.63754884 | D125: 17.2 | F125: HSS6X3X1/4 | G125: 13.88218241 | I125: W21X83 | J125: 83
B126: HSS12.750X0.500 | C126: 65.47711772 | D126: 17.9 | F126: HSS7X2X1/2 | G126: 13.88218241 | I126: W24X84 | J126: 84
B127: HSS18X0.375 | C127: 70.65515509 | D127: 19.4 | F127: HSS6X6X3/16 | G127: 14.50721419 | I127: W27X84 | J127: 84
B128: HSS14X0.500 | C128: 72.15845626 | D128: 19.8 | F128: HSS10X2X3/16 | G128: 14.54331085 | I128: S20X86 | J128: 86
B129: HSS16X0.438 | C129: 72.86567327 | D129: 19.9 | F129: HSS7X5X3/16 | G129: 14.54331085 | I129: W18X86 | J129: 86
B130: HSS20X0.375 | C130: 78.67276134 | D130: 21.5 | F130: HSS8X4X3/16 | G130: 14.54331085 | I130: W12X87 | J130: 87
B131: HSS16X0.500 | C131: 82.84859793 | D131: 22.7 | F131: HSS9X3X3/16 | G131: 14.54331085 | I131: W10X88 | J131: 88
B132: HSS14X0.625 | C132: 89.36290301 | D132: 24.5 | F132: HSS3-1/2X3-1/2X3/8 | G132: 14.6453765 | I132: W16X89 | J132: 89
B133: HSS18X0.500 | C133: 93.5387396 | D133: 25.6 | F133: HSS4X3X3/8 | G133: 14.6453765 | I133: S24X90 | J133: 90
B134: HSS16X0.625 | C134: 103 | D134: 28.1 | F134: HSS5X2X3/8 | G134: 14.6453765 | I134: W14X90 | J134: 90
B135: HSS20X0.500 | C135: =VLOOKUP(B135,StlSects,4) -> 104 | D135: 28.5 | F135: HSS4X4X5/16 | G135: =VLOOKUP(F135,StlSects,4) -> 14.77860288 | I135: W30X90 | J135: =VLOOKUP(I135,StlSects,4) -> 90
F136: HSS5X3X5/16 | G136: 14.79790344 | I136: W21X93 | J136: 93
F137: HSS6X2X5/16 | G137: 14.79790344 | I137: W24X94 | J137: 94
F138: HSS9X9X1/8 | G138: 14.95459519 | I138: W27X94 | J138: 94
F139: HSS5X5X1/4 | G139: 15.5835713 | I139: S20X96 | J139: 96
F140: HSS6X4X1/4 | G140: 15.5835713 | I140: W12X96 | J140: 96
F141: HSS7X3X1/4 | G141: 15.5835713 | I141: W18X97 | J141: 97
F142: HSS8X2X1/4 | G142: 15.5835713 | I142: W14X99 | J142: 99
F143: HSS10X3X3/16 | G143: 15.8227553 | I143: W30X99 | J143: 99
F144: HSS10X3-1/2X3/16 | G144: 16.46247752 | I144: S24X100 | J144: 100
F145: HSS4-1/2X4-1/2X5/16 | G145: 16.90533899 | I145: W10X100 | J145: 100
F146: HSS5X4X5/16 | G146: 16.92804233 | I146: W16X100 | J146: 100
F147: HSS6X3X5/16 | G147: 16.92804233 | I147: W21X101 | J147: 101
F148: HSS7X7X3/16 | G148: 17.05929752 | I148: W27X102 | J148: 102
F149: HSS10X4X3/16 | G149: 17.10219974 | I149: W24X103 | J149: 103
F150: HSS12X2X3/16 | G150: 17.10219974 | I150: W24X104 | J150: 104
F151: HSS8X6X3/16 | G151: 17.10219974 | I151: S24X106 | J151: 106
F152: HSS9X5X3/16 | G152: 17.10219974 | I152: W12X106 | J152: 106
F153: HSS4X4X3/8 | G153: 17.19745984 | I153: W18X106 | J153: 106
F154: HSS5X3X3/8 | G154: 17.19745984 | I154: W30X108 | J154: 108
F155: HSS6X2X3/8 | G155: 17.19745984 | I155: W14X109 | J155: 109
F156: HSS5-1/2X5-1/2X1/4 | G156: 17.28496019 | I156: W21X111 | J156: 111
F157: HSS6X5X1/4 | G157: 17.28496019 | I157: W10X112 | J157: 112
F158: HSS7X4X1/4 | G158: 17.28496019 | I158: W27X114 | J158: 114
F159: HSS8X3X1/4 | G159: 17.28496019 | I159: W30X116 | J159: 116
F160: HSS10X5X3/16 | G160: 18.38164419 | I160: W24X117 | J160: 117
F161: HSS12X3X3/16 | G161: 18.38164419 | I161: W33X118 | J161: 118
F162: HSS10X2X1/4 | G162: 18.98634908 | I162: W18X119 | J162: 119
F163: HSS6X6X1/4 | G163: 18.98634908 | I163: W12X120 | J163: 120
F164: HSS7X5X1/4 | G164: 18.98634908 | I164: W14X120 | J164: 120
F165: HSS8X4X1/4 | G165: 18.98634908 | I165: S24X121 | J165: 121
F166: HSS9X3X1/4 | G166: 18.98634908 | I166: W21X122 | J166: 122
F167: HSS5X5X5/16 | G167: 19.0320751 | I167: W30X124 | J167: 124
F168: HSS6X4X5/16 | G168: 19.05818122 | I168: W27X129 | J168: 129
F169: HSS7X3X5/16 | G169: 19.05818122 | I169: W18X130 | J169: 130
F170: HSS8X2X5/16 | G170: 19.05818122 | I170: W33X130 | J170: 130
F171: HSS8X8X3/16 | G171: 19.61138085 | I171: W24X131 | J171: 131
F172: HSS10X6X3/16 | G172: 19.66108863 | I172: W14X132 | J172: 132
F173: HSS12X4X3/16 | G173: 19.66108863 | I173: W21X132 | J173: 132
F174: HSS9X7X3/16 | G174: 19.66108863 | I174: W30X132 | J174: 132
F175: HSS4-1/2X4-1/2X3/8 | G175: 19.74954317 | I175: W36X135 | J175: 135
F176: HSS5X4X3/8 | G176: 19.74954317 | I176: W12X136 | J176: 136
F177: HSS6X3X3/8 | G177: 19.74954317 | I177: W33X141 | J177: 141
F178: HSS10X3X1/4 | G178: 20.68773797 | I178: W18X143 | J178: 143
F179: HSS5-1/2X5-1/2X5/16 | G179: 21.15881122 | I179: W14X145 | J179: 145
F180: HSS6X5X5/16 | G180: 21.1883201 | I180: W24X146 | J180: 146
F181: HSS7X4X5/16 | G181: 21.1883201 | I181: W27X146 | J181: 146
F182: HSS8X3X5/16 | G182: 21.1883201 | I182: W21X147 | J182: 147
F183: HSS4X4X1/2 | G183: 21.49831654 | I183: W30X148 | J183: 148
F184: HSS5X3X1/2 | G184: 21.49831654 | I184: W40X149 | J184: 149
F185: HSS10X3-1/2X1/4 | G185: 21.53843241 | I185: W36X150 | J185: 150
F186: HSS14X4X3/16 | G186: 22.11825352 | I186: W12X152 | J186: 152
F187: HSS9X9X3/16 | G187: 22.16346419 | I187: W33X152 | J187: 152
F188: HSS10X8X3/16 | G188: 22.21997752 | I188: W18X158 | J188: 158
F189: HSS12X6X3/16 | G189: 22.21997752 | I189: W14X159 | J189: 159
F190: HSS5X5X3/8 | G190: 22.3016265 | I190: W36X160 | J190: 160
F191: HSS6X4X3/8 | G191: 22.3016265 | I191: W27X161 | J191: 161
F192: HSS7X3X3/8 | G192: 22.3016265 | I192: W24X162 | J192: 162
F193: HSS8X2X3/8 | G193: 22.3016265 | I193: W21X166 | J193: 166
F194: HSS10X4X1/4 | G194: 22.38912686 | I194: W40X167 | J194: 167
F195: HSS12X2X1/4 | G195: 22.38912686 | I195: W33X169 | J195: 169
F196: HSS7X7X1/4 | G196: 22.38912686 | I196: W12X170 | J196: 170
F197: HSS8X6X1/4 | G197: 22.38912686 | I197: W36X170 | J197: 170
F198: HSS9X5X1/4 | G198: 22.38912686 | I198: W30X173 | J198: 173
F199: HSS6X6X5/16 | G199: =VLOOKUP(F199,StlSects,4) -> 23.28554733 | I199: W18X175 | J199: =VLOOKUP(I199,StlSects,4) -> 175
F200: HSS10X2X5/16 | G200: 23.31845899 | I200: W14X176 | J200: 176
F201: HSS7X5X5/16 | G201: 23.31845899 | I201: W24X176 | J201: 176
F202: HSS8X4X5/16 | G202: 23.31845899 | I202: W27X178 | J202: 178
F203: HSS9X3X5/16 | G203: 23.31845899 | I203: W21X182 | J203: 182
F204: HSS10X5X1/4 | G204: 24.09051575 | I204: W36X182 | J204: 182
F205: HSS12X3X1/4 | G205: 24.09051575 | I205: W40X183 | J205: 183
... 164 more rows

Sheet StlSects
A1: 1 | B1: 2 | C1: 3 | D1: 4 | E1: 5 | F1: 6 | G1: 7 | H1: 8 | I1: 9 | J1: 10 | K1: 11 | L1: 12 | M1: 13 | N1: 14 | O1: 15 | P1: 16 | Q1: 17 | R1: 18 | S1: 19 | T1: 20 | U1: 21 | V1: 22 | W1: 23 | X1: 24 | Y1: 25 | Z1: 26 | AA1: 27 | AB1: 28 | AC1: 29 | AD1: 30 | AE1: 31 | AF1: 32 | AG1: 33 | AH1: 34 | AI1: 35 | AJ1: 36 | AK1: 37 | AL1: 38 | AM1: 39 | AN1: 40 | AO1: 41 | AP1: 42 | AQ1: 43 | AR1: 44 | AS1: 45 | AT1: 46 | AU1: 47 | AV1: 48 | AW1: 49
A2: AISC_MANUAL_LABEL | B2: TYPE | C2: T_F | D2: W | E2: A | F2: D | G2: HT | H2: OD | I2: BF | J2: B | K2: ID | L2: TW | M2: TF | N2: T | O2: TNOM | P2: TDES | Q2: KDES | R2: KDET | S2: K1 | T2: X | U2: Y | V2: E0 | W2: XP | X2: YP | Y2: BF_2TF | Z2: B_T | AA2: H_TW | AB2: H_T | AC2: D_T | AD2: IX | AE2: ZX | AF2: SX | AG2: RX | AH2: IY | AI2: ZY | AJ2: SY | AK2: RY | AL2: RZ | AM2: J | AN2: CW | AO2: C | AP2: WNO | AQ2: SW | AR2: QF | AS2: QW | AT2: RO | AU2: H | AV2: TAN_ALPHA | AW2: QS
A3: C10X15.3 | B3: C | C3: F | D3: 15.3 | E3: 4.48 | F3: 10 | G3: 0 | H3: 0 | I3: 2.6 | J3: 0 | K3: 0 | L3: 0.24 | M3: 0.436 | N3: 0 | O3: 0 | P3: 0 | Q3: 1 | R3: 1 | S3: 0 | T3: 0.634 | U3: 0 | V3: 0.796 | W3: 0.224 | X3: 0 | Y3: 0 | Z3: 0 | AA3: 0 | AB3: 0 | AC3: 0 | AD3: 67.3 | AE3: 15.9 | AF3: 13.5 | AG3: 3.87 | AH3: 2.27 | AI3: 2.34 | AJ3: 1.15 | AK3: 0.711 | AL3: 0 | AM3: 0.209 | AN3: 45.5 | AO3: 0 | AP3: 0 | AQ3: 0 | AR3: 0 | AS3: 0 | AT3: 4.19 | AU3: 0.884 | AV3: 0 | AW3: 0
A4: C10X20 | B4: C | C4: F | D4: 20 | E4: 5.87 | F4: 10 | G4: 0 | H4: 0 | I4: 2.74 | J4: 0 | K4: 0 | L4: 0.379 | M4: 0.436 | N4: 0 | O4: 0 | P4: 0 | Q4: 1 | R4: 1 | S4: 0 | T4: 0.606 | U4: 0 | V4: 0.636 | W4: 0.294 | X4: 0 | Y4: 0 | Z4: 0 | AA4: 0 | AB4: 0 | AC4: 0 | AD4: 78.9 | AE4: 19.4 | AF4: 15.8 | AG4: 3.66 | AH4: 2.8 | AI4: 2.7 | AJ4: 1.31 | AK4: 0.69 | AL4: 0 | AM4: 0.368 | AN4: 56.9 | AO4: 0 | AP4: 0 | AQ4: 0 | AR4: 0 | AS4: 0 | AT4: 3.93 | AU4: 0.9 | AV4: 0 | AW4: 0
A5: C10X25 | B5: C | C5: F | D5: 25 | E5: 7.34 | F5: 10 | G5: 0 | H5: 0 | I5: 2.89 | J5: 0 | K5: 0 | L5: 0.526 | M5: 0.436 | N5: 0 | O5: 0 | P5: 0 | Q5: 1 | R5: 1 | S5: 0 | T5: 0.617 | U5: 0 | V5: 0.494 | W5: 0.367 | X5: 0 | Y5: 0 | Z5: 0 | AA5: 0 | AB5: 0 | AC5: 0 | AD5: 91.1 | AE5: 23.1 | AF5: 18.2 | AG5: 3.52 | AH5: 3.34 | AI5: 3.18 | AJ5: 1.47 | AK5: 0.675 | AL5: 0 | AM5: 0.687 | AN5: 68.3 | AO5: 0 | AP5: 0 | AQ5: 0 | AR5: 0 | AS5: 0 | AT5: 3.76 | AU5: 0.912 | AV5: 0 | AW5: 0
A6: C10X30 | B6: C | C6: F | D6: 30 | E6: 8.81 | F6: 10 | G6: 0 | H6: 0 | I6: 3.03 | J6: 0 | K6: 0 | L6: 0.673 | M6: 0.436 | N6: 0 | O6: 0 | P6: 0 | Q6: 1 | R6: 1 | S6: 0 | T6: 0.649 | U6: 0 | V6: 0.368 | W6: 0.441 | X6: 0 | Y6: 0 | Z6: 0 | AA6: 0 | AB6: 0 | AC6: 0 | AD6: 103 | AE6: 26.7 | AF6: 20.7 | AG6: 3.42 | AH6: 3.93 | AI6: 3.78 | AJ6: 1.65 | AK6: 0.668 | AL6: 0 | AM6: 1.22 | AN6: 79.5 | AO6: 0 | AP6: 0 | AQ6: 0 | AR6: 0 | AS6: 0 | AT6: 3.63 | AU6: 0.921 | AV6: 0 | AW6: 0
A7: C12X20.7 | B7: C | C7: F | D7: 20.7 | E7: 6.08 | F7: 12 | G7: 0 | H7: 0 | I7: 2.94 | J7: 0 | K7: 0 | L7: 0.282 | M7: 0.501 | N7: 0 | O7: 0 | P7: 0 | Q7: 1.13 | R7: 1.125 | S7: 0 | T7: 0.698 | U7: 0 | V7: 0.87 | W7: 0.253 | X7: 0 | Y7: 0 | Z7: 0 | AA7: 0 | AB7: 0 | AC7: 0 | AD7: 129 | AE7: 25.6 | AF7: 21.5 | AG7: 4.61 | AH7: 3.86 | AI7: 3.47 | AJ7: 1.72 | AK7: 0.797 | AL7: 0 | AM7: 0.369 | AN7: 112 | AO7: 0 | AP7: 0 | AQ7: 0 | AR7: 0 | AS7: 0 | AT7: 4.93 | AU7: 0.899 | AV7: 0 | AW7: 0
A8: C12X25 | B8: C | C8: F | D8: 25 | E8: 7.34 | F8: 12 | G8: 0 | H8: 0 | I8: 3.05 | J8: 0 | K8: 0 | L8: 0.387 | M8: 0.501 | N8: 0 | O8: 0 | P8: 0 | Q8: 1.13 | R8: 1.125 | S8: 0 | T8: 0.674 | U8: 0 | V8: 0.746 | W8: 0.306 | X8: 0 | Y8: 0 | Z8: 0 | AA8: 0 | AB8: 0 | AC8: 0 | AD8: 144 | AE8: 29.4 | AF8: 24 | AG8: 4.43 | AH8: 4.45 | AI8: 3.82 | AJ8: 1.87 | AK8: 0.779 | AL8: 0 | AM8: 0.538 | AN8: 130 | AO8: 0 | AP8: 0 | AQ8: 0 | AR8: 0 | AS8: 0 | AT8: 4.72 | AU8: 0.909 | AV8: 0 | AW8: 0
A9: C12X30 | B9: C | C9: F | D9: 30 | E9: 8.81 | F9: 12 | G9: 0 | H9: 0 | I9: 3.17 | J9: 0 | K9: 0 | L9: 0.51 | M9: 0.501 | N9: 0 | O9: 0 | P9: 0 | Q9: 1.13 | R9: 1.125 | S9: 0 | T9: 0.674 | U9: 0 | V9: 0.618 | W9: 0.367 | X9: 0 | Y9: 0 | Z9: 0 | AA9: 0 | AB9: 0 | AC9: 0 | AD9: 162 | AE9: 33.8 | AF9: 27 | AG9: 4.29 | AH9: 5.12 | AI9: 4.32 | AJ9: 2.05 | AK9: 0.762 | AL9: 0 | AM9: 0.861 | AN9: 151 | AO9: 0 | AP9: 0 | AQ9: 0 | AR9: 0 | AS9: 0 | AT9: 4.54 | AU9: 0.919 | AV9: 0 | AW9: 0
A10: C15X33.9 | B10: C | C10: F | D10: 33.9 | E10: 10 | F10: 15 | G10: 0 | H10: 0 | I10: 3.4 | J10: 0 | K10: 0 | L10: 0.4 | M10: 0.65 | N10: 0 | O10: 0 | P10: 0 | Q10: 1.44 | R10: 1.4375 | S10: 0 | T10: 0.788 | U10: 0 | V10: 0.896 | W10: 0.332 | X10: 0 | Y10: 0 | Z10: 0 | AA10: 0 | AB10: 0 | AC10: 0 | AD10: 315 | AE10: 50.8 | AF10: 42 | AG10: 5.62 | AH10: 8.07 | AI10: 6.19 | AJ10: 3.09 | AK10: 0.901 | AL10: 0 | AM10: 1.01 | AN10: 358 | AO10: 0 | AP10: 0 | AQ10: 0 | AR10: 0 | AS10: 0 | AT10: 5.94 | AU10: 0.92 | AV10: 0 | AW10: 0
A11: C15X40 | B11: C | C11: F | D11: 40 | E11: 11.8 | F11: 15 | G11: 0 | H11: 0 | I11: 3.52 | J11: 0 | K11: 0 | L11: 0.52 | M11: 0.65 | N11: 0 | O11: 0 | P11: 0 | Q11: 1.44 | R11: 1.4375 | S11: 0 | T11: 0.778 | U11: 0 | V11: 0.767 | W11: 0.392 | X11: 0 | Y11: 0 | Z11: 0 | AA11: 0 | AB11: 0 | AC11: 0 | AD11: 348 | AE11: 57.5 | AF11: 46.5 | AG11: 5.45 | AH11: 9.17 | AI11: 6.84 | AJ11: 3.34 | AK11: 0.883 | AL11: 0 | AM11: 1.45 | AN11: 410 | AO11: 0 | AP11: 0 | AQ11: 0 | AR11: 0 | AS11: 0 | AT11: 5.71 | AU11: 0.927 | AV11: 0 | AW11: 0
A12: C15X50 | B12: C | C12: F | D12: 50 | E12: 14.7 | F12: 15 | G12: 0 | H12: 0 | I12: 3.72 | J12: 0 | K12: 0 | L12: 0.716 | M12: 0.65 | N12: 0 | O12: 0 | P12: 0 | Q12: 1.44 | R12: 1.4375 | S12: 0 | T12: 0.799 | U12: 0 | V12: 0.583 | W12: 0.49 | X12: 0 | Y12: 0 | Z12: 0 | AA12: 0 | AB12: 0 | AC12: 0 | AD12: 404 | AE12: 68.5 | AF12: 53.8 | AG12: 5.24 | AH12: 11 | AI12: 8.14 | AJ12: 3.77 | AK12: 0.865 | AL12: 0 | AM12: 2.65 | AN12: 492 | AO12: 0 | AP12: 0 | AQ12: 0 | AR12: 0 | AS12: 0 | AT12: 5.49 | AU12: 0.937 | AV12: 0 | AW12: 0
A13: C3X3.5 | B13: C | C13: F | D13: 3.5 | E13: 1.09 | F13: 3 | G13: 0 | H13: 0 | I13: 1.37 | J13: 0 | K13: 0 | L13: 0.132 | M13: 0.273 | N13: 0 | O13: 0 | P13: 0 | Q13: 0.688 | R13: 0.6875 | S13: 0 | T13: 0.443 | U13: 0 | V13: 0.493 | W13: 0.296 | X13: 0 | Y13: 0 | Z13: 0 | AA13: 0 | AB13: 0 | AC13: 0 | AD13: 1.57 | AE13: 1.24 | AF13: 1.04 | AG13: 1.2 | AH13: 0.169 | AI13: 0.364 | AJ13: 0.182 | AK13: 0.394 | AL13: 0 | AM13: 0.0226 | AN13: 0.276 | AO13: 0 | AP13: 0 | AQ13: 0 | AR13: 0 | AS13: 0 | AT13: 1.57 | AU13: 0.646 | AV13: 0 | AW13: 0
A14: C3X4.1 | B14: C | C14: F | D14: 4.1 | E14: 1.2 | F14: 3 | G14: 0 | H14: 0 | I14: 1.41 | J14: 0 | K14: 0 | L14: 0.17 | M14: 0.273 | N14: 0 | O14: 0 | P14: 0 | Q14: 0.688 | R14: 0.6875 | S14: 0 | T14: 0.437 | U14: 0 | V14: 0.461 | W14: 0.262 | X14: 0 | Y14: 0 | Z14: 0 | AA14: 0 | AB14: 0 | AC14: 0 | AD14: 1.65 | AE14: 1.32 | AF14: 1.1 | AG14: 1.17 | AH14: 0.191 | AI14: 0.399 | AJ14: 0.196 | AK14: 0.398 | AL14: 0 | AM14: 0.0269 | AN14: 0.307 | AO14: 0 | AP14: 0 | AQ14: 0 | AR14: 0 | AS14: 0 | AT14: 1.53 | AU14: 0.655 | AV14: 0 | AW14: 0
A15: C3X5 | B15: C | C15: F | D15: 5 | E15: 1.47 | F15: 3 | G15: 0 | H15: 0 | I15: 1.5 | J15: 0 | K15: 0 | L15: 0.258 | M15: 0.273 | N15: 0 | O15: 0 | P15: 0 | Q15: 0.688 | R15: 0.6875 | S15: 0 | T15: 0.439 | U15: 0 | V15: 0.392 | W15: 0.245 | X15: 0 | Y15: 0 | Z15: 0 | AA15: 0 | AB15: 0 | AC15: 0 | AD15: 1.85 | AE15: 1.52 | AF15: 1.23 | AG15: 1.12 | AH15: 0.241 | AI15: 0.464 | AJ15: 0.228 | AK15: 0.405 | AL15: 0 | AM15: 0.0425 | AN15: 0.379 | AO15: 0 | AP15: 0 | AQ15: 0 | AR15: 0 | AS15: 0 | AT15: 1.45 | AU15: 0.673 | AV15: 0 | AW15: 0
A16: C3X6 | B16: C | C16: F | D16: 6 | E16: 1.76 | F16: 3 | G16: 0 | H16: 0 | I16: 1.6 | J16: 0 | K16: 0 | L16: 0.356 | M16: 0.273 | N16: 0 | O16: 0 | P16: 0 | Q16: 0.688 | R16: 0.6875 | S16: 0 | T16: 0.455 | U16: 0 | V16: 0.322 | W16: 0.294 | X16: 0 | Y16: 0 | Z16: 0 | AA16: 0 | AB16: 0 | AC16: 0 | AD16: 2.07 | AE16: 1.74 | AF16: 1.38 | AG16: 1.08 | AH16: 0.3 | AI16: 0.543 | AJ16: 0.263 | AK16: 0.413 | AL16: 0 | AM16: 0.0725 | AN16: 0.462 | AO16: 0 | AP16: 0 | AQ16: 0 | AR16: 0 | AS16: 0 | AT16: 1.4 | AU16: 0.69 | AV16: 0 | AW16: 0
A17: C4X4.5 | B17: C | C17: F | D17: 4.5 | E17: 1.38 | F17: 4 | G17: 0 | H17: 0 | I17: 1.58 | J17: 0 | K17: 0 | L17: 0.125 | M17: 0.296 | N17: 0 | O17: 0 | P17: 0 | Q17: 0.75 | R17: 0.75 | S17: 0 | T17: 0.493 | U17: 0 | V17: 0.587 | W17: 0.321 | X17: 0 | Y17: 0 | Z17: 0 | AA17: 0 | AB17: 0 | AC17: 0 | AD17: 3.65 | AE17: 2.12 | AF17: 1.83 | AG17: 1.63 | AH17: 0.289 | AI17: 0.531 | AJ17: 0.265 | AK17: 0.457 | AL17: 0 | AM17: 0.0322 | AN17: 0.871 | AO17: 0 | AP17: 0 | AQ17: 0 | AR17: 0 | AS17: 0 | AT17: 2.01 | AU17: 0.71 | AV17: 0 | AW17: 0
A18: C4X5.4 | B18: C | C18: F | D18: 5.4 | E18: 1.58 | F18: 4 | G18: 0 | H18: 0 | I18: 1.58 | J18: 0 | K18: 0 | L18: 0.184 | M18: 0.296 | N18: 0 | O18: 0 | P18: 0 | Q18: 0.75 | R18: 0.75 | S18: 0 | T18: 0.457 | U18: 0 | V18: 0.501 | W18: 0.231 | X18: 0 | Y18: 0 | Z18: 0 | AA18: 0 | AB18: 0 | AC18: 0 | AD18: 3.85 | AE18: 2.29 | AF18: 1.92 | AG18: 1.56 | AH18: 0.312 | AI18: 0.565 | AJ18: 0.277 | AK18: 0.444 | AL18: 0 | AM18: 0.0399 | AN18: 0.921 | AO18: 0 | AP18: 0 | AQ18: 0 | AR18: 0 | AS18: 0 | AT18: 1.88 | AU18: 0.742 | AV18: 0 | AW18: 0
A19: C4X7.2 | B19: C | C19: F | D19: 7.2 | E19: 2.13 | F19: 4 | G19: 0 | H19: 0 | I19: 1.72 | J19: 0 | K19: 0 | L19: 0.321 | M19: 0.296 | N19: 0 | O19: 0 | P19: 0 | Q19: 0.75 | R19: 0.75 | S19: 0 | T19: 0.459 | U19: 0 | V19: 0.386 | W19: 0.266 | X19: 0 | Y19: 0 | Z19: 0 | AA19: 0 | AB19: 0 | AC19: 0 | AD19: 4.58 | AE19: 2.84 | AF19: 2.29 | AG19: 1.47 | AH19: 0.425 | AI19: 0.695 | AJ19: 0.337 | AK19: 0.447 | AL19: 0 | AM19: 0.0817 | AN19: 1.24 | AO19: 0 | AP19: 0 | AQ19: 0 | AR19: 0 | AS19: 0 | AT19: 1.75 | AU19: 0.767 | AV19: 0 | AW19: 0
A20: C5X6.7 | B20: C | C20: F | D20: 6.7 | E20: 1.97 | F20: 5 | G20: 0 | H20: 0 | I20: 1.75 | J20: 0 | K20: 0 | L20: 0.19 | M20: 0.32 | N20: 0 | O20: 0 | P20: 0 | Q20: 0.75 | R20: 0.75 | S20: 0 | T20: 0.484 | U20: 0 | V20: 0.552 | W20: 0.215 | X20: 0 | Y20: 0 | Z20: 0 | AA20: 0 | AB20: 0 | AC20: 0 | AD20: 7.48 | AE20: 3.55 | AF20: 2.99 | AG20: 1.95 | AH20: 0.47 | AI20: 0.757 | AJ20: 0.372 | AK20: 0.489 | AL20: 0 | AM20: 0.0549 | AN20: 2.22 | AO20: 0 | AP20: 0 | AQ20: 0 | AR20: 0 | AS20: 0 | AT20: 2.26 | AU20: 0.79 | AV20: 0 | AW20: 0
A21: C5X9 | B21: C | C21: F | D21: 9 | E21: 2.64 | F21: 5 | G21: 0 | H21: 0 | I21: 1.89 | J21: 0 | K21: 0 | L21: 0.325 | M21: 0.32 | N21: 0 | O21: 0 | P21: 0 | Q21: 0.75 | R21: 0.75 | S21: 0 | T21: 0.478 | U21: 0 | V21: 0.427 | W21: 0.264 | X21: 0 | Y21: 0 | Z21: 0 | AA21: 0 | AB21: 0 | AC21: 0 | AD21: 8.89 | AE21: 4.39 | AF21: 3.56 | AG21: 1.83 | AH21: 0.624 | AI21: 0.913 | AJ21: 0.444 | AK21: 0.486 | AL21: 0 | AM21: 0.109 | AN21: 2.93 | AO21: 0 | AP21: 0 | AQ21: 0 | AR21: 0 | AS21: 0 | AT21: 2.1 | AU21: 0.815 | AV21: 0 | AW21: 0
A22: C6X10.5 | B22: C | C22: F | D22: 10.5 | E22: 3.08 | F22: 6 | G22: 0 | H22: 0 | I22: 2.03 | J22: 0 | K22: 0 | L22: 0.314 | M22: 0.343 | N22: 0 | O22: 0 | P22: 0 | Q22: 0.813 | R22: 0.8125 | S22: 0 | T22: 0.5 | U22: 0 | V22: 0.486 | W22: 0.256 | X22: 0 | Y22: 0 | Z22: 0 | AA22: 0 | AB22: 0 | AC22: 0 | AD22: 15.1 | AE22: 6.18 | AF22: 5.04 | AG22: 2.22 | AH22: 0.86 | AI22: 1.14 | AJ22: 0.561 | AK22: 0.529 | AL22: 0 | AM22: 0.128 | AN22: 5.91 | AO22: 0 | AP22: 0 | AQ22: 0 | AR22: 0 | AS22: 0 | AT22: 2.48 | AU22: 0.842 | AV22: 0 | AW22: 0
A23: C6X13 | B23: C | C23: F | D23: 13 | E23: 3.81 | F23: 6 | G23: 0 | H23: 0 | I23: 2.16 | J23: 0 | K23: 0 | L23: 0.437 | M23: 0.343 | N23: 0 | O23: 0 | P23: 0 | Q23: 0.813 | R23: 0.8125 | S23: 0 | T23: 0.514 | U23: 0 | V23: 0.38 | W23: 0.318 | X23: 0 | Y23: 0 | Z23: 0 | AA23: 0 | AB23: 0 | AC23: 0 | AD23: 17.3 | AE23: 7.29 | AF23: 5.78 | AG23: 2.13 | AH23: 1.05 | AI23: 1.35 | AJ23: 0.638 | AK23: 0.524 | AL23: 0 | AM23: 0.237 | AN23: 7.19 | AO23: 0 | AP23: 0 | AQ23: 0 | AR23: 0 | AS23: 0 | AT23: 2.37 | AU23: 0.858 | AV23: 0 | AW23: 0
A24: C6X8.2 | B24: C | C24: F | D24: 8.2 | E24: 2.39 | F24: 6 | G24: 0 | H24: 0 | I24: 1.92 | J24: 0 | K24: 0 | L24: 0.2 | M24: 0.343 | N24: 0 | O24: 0 | P24: 0 | Q24: 0.813 | R24: 0.8125 | S24: 0 | T24: 0.512 | U24: 0 | V24: 0.599 | W24: 0.199 | X24: 0 | Y24: 0 | Z24: 0 | AA24: 0 | AB24: 0 | AC24: 0 | AD24: 13.1 | AE24: 5.16 | AF24: 4.35 | AG24: 2.34 | AH24: 0.687 | AI24: 0.987 | AJ24: 0.488 | AK24: 0.536 | AL24: 0 | AM24: 0.0736 | AN24: 4.7 | AO24: 0 | AP24: 0 | AQ24: 0 | AR24: 0 | AS24: 0 | AT24: 2.65 | AU24: 0.824 | AV24: 0 | AW24: 0
A25: C7X12.2 | B25: C | C25: F | D25: 12.2 | E25: 3.6 | F25: 7 | G25: 0 | H25: 0 | I25: 2.19 | J25: 0 | K25: 0 | L25: 0.314 | M25: 0.366 | N25: 0 | O25: 0 | P25: 0 | Q25: 0.875 | R25: 0.875 | S25: 0 | T25: 0.525 | U25: 0 | V25: 0.538 | W25: 0.257 | X25: 0 | Y25: 0 | Z25: 0 | AA25: 0 | AB25: 0 | AC25: 0 | AD25: 24.2 | AE25: 8.46 | AF25: 6.92 | AG25: 2.6 | AH25: 1.16 | AI25: 1.42 | AJ25: 0.696 | AK25: 0.568 | AL25: 0 | AM25: 0.161 | AN25: 11.2 | AO25: 0 | AP25: 0 | AQ25: 0 | AR25: 0 | AS25: 0 | AT25: 2.86 | AU25: 0.862 | AV25: 0 | AW25: 0
A26: C7X14.7 | B26: C | C26: F | D26: 14.7 | E26: 4.33 | F26: 7 | G26: 0 | H26: 0 | I26: 2.3 | J26: 0 | K26: 0 | L26: 0.419 | M26: 0.366 | N26: 0 | O26: 0 | P26: 0 | Q26: 0.875 | R26: 0.875 | S26: 0 | T26: 0.532 | U26: 0 | V26: 0.441 | W26: 0.309 | X26: 0 | Y26: 0 | Z26: 0 | AA26: 0 | AB26: 0 | AC26: 0 | AD26: 27.2 | AE26: 9.75 | AF26: 7.78 | AG26: 2.51 | AH26: 1.37 | AI26: 1.63 | AJ26: 0.772 | AK26: 0.561 | AL26: 0 | AM26: 0.267 | AN26: 13.1 | AO26: 0 | AP26: 0 | AQ26: 0 | AR26: 0 | AS26: 0 | AT26: 2.75 | AU26: 0.875 | AV26: 0 | AW26: 0
A27: C7X9.8 | B27: C | C27: F | D27: 9.8 | E27: 2.87 | F27: 7 | G27: 0 | H27: 0 | I27: 2.09 | J27: 0 | K27: 0 | L27: 0.21 | M27: 0.366 | N27: 0 | O27: 0 | P27: 0 | Q27: 0.875 | R27: 0.875 | S27: 0 | T27: 0.541 | U27: 0 | V27: 0.647 | W27: 0.205 | X27: 0 | Y27: 0 | Z27: 0 | AA27: 0 | AB27: 0 | AC27: 0 | AD27: 21.2 | AE27: 7.19 | AF27: 6.07 | AG27: 2.72 | AH27: 0.957 | AI27: 1.26 | AJ27: 0.617 | AK27: 0.578 | AL27: 0 | AM27: 0.0996 | AN27: 9.15 | AO27: 0 | AP27: 0 | AQ27: 0 | AR27: 0 | AS27: 0 | AT27: 3.02 | AU27: 0.845 | AV27: 0 | AW27: 0
A28: C8X11.5 | B28: C | C28: F | D28: 11.5 | E28: 3.37 | F28: 8 | G28: 0 | H28: 0 | I28: 2.26 | J28: 0 | K28: 0 | L28: 0.22 | M28: 0.39 | N28: 0 | O28: 0 | P28: 0 | Q28: 0.938 | R28: 0.9375 | S28: 0 | T28: 0.572 | U28: 0 | V28: 0.697 | W28: 0.211 | X28: 0 | Y28: 0 | Z28: 0 | AA28: 0 | AB28: 0 | AC28: 0 | AD28: 32.5 | AE28: 9.63 | AF28: 8.14 | AG28: 3.11 | AH28: 1.31 | AI28: 1.57 | AJ28: 0.775 | AK28: 0.623 | AL28: 0 | AM28: 0.13 | AN28: 16.5 | AO28: 0 | AP28: 0 | AQ28: 0 | AR28: 0 | AS28: 0 | AT28: 3.41 | AU28: 0.862 | AV28: 0 | AW28: 0
A29: C8X13.7 | B29: C | C29: F | D29: 13.7 | E29: 4.04 | F29: 8 | G29: 0 | H29: 0 | I29: 2.34 | J29: 0 | K29: 0 | L29: 0.303 | M29: 0.39 | N29: 0 | O29: 0 | P29: 0 | Q29: 0.938 | R29: 0.9375 | S29: 0 | T29: 0.554 | U29: 0 | V29: 0.604 | W29: 0.252 | X29: 0 | Y29: 0 | Z29: 0 | AA29: 0 | AB29: 0 | AC29: 0 | AD29: 36.1 | AE29: 11 | AF29: 9.02 | AG29: 2.99 | AH29: 1.52 | AI29: 1.73 | AJ29: 0.848 | AK29: 0.613 | AL29: 0 | AM29: 0.186 | AN29: 19.2 | AO29: 0 | AP29: 0 | AQ29: 0 | AR29: 0 | AS29: 0 | AT29: 3.26 | AU29: 0.874 | AV29: 0 | AW29: 0
A30: C8X18.7 | B30: C | C30: F | D30: 18.7 | E30: 5.51 | F30: 8 | G30: 0 | H30: 0 | I30: 2.53 | J30: 0 | K30: 0 | L30: 0.487 | M30: 0.39 | N30: 0 | O30: 0 | P30: 0 | Q30: 0.938 | R30: 0.9375 | S30: 0 | T30: 0.565 | U30: 0 | V30: 0.431 | W30: 0.344 | X30: 0 | Y30: 0 | Z30: 0 | AA30: 0 | AB30: 0 | AC30: 0 | AD30: 43.9 | AE30: 13.9 | AF30: 11 | AG30: 2.82 | AH30: 1.97 | AI30: 2.17 | AJ30: 1.01 | AK30: 0.598 | AL30: 0 | AM30: 0.434 | AN30: 25.1 | AO30: 0 | AP30: 0 | AQ30: 0 | AR30: 0 | AS30: 0 | AT30: 3.05 | AU30: 0.894 | AV30: 0 | AW30: 0
A31: C9X13.4 | B31: C | C31: F | D31: 13.4 | E31: 3.94 | F31: 9 | G31: 0 | H31: 0 | I31: 2.43 | J31: 0 | K31: 0 | L31: 0.233 | M31: 0.413 | N31: 0 | O31: 0 | P31: 0 | Q31: 1 | R31: 1 | S31: 0 | T31: 0.601 | U31: 0 | V31: 0.742 | W31: 0.219 | X31: 0 | Y31: 0 | Z31: 0 | AA31: 0 | AB31: 0 | AC31: 0 | AD31: 47.8 | AE31: 12.6 | AF31: 10.6 | AG31: 3.49 | AH31: 1.75 | AI31: 1.94 | AJ31: 0.954 | AK31: 0.666 | AL31: 0 | AM31: 0.168 | AN31: 28.2 | AO31: 0 | AP31: 0 | AQ31: 0 | AR31: 0 | AS31: 0 | AT31: 3.79 | AU31: 0.875 | AV31: 0 | AW31: 0
A32: C9X15 | B32: C | C32: F | D32: 15 | E32: 4.41 | F32: 9 | G32: 0 | H32: 0 | I32: 2.49 | J32: 0 | K32: 0 | L32: 0.285 | M32: 0.413 | N32: 0 | O32: 0 | P32: 0 | Q32: 1 | R32: 1 | S32: 0 | T32: 0.586 | U32: 0 | V32: 0.681 | W32: 0.245 | X32: 0 | Y32: 0 | Z32: 0 | AA32: 0 | AB32: 0 | AC32: 0 | AD32: 51 | AE32: 13.6 | AF32: 11.3 | AG32: 3.4 | AH32: 1.91 | AI32: 2.04 | AJ32: 1.01 | AK32: 0.659 | AL32: 0 | AM32: 0.208 | AN32: 31 | AO32: 0 | AP32: 0 | AQ32: 0 | AR32: 0 | AS32: 0 | AT32: 3.69 | AU32: 0.882 | AV32: 0 | AW32: 0
A33: C9X20 | B33: C | C33: F | D33: 20 | E33: 5.87 | F33: 9 | G33: 0 | H33: 0 | I33: 2.65 | J33: 0 | K33: 0 | L33: 0.448 | M33: 0.413 | N33: 0 | O33: 0 | P33: 0 | Q33: 1 | R33: 1 | S33: 0 | T33: 0.583 | U33: 0 | V33: 0.515 | W33: 0.326 | X33: 0 | Y33: 0 | Z33: 0 | AA33: 0 | AB33: 0 | AC33: 0 | AD33: 60.9 | AE33: 16.9 | AF33: 13.5 | AG33: 3.22 | AH33: 2.41 | AI33: 2.46 | AJ33: 1.17 | AK33: 0.64 | AL33: 0 | AM33: 0.427 | AN33: 39.4 | AO33: 0 | AP33: 0 | AQ33: 0 | AR33: 0 | AS33: 0 | AT33: 3.46 | AU33: 0.899 | AV33: 0 | AW33: 0
A34: HP10X42 | B34: HP | C34: F | D34: 42 | E34: 12.4 | F34: 9.7 | G34: 0 | H34: 0 | I34: 10.1 | J34: 0 | K34: 0 | L34: 0.415 | M34: 0.42 | N34: 0 | O34: 0 | P34: 0 | Q34: 1.13 | R34: 1.125 | S34: 0.8125 | T34: 0 | U34: 0 | V34: 0 | W34: 0 | X34: 0 | Y34: 12 | Z34: 0 | AA34: 18.9 | AB34: 0 | AC34: 0 | AD34: 210 | AE34: 48.3 | AF34: 43.4 | AG34: 4.13 | AH34: 71.7 | AI34: 21.8 | AJ34: 14.2 | AK34: 2.41 | AL34: 0 | AM34: 0.813 | AN34: 1540 | AO34: 0 | AP34: 23.4 | AQ34: 24.7 | AR34: 9.41 | AS34: 23.7 | AT34: 0 | AU34: 0 | AV34: 0 | AW34: 0
A35: HP10X57 | B35: HP | C35: F | D35: 57 | E35: 16.8 | F35: 10 | G35: 0 | H35: 0 | I35: 10.2 | J35: 0 | K35: 0 | L35: 0.565 | M35: 0.565 | N35: 0 | O35: 0 | P35: 0 | Q35: 1.25 | R35: 1.25 | S35: 0.9375 | T35: 0 | U35: 0 | V35: 0 | W35: 0 | X35: 0 | Y35: 9.05 | Z35: 0 | AA35: 13.9 | AB35: 0 | AC35: 0 | AD35: 294 | AE35: 66.5 | AF35: 58.8 | AG35: 4.18 | AH35: 101 | AI35: 30.3 | AJ35: 19.7 | AK35: 2.45 | AL35: 0 | AM35: 1.97 | AN35: 2240 | AO35: 0 | AP35: 24.1 | AQ35: 34.8 | AR35: 12.9 | AS35: 32.8 | AT35: 0 | AU35: 0 | AV35: 0 | AW35: 0
A36: HP12X53 | B36: HP | C36: F | D36: 53 | E36: 15.5 | F36: 11.8 | G36: 0 | H36: 0 | I36: 12 | J36: 0 | K36: 0 | L36: 0.435 | M36: 0.435 | N36: 0 | O36: 0 | P36: 0 | Q36: 1.13 | R36: 1.125 | S36: 0.875 | T36: 0 | U36: 0 | V36: 0 | W36: 0 | X36: 0 | Y36: 13.8 | Z36: 0 | AA36: 22.3 | AB36: 0 | AC36: 0 | AD36: 393 | AE36: 74 | AF36: 66.7 | AG36: 5.03 | AH36: 127 | AI36: 32.2 | AJ36: 21.1 | AK36: 2.86 | AL36: 0 | AM36: 1.12 | AN36: 4080 | AO36: 0 | AP36: 34.2 | AQ36: 44.7 | AR36: 14.3 | AS36: 36.2 | AT36: 0 | AU36: 0 | AV36: 0 | AW36: 0
A37: HP12X63 | B37: HP | C37: F | D37: 63 | E37: 18.4 | F37: 11.9 | G37: 0 | H37: 0 | I37: 12.1 | J37: 0 | K37: 0 | L37: 0.515 | M37: 0.515 | N37: 0 | O37: 0 | P37: 0 | Q37: 1.25 | R37: 1.25 | S37: 0.875 | T37: 0 | U37: 0 | V37: 0 | W37: 0 | X37: 0 | Y37: 11.8 | Z37: 0 | AA37: 18.9 | AB37: 0 | AC37: 0 | AD37: 472 | AE37: 88.3 | AF37: 79.1 | AG37: 5.06 | AH37: 153 | AI37: 38.7 | AJ37: 25.3 | AK37: 2.88 | AL37: 0 | AM37: 1.83 | AN37: 5000 | AO37: 0 | AP37: 34.6 | AQ37: 54.1 | AR37: 17.1 | AS37: 43.3 | AT37: 0 | AU37: 0 | AV37: 0 | AW37: 0
A38: HP12X74 | B38: HP | C38: F | D38: 74 | E38: 21.8 | F38: 12.1 | G38: 0 | H38: 0 | I38: 12.2 | J38: 0 | K38: 0 | L38: 0.605 | M38: 0.61 | N38: 0 | O38: 0 | P38: 0 | Q38: 1.31 | R38: 1.3125 | S38: 0.9375 | T38: 0 | U38: 0 | V38: 0 | W38: 0 | X38: 0 | Y38: 10 | Z38: 0 | AA38: 16.1 | AB38: 0 | AC38: 0 | AD38: 569 | AE38: 105 | AF38: 93.8 | AG38: 5.11 | AH38: 186 | AI38: 46.6 | AJ38: 30.4 | AK38: 2.92 | AL38: 0 | AM38: 2.98 | AN38: 6160 | AO38: 0 | AP38: 35.2 | AQ38: 65.5 | AR38: 20.4 | AS38: 51.9 | AT38: 0 | AU38: 0 | AV38: 0 | AW38: 0
A39: HP12X84 | B39: HP | C39: F | D39: 84 | E39: 24.6 | F39: 12.3 | G39: 0 | H39: 0 | I39: 12.3 | J39: 0 | K39: 0 | L39: 0.685 | M39: 0.685 | N39: 0 | O39: 0 | P39: 0 | Q39: 1.38 | R39: 1.375 | S39: 1 | T39: 0 | U39: 0 | V39: 0 | W39: 0 | X39: 0 | Y39: 8.97 | Z39: 0 | AA39: 14.2 | AB39: 0 | AC39: 0 | AD39: 650 | AE39: 120 | AF39: 106 | AG39: 5.14 | AH39: 213 | AI39: 53.2 | AJ39: 34.6 | AK39: 2.94 | AL39: 0 | AM39: 4.24 | AN39: 7140 | AO39: 0 | AP39: 35.6 | AQ39: 75 | AR39: 23.1 | AS39: 59 | AT39: 0 | AU39: 0 | AV39: 0 | AW39: 0
A40: HP14X102 | B40: HP | C40: F | D40: 102 | E40: 30 | F40: 14 | G40: 0 | H40: 0 | I40: 14.8 | J40: 0 | K40: 0 | L40: 0.705 | M40: 0.705 | N40: 0 | O40: 0 | P40: 0 | Q40: 1.38 | R40: 1.375 | S40: 1 | T40: 0 | U40: 0 | V40: 0 | W40: 0 | X40: 0 | Y40: 10.5 | Z40: 0 | AA40: 16.2 | AB40: 0 | AC40: 0 | AD40: 1050 | AE40: 169 | AF40: 150 | AG40: 5.92 | AH40: 380 | AI40: 78.8 | AJ40: 51.4 | AK40: 3.56 | AL40: 0 | AM40: 5.39 | AN40: 16800 | AO40: 0 | AP40: 49.2 | AQ40: 128 | AR40: 33 | AS40: 83.3 | AT40: 0 | AU40: 0 | AV40: 0 | AW40: 0
A41: HP14X117 | B41: HP | C41: F | D41: 117 | E41: 34.4 | F41: 14.2 | G41: 0 | H41: 0 | I41: 14.9 | J41: 0 | K41: 0 | L41: 0.805 | M41: 0.805 | N41: 0 | O41: 0 | P41: 0 | Q41: 1.5 | R41: 1.5 | S41: 1.0625 | T41: 0 | U41: 0 | V41: 0 | W41: 0 | X41: 0 | Y41: 9.25 | Z41: 0 | AA41: 14.2 | AB41: 0 | AC41: 0 | AD41: 1220 | AE41: 194 | AF41: 172 | AG41: 5.96 | AH41: 443 | AI41: 91.4 | AJ41: 59.5 | AK41: 3.59 | AL41: 0 | AM41: 8.02 | AN41: 19900 | AO41: 0 | AP41: 49.9 | AQ41: 149 | AR41: 38 | AS41: 96.3 | AT41: 0 | AU41: 0 | AV41: 0 | AW41: 0
A42: HP14X73 | B42: HP | C42: F | D42: 73 | E42: 21.4 | F42: 13.6 | G42: 0 | H42: 0 | I42: 14.6 | J42: 0 | K42: 0 | L42: 0.505 | M42: 0.505 | N42: 0 | O42: 0 | P42: 0 | Q42: 1.19 | R42: 1.1875 | S42: 0.875 | T42: 0 | U42: 0 | V42: 0 | W42: 0 | X42: 0 | Y42: 14.4 | Z42: 0 | AA42: 22.6 | AB42: 0 | AC42: 0 | AD42: 729 | AE42: 118 | AF42: 107 | AG42: 5.84 | AH42: 261 | AI42: 54.6 | AJ42: 35.8 | AK42: 3.49 | AL42: 0 | AM42: 2.01 | AN42: 11200 | AO42: 0 | AP42: 47.8 | AQ42: 88 | AR42: 23.3 | AS42: 58.3 | AT42: 0 | AU42: 0 | AV42: 0 | AW42: 0
A43: HP14X89 | B43: HP | C43: F | D43: 89 | E43: 26.1 | F43: 13.8 | G43: 0 | H43: 0 | I43: 14.7 | J43: 0 | K43: 0 | L43: 0.615 | M43: 0.615 | N43: 0 | O43: 0 | P43: 0 | Q43: 1.31 | R43: 1.3125 | S43: 0.9375 | T43: 0 | U43: 0 | V43: 0 | W43: 0 | X43: 0 | Y43: 11.9 | Z43: 0 | AA43: 18.5 | AB43: 0 | AC43: 0 | AD43: 904 | AE43: 146 | AF43: 131 | AG43: 5.88 | AH43: 326 | AI43: 67.7 | AJ43: 44.3 | AK43: 3.53 | AL43: 0 | AM43: 3.59 | AN43: 14200 | AO43: 0 | AP43: 48.5 | AQ43: 110 | AR43: 28.6 | AS43: 71.9 | AT43: 0 | AU43: 0 | AV43: 0 | AW43: 0
A44: HP8X36 | B44: HP | C44: F | D44: 36 | E44: 10.6 | F44: 8.02 | G44: 0 | H44: 0 | I44: 8.16 | J44: 0 | K44: 0 | L44: 0.445 | M44: 0.445 | N44: 0 | O44: 0 | P44: 0 | Q44: 1.13 | R44: 1.125 | S44: 0.875 | T44: 0 | U44: 0 | V44: 0 | W44: 0 | X44: 0 | Y44: 9.16 | Z44: 0 | AA44: 14.2 | AB44: 0 | AC44: 0 | AD44: 119 | AE44: 33.6 | AF44: 29.8 | AG44: 3.36 | AH44: 40.3 | AI44: 15.2 | AJ44: 9.88 | AK44: 1.95 | AL44: 0 | AM44: 0.77 | AN44: 578 | AO44: 0 | AP44: 15.4 | AQ44: 14 | AR44: 6.5 | AS44: 16.6 | AT44: 0 | AU44: 0 | AV44: 0 | AW44: 0
A45: HSS1.660X0.140 | B45: HSS | C45: F | D45: 2.274862147 | E45: 0.625 | F45: 0 | G45: 0 | H45: 1.66 | I45: 0 | J45: 0 | K45: 0 | L45: 0 | M45: 0 | N45: 0 | O45: 0.14 | P45: 0.13 | Q45: 0 | R45: 0 | S45: 0 | T45: 0 | U45: 0 | V45: 0 | W45: 0 | X45: 0 | Y45: 0 | Z45: 0 | AA45: 0 | AB45: 0 | AC45: 12.8 | AD45: 0.184 | AE45: 0.305 | AF45: 0.222 | AG45: 0.543 | AH45: 0.184 | AI45: 0.305 | AJ45: 0.222 | AK45: 0.543 | AL45: 0 | AM45: 0.368 | AN45: 0 | AO45: 0.444 | AP45: 0 | AQ45: 0 | AR45: 0 | AS45: 0 | AT45: 0 | AU45: 0 | AV45: 0 | AW45: 0
A46: HSS1.900X0.120 | B46: HSS | C46: F | D46: 2.28341426 | E46: 0.624 | F46: 0 | G46: 0 | H46: 1.9 | I46: 0 | J46: 0 | K46: 0 | L46: 0 | M46: 0 | N46: 0 | O46: 0.12 | P46: 0.111 | Q46: 0 | R46: 0 | S46: 0 | T46: 0 | U46: 0 | V46: 0 | W46: 0 | X46: 0 | Y46: 0 | Z46: 0 | AA46: 0 | AB46: 0 | AC46: 17.1 | AD46: 0.251 | AE46: 0.356 | AF46: 0.264 | AG46: 0.634 | AH46: 0.251 | AI46: 0.356 | AJ46: 0.264 | AK46: 0.634 | AL46: 0 | AM46: 0.501 | AN46: 0 | AO46: 0.527 | AP46: 0 | AQ46: 0 | AR46: 0 | AS46: 0 | AT46: 0 | AU46: 0 | AV46: 0 | AW46: 0
A47: HSS1.900X0.145 | B47: HSS | C47: F | D47: 2.720373801 | E47: 0.749 | F47: 0 | G47: 0 | H47: 1.9 | I47: 0 | J47: 0 | K47: 0 | L47: 0 | M47: 0 | N47: 0 | O47: 0.145 | P47: 0.135 | Q47: 0 | R47: 0 | S47: 0 | T47: 0 | U47: 0 | V47: 0 | W47: 0 | X47: 0 | Y47: 0 | Z47: 0 | AA47: 0 | AB47: 0 | AC47: 14.1 | AD47: 0.293 | AE47: 0.421 | AF47: 0.309 | AG47: 0.626 | AH47: 0.293 | AI47: 0.421 | AJ47: 0.309 | AK47: 0.626 | AL47: 0 | AM47: 0.586 | AN47: 0 | AO47: 0.617 | AP47: 0 | AQ47: 0 | AR47: 0 | AS47: 0 | AT47: 0 | AU47: 0 | AV47: 0 | AW47: 0
A48: HSS1.900X0.188 | B48: HSS | C48: F | D48: 3.440686237 | E48: 0.943 | F48: 0 | G48: 0 | H48: 1.9 | I48: 0 | J48: 0 | K48: 0 | L48: 0 | M48: 0 | N48: 0 | O48: 0.1875 | P48: 0.174 | Q48: 0 | R48: 0 | S48: 0 | T48: 0 | U48: 0 | V48: 0 | W48: 0 | X48: 0 | Y48: 0 | Z48: 0 | AA48: 0 | AB48: 0 | AC48: 10.9 | AD48: 0.355 | AE48: 0.52 | AF48: 0.374 | AG48: 0.613 | AH48: 0.355 | AI48: 0.52 | AJ48: 0.374 | AK48: 0.613 | AL48: 0 | AM48: 0.71 | AN48: 0 | AO48: 0.747 | AP48: 0 | AQ48: 0 | AR48: 0 | AS48: 0 | AT48: 0 | AU48: 0 | AV48: 0 | AW48: 0
A49: HSS10.750X0.250 | B49: HSS | C49: F | D49: 28.06162188 | E49: 7.7 | F49: 0 | G49: 0 | H49: 10.75 | I49: 0 | J49: 0 | K49: 0 | L49: 0 | M49: 0 | N49: 0 | O49: 0.25 | P49: 0.233 | Q49: 0 | R49: 0 | S49: 0 | T49: 0 | U49: 0 | V49: 0 | W49: 0 | X49: 0 | Y49: 0 | Z49: 0 | AA49: 0 | AB49: 0 | AC49: 46.1 | AD49: 106 | AE49: 25.8 | AF49: 19.8 | AG49: 3.72 | AH49: 106 | AI49: 25.8 | AJ49: 19.8 | AK49: 3.72 | AL49: 0 | AM49: 213 | AN49: 0 | AO49: 39.6 | AP49: 0 | AQ49: 0 | AR49: 0 | AS49: 0 | AT49: 0 | AU49: 0 | AV49: 0 | AW49: 0
A50: HSS10.750X0.375 | B50: HSS | C50: F | D50: 41.59133243 | E50: 11.4 | F50: 0 | G50: 0 | H50: 10.75 | I50: 0 | J50: 0 | K50: 0 | L50: 0 | M50: 0 | N50: 0 | O50: 0.375 | P50: 0.349 | Q50: 0 | R50: 0 | S50: 0 | T50: 0 | U50: 0 | V50: 0 | W50: 0 | X50: 0 | Y50: 0 | Z50: 0 | AA50: 0 | AB50: 0 | AC50: 30.8 | AD50: 154 | AE50: 37.8 | AF50: 28.7 | AG50: 3.68 | AH50: 154 | AI50: 37.8 | AJ50: 28.7 | AK50: 3.68 | AL50: 0 | AM50: 309 | AN50: 0 | AO50: 57.4 | AP50: 0 | AQ50: 0 | AR50: 0 | AS50: 0 | AT50: 0 | AU50: 0 | AV50: 0 | AW50: 0
A51: HSS10.750X0.500 | B51: HSS | C51: F | D51: 54.78697605 | E51: 15 | F51: 0 | G51: 0 | H51: 10.75 | I51: 0 | J51: 0 | K51: 0 | L51: 0 | M51: 0 | N51: 0 | O51: 0.5 | P51: 0.465 | Q51: 0 | R51: 0 | S51: 0 | T51: 0 | U51: 0 | V51: 0 | W51: 0 | X51: 0 | Y51: 0 | Z51: 0 | AA51: 0 | AB51: 0 | AC51: 23.1 | AD51: 199 | AE51: 49.2 | AF51: 37 | AG51: 3.64 | AH51: 199 | AI51: 49.2 | AJ51: 37 | AK51: 3.64 | AL51: 0 | AM51: 398 | AN51: 0 | AO51: 74.1 | AP51: 0 | AQ51: 0 | AR51: 0 | AS51: 0 | AT51: 0 | AU51: 0 | AV51: 0 | AW51: 0
A52: HSS10X0.188 | B52: HSS | C52: F | D52: 19.71963397 | E52: 5.37 | F52: 0 | G52: 0 | H52: 10 | I52: 0 | J52: 0 | K52: 0 | L52: 0 | M52: 0 | N52: 0 | O52: 0.1875 | P52: 0.174 | Q52: 0 | R52: 0 | S52: 0 | T52: 0 | U52: 0 | V52: 0 | W52: 0 | X52: 0 | Y52: 0 | Z52: 0 | AA52: 0 | AB52: 0 | AC52: 57.5 | AD52: 64.8 | AE52: 16.8 | AF52: 13 | AG52: 3.47 | AH52: 64.8 | AI52: 16.8 | AJ52: 13 | AK52: 3.47 | AL52: 0 | AM52: 130 | AN52: 0 | AO52: 25.9 | AP52: 0 | AQ52: 0 | AR52: 0 | AS52: 0 | AT52: 0 | AU52: 0 | AV52: 0 | AW52: 0
A53: HSS10X0.250 | B53: HSS | C53: F | D53: 26.05722032 | E53: 7.15 | F53: 0 | G53: 0 | H53: 10 | I53: 0 | J53: 0 | K53: 0 | L53: 0 | M53: 0 | N53: 0 | O53: 0.25 | P53: 0.233 | Q53: 0 | R53: 0 | S53: 0 | T53: 0 | U53: 0 | V53: 0 | W53: 0 | X53: 0 | Y53: 0 | Z53: 0 | AA53: 0 | AB53: 0 | AC53: 42.9 | AD53: 85.3 | AE53: 22.2 | AF53: 17.1 | AG53: 3.45 | AH53: 85.3 | AI53: 22.2 | AJ53: 17.1 | AK53: 3.45 | AL53: 0 | AM53: 171 | AN53: 0 | AO53: 34.1 | AP53: 0 | AQ53: 0 | AR53: 0 | AS53: 0 | AT53: 0 | AU53: 0 | AV53: 0 | AW53: 0
A54: HSS10X0.312 | B54: HSS | C54: F | D54: 32.31262086 | E54: 8.88 | F54: 0 | G54: 0 | H54: 10 | I54: 0 | J54: 0 | K54: 0 | L54: 0 | M54: 0 | N54: 0 | O54: 0.3125 | P54: 0.291 | Q54: 0 | R54: 0 | S54: 0 | T54: 0 | U54: 0 | V54: 0 | W54: 0 | X54: 0 | Y54: 0 | Z54: 0 | AA54: 0 | AB54: 0 | AC54: 34.4 | AD54: 105 | AE54: 27.4 | AF54: 20.9 | AG54: 3.43 | AH54: 105 | AI54: 27.4 | AJ54: 20.9 | AK54: 3.43 | AL54: 0 | AM54: 209 | AN54: 0 | AO54: 41.9 | AP54: 0 | AQ54: 0 | AR54: 0 | AS54: 0 | AT54: 0 | AU54: 0 | AV54: 0 | AW54: 0
A55: HSS10X0.375 | B55: HSS | C55: F | D55: 38.58473008 | E55: 10.6 | F55: 0 | G55: 0 | H55: 10 | I55: 0 | J55: 0 | K55: 0 | L55: 0 | M55: 0 | N55: 0 | O55: 0.375 | P55: 0.349 | Q55: 0 | R55: 0 | S55: 0 | T55: 0 | U55: 0 | V55: 0 | W55: 0 | X55: 0 | Y55: 0 | Z55: 0 | AA55: 0 | AB55: 0 | AC55: 28.7 | AD55: 123 | AE55: 32.5 | AF55: 24.7 | AG55: 3.41 | AH55: 123 | AI55: 32.5 | AJ55: 24.7 | AK55: 3.41 | AL55: 0 | AM55: 247 | AN55: 0 | AO55: 49.3 | AP55: 0 | AQ55: 0 | AR55: 0 | AS55: 0 | AT55: 0 | AU55: 0 | AV55: 0 | AW55: 0
A56: HSS10X0.500 | B56: HSS | C56: F | D56: 50.77817293 | E56: 13.9 | F56: 0 | G56: 0 | H56: 10 | I56: 0 | J56: 0 | K56: 0 | L56: 0 | M56: 0 | N56: 0 | O56: 0.5 | P56: 0.465 | Q56: 0 | R56: 0 | S56: 0 | T56: 0 | U56: 0 | V56: 0 | W56: 0 | X56: 0 | Y56: 0 | Z56: 0 | AA56: 0 | AB56: 0 | AC56: 21.5 | AD56: 159 | AE56: 42.3 | AF56: 31.7 | AG56: 3.38 | AH56: 159 | AI56: 42.3 | AJ56: 31.7 | AK56: 3.38 | AL56: 0 | AM56: 317 | AN56: 0 | AO56: 63.5 | AP56: 0 | AQ56: 0 | AR56: 0 | AS56: 0 | AT56: 0 | AU56: 0 | AV56: 0 | AW56: 0
A57: HSS10X0.625 | B57: HSS | C57: F | D57: 62.63754884 | E57: 17.2 | F57: 0 | G57: 0 | H57: 10 | I57: 0 | J57: 0 | K57: 0 | L57: 0 | M57: 0 | N57: 0 | O57: 0.625 | P57: 0.581 | Q57: 0 | R57: 0 | S57: 0 | T57: 0 | U57: 0 | V57: 0 | W57: 0 | X57: 0 | Y57: 0 | Z57: 0 | AA57: 0 | AB57: 0 | AC57: 17.2 | AD57: 191 | AE57: 51.6 | AF57: 38.3 | AG57: 3.34 | AH57: 191 | AI57: 51.6 | AJ57: 38.3 | AK57: 3.34 | AL57: 0 | AM57: 383 | AN57: 0 | AO57: 76.6 | AP57: 0 | AQ57: 0 | AR57: 0 | AS57: 0 | AT57: 0 | AU57: 0 | AV57: 0 | AW57: 0
A58: HSS10X10X1/2 | B58: HSS | C58: F | D58: 62.33164987 | E58: 17.2 | F58: 0 | G58: 10 | H58: 0 | I58: 0 | J58: 10 | K58: 0 | L58: 0 | M58: 0 | N58: 0 | O58: 0.5 | P58: 0.465 | Q58: 0 | R58: 0 | S58: 0 | T58: 0 | U58: 0 | V58: 0 | W58: 0 | X58: 0 | Y58: 0 | Z58: 18.5 | AA58: 0 | AB58: 18.5 | AC58: 0 | AD58: 256 | AE58: 60.7 | AF58: 51.2 | AG58: 3.86 | AH58: 0 | AI58: 0 | AJ58: 0 | AK58: 0 | AL58: 0 | AM58: 412 | AN58: 0 | AO58: 84.2 | AP58: 0 | AQ58: 0 | AR58: 0 | AS58: 0 | AT58: 0 | AU58: 0 | AV58: 0 | AW58: 0
A59: HSS10X10X1/4 | B59: HSS | C59: F | D59: 32.59746019 | E59: 8.96 | F59: 0 | G59: 10 | H59: 0 | I59: 0 | J59: 10 | K59: 0 | L59: 0 | M59: 0 | N59: 0 | O59: 0.25 | P59: 0.233 | Q59: 0 | R59: 0 | S59: 0 | T59: 0 | U59: 0 | V59: 0 | W59: 0 | X59: 0 | Y59: 0 | Z59: 39.9 | AA59: 0 | AB59: 39.9 | AC59: 0 | AD59: 141 | AE59: 32.7 | AF59: 28.3 | AG59: 3.97 | AH59: 0 | AI59: 0 | AJ59: 0 | AK59: 0 | AL59: 0 | AM59: 220 | AN59: 0 | AO59: 44.4 | AP59: 0 | AQ59: 0 | AR59: 0 | AS59: 0 | AT59: 0 | AU59: 0 | AV59: 0 | AW59: 0
A60: HSS10X10X3/16 | B60: HSS | C60: F | D60: 24.71554752 | E60: 6.76 | F60: 0 | G60: 10 | H60: 0 | I60: 0 | J60: 10 | K60: 0 | L60: 0 | M60: 0 | N60: 0 | O60: 0.1875 | P60: 0.174 | Q60: 0 | R60: 0 | S60: 0 | T60: 0 | U60: 0 | V60: 0 | W60: 0 | X60: 0 | Y60: 0 | Z60: 54.5 | AA60: 0 | AB60: 54.5 | AC60: 0 | AD60: 108 | AE60: 24.8 | AF60: 21.6 | AG60: 4 | AH60: 0 | AI60: 0 | AJ60: 0 | AK60: 0 | AL60: 0 | AM60: 167 | AN60: 0 | AO60: 33.6 | AP60: 0 | AQ60: 0 | AR60: 0 | AS60: 0 | AT60: 0 | AU60: 0 | AV60: 0 | AW60: 0
A61: HSS10X10X3/8 | B61: HSS | C61: F | D61: 47.82245984 | E61: 13.2 | F61: 0 | G61: 10 | H61: 0 | I61: 0 | J61: 10 | K61: 0 | L61: 0 | M61: 0 | N61: 0 | O61: 0.375 | P61: 0.349 | Q61: 0 | R61: 0 | S61: 0 | T61: 0 | U61: 0 | V61: 0 | W61: 0 | X61: 0 | Y61: 0 | Z61: 25.7 | AA61: 0 | AB61: 25.7 | AC61: 0 | AD61: 202 | AE61: 47.2 | AF61: 40.4 | AG61: 3.92 | AH61: 0 | AI61: 0 | AJ61: 0 | AK61: 0 | AL61: 0 | AM61: 320 | AN61: 0 | AO61: 64.8 | AP61: 0 | AQ61: 0 | AR61: 0 | AS61: 0 | AT61: 0 | AU61: 0 | AV61: 0 | AW61: 0
A62: HSS10X10X5/16 | B62: HSS | C62: F | D62: 40.29943622 | E62: 11.1 | F62: 0 | G62: 10 | H62: 0 | I62: 0 | J62: 10 | K62: 0 | L62: 0 | M62: 0 | N62: 0 | O62: 0.3125 | P62: 0.291 | Q62: 0 | R62: 0 | S62: 0 | T62: 0 | U62: 0 | V62: 0 | W62: 0 | X62: 0 | Y62: 0 | Z62: 31.4 | AA62: 0 | AB62: 31.4 | AC62: 0 | AD62: 172 | AE62: 40.1 | AF62: 34.5 | AG62: 3.94 | AH62: 0 | AI62: 0 | AJ62: 0 | AK62: 0 | AL62: 0 | AM62: 271 | AN62: 0 | AO62: 54.8 | AP62: 0 | AQ62: 0 | AR62: 0 | AS62: 0 | AT62: 0 | AU62: 0 | AV62: 0 | AW62: 0
A63: HSS10X10X5/8 | B63: HSS | C63: F | D63: 76.12503029 | E63: 21 | F63: 0 | G63: 10 | H63: 0 | I63: 0 | J63: 10 | K63: 0 | L63: 0 | M63: 0 | N63: 0 | O63: 0.625 | P63: 0.581 | Q63: 0 | R63: 0 | S63: 0 | T63: 0 | U63: 0 | V63: 0 | W63: 0 | X63: 0 | Y63: 0 | Z63: 14.2 | AA63: 0 | AB63: 14.2 | AC63: 0 | AD63: 304 | AE63: 73.2 | AF63: 60.8 | AG63: 3.8 | AH63: 0 | AI63: 0 | AJ63: 0 | AK63: 0 | AL63: 0 | AM63: 498 | AN63: 0 | AO63: 102 | AP63: 0 | AQ63: 0 | AR63: 0 | AS63: 0 | AT63: 0 | AU63: 0 | AV63: 0 | AW63: 0
A64: HSS10X2X1/4 | B64: HSS | C64: F | D64: 18.98634908 | E64: 5.24 | F64: 0 | G64: 10 | H64: 0 | I64: 0 | J64: 2 | K64: 0 | L64: 0 | M64: 0 | N64: 0 | O64: 0.25 | P64: 0.233 | Q64: 0 | R64: 0 | S64: 0 | T64: 0 | U64: 0 | V64: 0 | W64: 0 | X64: 0 | Y64: 0 | Z64: 5.58 | AA64: 0 | AB64: 39.9 | AC64: 0 | AD64: 52.5 | AE64: 14.4 | AF64: 10.5 | AG64: 3.17 | AH64: 3.67 | AI64: 4.26 | AJ64: 3.67 | AK64: 0.838 | AL64: 0 | AM64: 12.2 | AN64: 0.25 | AO64: 7.99 | AP64: 0 | AQ64: 0 | AR64: 0 | AS64: 0 | AT64: 0 | AU64: 0 | AV64: 0 | AW64: 0
A65: HSS10X2X1/8 | B65: HSS | C65: F | D65: 9.850428528 | E65: 2.7 | F65: 0 | G65: 10 | H65: 0 | I65: 0 | J65: 2 | K65: 0 | L65: 0 | M65: 0 | N65: 0 | O65: 0.125 | P65: 0.116 | Q65: 0 | R65: 0 | S65: 0 | T65: 0 | U65: 0 | V65: 0 | W65: 0 | X65: 0 | Y65: 0 | Z65: 14.2 | AA65: 0 | AB65: 83.2 | AC65: 0 | AD65: 28.5 | AE65: 7.65 | AF65: 5.7 | AG65: 3.25 | AH65: 2.14 | AI65: 2.33 | AJ65: 2.14 | AK65: 0.89 | AL65: 0 | AM65: 6.9 | AN65: 0.125 | AO65: 4.31 | AP65: 0 | AQ65: 0 | AR65: 0 | AS65: 0 | AT65: 0 | AU65: 0 | AV65: 0 | AW65: 0
A66: HSS10X2X3/16 | B66: HSS | C66: F | D66: 14.54331085 | E66: 3.98 | F66: 0 | G66: 10 | H66: 0 | I66: 0 | J66: 2 | K66: 0 | L66: 0 | M66: 0 | N66: 0 | O66: 0.1875 | P66: 0.174 | Q66: 0 | R66: 0 | S66: 0 | T66: 0 | U66: 0 | V66: 0 | W66: 0 | X66: 0 | Y66: 0 | Z66: 8.49 | AA66: 0 | AB66: 54.5 | AC66: 0 | AD66: 41 | AE66: 11.1 | AF66: 8.19 | AG66: 3.21 | AH66: 2.97 | AI66: 3.34 | AJ66: 2.97 | AK66: 0.864 | AL66: 0 | AM66: 9.74 | AN66: 0.1875 | AO66: 6.22 | AP66: 0 | AQ66: 0 | AR66: 0 | AS66: 0 | AT66: 0 | AU66: 0 | AV66: 0 | AW66: 0
A67: HSS10X2X3/8 | B67: HSS | C67: F | D67: 27.40579317 | E67: 7.58 | F67: 0 | G67: 10 | H67: 0 | I67: 0 | J67: 2 | K67: 0 | L67: 0 | M67: 0 | N67: 0 | O67: 0.375 | P67: 0.349 | Q67: 0 | R67: 0 | S67: 0 | T67: 0 | U67: 0 | V67: 0 | W67: 0 | X67: 0 | Y67: 0 | Z67: 2.73 | AA67: 0 | AB67: 25.7 | AC67: 0 | AD67: 71.7 | AE67: 20.3 | AF67: 14.3 | AG67: 3.08 | AH67: 4.7 | AI67: 5.76 | AJ67: 4.7 | AK67: 0.787 | AL67: 0 | AM67: 15.9 | AN67: 0.375 | AO67: 11 | AP67: 0 | AQ67: 0 | AR67: 0 | AS67: 0 | AT67: 0 | AU67: 0 | AV67: 0 | AW67: 0
A68: HSS10X2X5/16 | B68: HSS | C68: F | D68: 23.31845899 | E68: 6.43 | F68: 0 | G68: 10 | H68: 0 | I68: 0 | J68: 2 | K68: 0 | L68: 0 | M68: 0 | N68: 0 | O68: 0.3125 | P68: 0.291 | Q68: 0 | R68: 0 | S68: 0 | T68: 0 | U68: 0 | V68: 0 | W68: 0 | X68: 0 | Y68: 0 | Z68: 3.87 | AA68: 0 | AB68: 31.4 | AC68: 0 | AD68: 62.6 | AE68: 17.5 | AF68: 12.5 | AG68: 3.12 | AH68: 4.24 | AI68: 5.06 | AJ68: 4.24 | AK68: 0.812 | AL68: 0 | AM68: 14.2 | AN68: 0.3125 | AO68: 9.56 | AP68: 0 | AQ68: 0 | AR68: 0 | AS68: 0 | AT68: 0 | AU68: 0 | AV68: 0 | AW68: 0
A69: HSS10X3-1/2X1/2 | B69: HSS | C69: F | D69: 40.21359431 | E69: 11.1 | F69: 0 | G69: 10 | H69: 0 | I69: 0 | J69: 3.5 | K69: 0 | L69: 0 | M69: 0 | N69: 0 | O69: 0.5 | P69: 0.465 | Q69: 0 | R69: 0 | S69: 0 | T69: 0 | U69: 0 | V69: 0 | W69: 0 | X69: 0 | Y69: 0 | Z69: 4.53 | AA69: 0 | AB69: 18.5 | AC69: 0 | AD69: 118 | AE69: 31.9 | AF69: 23.7 | AG69: 3.26 | AH69: 21.4 | AI69: 14.7 | AJ69: 12.2 | AK69: 1.39 | AL69: 0 | AM69: 63.2 | AN69: 0.5 | AO69: 26.5 | AP69: 0 | AQ69: 0 | AR69: 0 | AS69: 0 | AT69: 0 | AU69: 0 | AV69: 0 | AW69: 0
A70: HSS10X3-1/2X1/4 | B70: HSS | C70: F | D70: 21.53843241 | E70: 5.93 | F70: 0 | G70: 10 | H70: 0 | I70: 0 | J70: 3.5 | K70: 0 | L70: 0 | M70: 0 | N70: 0 | O70: 0.25 | P70: 0.233 | Q70: 0 | R70: 0 | S70: 0 | T70: 0 | U70: 0 | V70: 0 | W70: 0 | X70: 0 | Y70: 0 | Z70: 12 | AA70: 0 | AB70: 39.9 | AC70: 0 | AD70: 69.1 | AE70: 17.9 | AF70: 13.8 | AG70: 3.41 | AH70: 13.1 | AI70: 8.45 | AJ70: 7.51 | AK70: 1.49 | AL70: 0 | AM70: 37 | AN70: 0.25 | AO70: 14.8 | AP70: 0 | AQ70: 0 | AR70: 0 | AS70: 0 | AT70: 0 | AU70: 0 | AV70: 0 | AW70: 0
A71: HSS10X3-1/2X1/8 | B71: HSS | C71: F | D71: 11.12647019 | E71: 3.04 | F71: 0 | G71: 10 | H71: 0 | I71: 0 | J71: 3.5 | K71: 0 | L71: 0 | M71: 0 | N71: 0 | O71: 0.125 | P71: 0.116 | Q71: 0 | R71: 0 | S71: 0 | T71: 0 | U71: 0 | V71: 0 | W71: 0 | X71: 0 | Y71: 0 | Z71: 27.2 | AA71: 0 | AB71: 83.2 | AC71: 0 | AD71: 37 | AE71: 9.37 | AF71: 7.4 | AG71: 3.49 | AH71: 7.22 | AI71: 4.48 | AJ71: 4.12 | AK71: 1.54 | AL71: 0 | AM71: 19.8 | AN71: 0.125 | AO71: 7.75 | AP71: 0 | AQ71: 0 | AR71: 0 | AS71: 0 | AT71: 0 | AU71: 0 | AV71: 0 | AW71: 0
A72: HSS10X3-1/2X3/16 | B72: HSS | C72: F | D72: 16.46247752 | E72: 4.5 | F72: 0 | G72: 10 | H72: 0 | I72: 0 | J72: 3.5 | K72: 0 | L72: 0 | M72: 0 | N72: 0 | O72: 0.1875 | P72: 0.174 | Q72: 0 | R72: 0 | S72: 0 | T72: 0 | U72: 0 | V72: 0 | W72: 0 | X72: 0 | Y72: 0 | Z72: 17.1 | AA72: 0 | AB72: 54.5 | AC72: 0 | AD72: 53.6 | AE72: 13.7 | AF72: 10.7 | AG72: 3.45 | AH72: 10.3 | AI72: 6.52 | AJ72: 5.89 | AK72: 1.51 | AL72: 0 | AM72: 28.6 | AN72: 0.1875 | AO72: 11.4 | AP72: 0 | AQ72: 0 | AR72: 0 | AS72: 0 | AT72: 0 | AU72: 0 | AV72: 0 | AW72: 0
A73: HSS10X3-1/2X3/8 | B73: HSS | C73: F | D73: 31.23391817 | E73: 8.62 | F73: 0 | G73: 10 | H73: 0 | I73: 0 | J73: 3.5 | K73: 0 | L73: 0 | M73: 0 | N73: 0 | O73: 0.375 | P73: 0.349 | Q73: 0 | R73: 0 | S73: 0 | T73: 0 | U73: 0 | V73: 0 | W73: 0 | X73: 0 | Y73: 0 | Z73: 7.03 | AA73: 0 | AB73: 25.7 | AC73: 0 | AD73: 96.1 | AE73: 25.3 | AF73: 19.2 | AG73: 3.34 | AH73: 17.8 | AI73: 11.8 | AJ73: 10.2 | AK73: 1.44 | AL73: 0 | AM73: 51.5 | AN73: 0.375 | AO73: 21.1 | AP73: 0 | AQ73: 0 | AR73: 0 | AS73: 0 | AT73: 0 | AU73: 0 | AV73: 0 | AW73: 0
A74: HSS10X3-1/2X5/16 | B74: HSS | C74: F | D74: 26.51366733 | E74: 7.3 | F74: 0 | G74: 10 | H74: 0 | I74: 0 | J74: 3.5 | K74: 0 | L74: 0 | M74: 0 | N74: 0 | O74: 0.3125 | P74: 0.291 | Q74: 0 | R74: 0 | S74: 0 | T74: 0 | U74: 0 | V74: 0 | W74: 0 | X74: 0 | Y74: 0 | Z74: 9.03 | AA74: 0 | AB74: 31.4 | AC74: 0 | AD74: 83.2 | AE74: 21.7 | AF74: 16.6 | AG74: 3.38 | AH74: 15.6 | AI74: 10.2 | AJ74: 8.92 | AK74: 1.46 | AL74: 0 | AM74: 44.6 | AN74: 0.3125 | AO74: 18 | AP74: 0 | AQ74: 0 | AR74: 0 | AS74: 0 | AT74: 0 | AU74: 0 | AV74: 0 | AW74: 0
A75: HSS10X3X1/4 | B75: HSS | C75: F | D75: 20.68773797 | E75: 5.7 | F75: 0 | G75: 10 | H75: 0 | I75: 0 | J75: 3 | K75: 0 | L75: 0 | M75: 0 | N75: 0 | O75: 0.25 | P75: 0.233 | Q75: 0 | R75: 0 | S75: 0 | T75: 0 | U75: 0 | V75: 0 | W75: 0 | X75: 0 | Y75: 0 | Z75: 9.88 | AA75: 0 | AB75: 39.9 | AC75: 0 | AD75: 63.6 | AE75: 16.7 | AF75: 12.7 | AG75: 3.34 | AH75: 9.28 | AI75: 6.99 | AJ75: 6.19 | AK75: 1.28 | AL75: 0 | AM75: 27.6 | AN75: 0.25 | AO75: 12.5 | AP75: 0 | AQ75: 0 | AR75: 0 | AS75: 0 | AT75: 0 | AU75: 0 | AV75: 0 | AW75: 0
A76: HSS10X3X1/8 | B76: HSS | C76: F | D76: 10.70112297 | E76: 2.93 | F76: 0 | G76: 10 | H76: 0 | I76: 0 | J76: 3 | K76: 0 | L76: 0 | M76: 0 | N76: 0 | O76: 0.125 | P76: 0.116 | Q76: 0 | R76: 0 | S76: 0 | T76: 0 | U76: 0 | V76: 0 | W76: 0 | X76: 0 | Y76: 0 | Z76: 22.9 | AA76: 0 | AB76: 83.2 | AC76: 0 | AD76: 34.2 | AE76: 8.8 | AF76: 6.83 | AG76: 3.42 | AH76: 5.16 | AI76: 3.74 | AJ76: 3.44 | AK76: 1.33 | AL76: 0 | AM76: 14.9 | AN76: 0.125 | AO76: 6.61 | AP76: 0 | AQ76: 0 | AR76: 0 | AS76: 0 | AT76: 0 | AU76: 0 | AV76: 0 | AW76: 0
A77: HSS10X3X3/16 | B77: HSS | C77: F | D77: 15.8227553 | E77: 4.32 | F77: 0 | G77: 10 | H77: 0 | I77: 0 | J77: 3 | K77: 0 | L77: 0 | M77: 0 | N77: 0 | O77: 0.1875 | P77: 0.174 | Q77: 0 | R77: 0 | S77: 0 | T77: 0 | U77: 0 | V77: 0 | W77: 0 | X77: 0 | Y77: 0 | Z77: 14.2 | AA77: 0 | AB77: 54.5 | AC77: 0 | AD77: 49.4 | AE77: 12.8 | AF77: 9.87 | AG77: 3.38 | AH77: 7.33 | AI77: 5.41 | AJ77: 4.89 | AK77: 1.3 | AL77: 0 | AM77: 21.5 | AN77: 0.1875 | AO77: 9.64 | AP77: 0 | AQ77: 0 | AR77: 0 | AS77: 0 | AT77: 0 | AU77: 0 | AV77: 0 | AW77: 0
A78: HSS10X3X3/8 | B78: HSS | C78: F | D78: 29.9578765 | E78: 8.27 | F78: 0 | G78: 10 | H78: 0 | I78: 0 | J78: 3 | K78: 0 | L78: 0 | M78: 0 | N78: 0 | O78: 0.375 | P78: 0.349 | Q78: 0 | R78: 0 | S78: 0 | T78: 0 | U78: 0 | V78: 0 | W78: 0 | X78: 0 | Y78: 0 | Z78: 5.6 | AA78: 0 | AB78: 25.7 | AC78: 0 | AD78: 88 | AE78: 23.7 | AF78: 17.6 | AG78: 3.26 | AH78: 12.4 | AI78: 9.73 | AJ78: 8.28 | AK78: 1.22 | AL78: 0 | AM78: 37.8 | AN78: 0.375 | AO78: 17.7 | AP78: 0 | AQ78: 0 | AR78: 0 | AS78: 0 | AT78: 0 | AU78: 0 | AV78: 0 | AW78: 0
A79: HSS10X3X5/16 | B79: HSS | C79: F | D79: 25.44859788 | E79: 7.01 | F79: 0 | G79: 10 | H79: 0 | I79: 0 | J79: 3 | K79: 0 | L79: 0 | M79: 0 | N79: 0 | O79: 0.3125 | P79: 0.291 | Q79: 0 | R79: 0 | S79: 0 | T79: 0 | U79: 0 | V79: 0 | W79: 0 | X79: 0 | Y79: 0 | Z79: 7.31 | AA79: 0 | AB79: 31.4 | AC79: 0 | AD79: 76.3 | AE79: 20.3 | AF79: 15.3 | AG79: 3.3 | AH79: 11 | AI79: 8.42 | AJ79: 7.3 | AK79: 1.25 | AL79: 0 | AM79: 33 | AN79: 0.3125 | AO79: 15.2 | AP79: 0 | AQ79: 0 | AR79: 0 | AS79: 0 | AT79: 0 | AU79: 0 | AV79: 0 | AW79: 0
A80: HSS10X4X1/2 | B80: HSS | C80: F | D80: 41.9149832 | E80: 11.6 | F80: 0 | G80: 10 | H80: 0 | I80: 0 | J80: 4 | K80: 0 | L80: 0 | M80: 0 | N80: 0 | O80: 0.5 | P80: 0.465 | Q80: 0 | R80: 0 | S80: 0 | T80: 0 | U80: 0 | V80: 0 | W80: 0 | X80: 0 | Y80: 0 | Z80: 5.6 | AA80: 0 | AB80: 18.5 | AC80: 0 | AD80: 129 | AE80: 34.1 | AF80: 25.8 | AG80: 3.34 | AH80: 29.5 | AI80: 17.6 | AJ80: 14.7 | AK80: 1.59 | AL80: 0 | AM80: 82.6 | AN80: 0.5 | AO80: 31 | AP80: 0 | AQ80: 0 | AR80: 0 | AS80: 0 | AT80: 0 | AU80: 0 | AV80: 0 | AW80: 0
A81: HSS10X4X1/4 | B81: HSS | C81: F | D81: 22.38912686 | E81: 6.17 | F81: 0 | G81: 10 | H81: 0 | I81: 0 | J81: 4 | K81: 0 | L81: 0 | M81: 0 | N81: 0 | O81: 0.25 | P81: 0.233 | Q81: 0 | R81: 0 | S81: 0 | T81: 0 | U81: 0 | V81: 0 | W81: 0 | X81: 0 | Y81: 0 | Z81: 14.2 | AA81: 0 | AB81: 39.9 | AC81: 0 | AD81: 74.7 | AE81: 19 | AF81: 14.9 | AG81: 3.48 | AH81: 17.7 | AI81: 10 | AJ81: 8.87 | AK81: 1.7 | AL81: 0 | AM81: 47.4 | AN81: 0.25 | AO81: 17.1 | AP81: 0 | AQ81: 0 | AR81: 0 | AS81: 0 | AT81: 0 | AU81: 0 | AV81: 0 | AW81: 0
A82: HSS10X4X1/8 | B82: HSS | C82: F | D82: 11.55181742 | E82: 3.16 | F82: 0 | G82: 10 | H82: 0 | I82: 0 | J82: 4 | K82: 0 | L82: 0 | M82: 0 | N82: 0 | O82: 0.125 | P82: 0.116 | Q82: 0 | R82: 0 | S82: 0 | T82: 0 | U82: 0 | V82: 0 | W82: 0 | X82: 0 | Y82: 0 | Z82: 31.5 | AA82: 0 | AB82: 83.2 | AC82: 0 | AD82: 39.8 | AE82: 10 | AF82: 7.97 | AG82: 3.55 | AH82: 9.65 | AI82: 5.26 | AJ82: 4.83 | AK82: 1.75 | AL82: 0 | AM82: 25.1 | AN82: 0.125 | AO82: 8.9 | AP82: 0 | AQ82: 0 | AR82: 0 | AS82: 0 | AT82: 0 | AU82: 0 | AV82: 0 | AW82: 0
A83: HSS10X4X3/16 | B83: HSS | C83: F | D83: 17.10219974 | E83: 4.67 | F83: 0 | G83: 10 | H83: 0 | I83: 0 | J83: 4 | K83: 0 | L83: 0 | M83: 0 | N83: 0 | O83: 0.1875 | P83: 0.174 | Q83: 0 | R83: 0 | S83: 0 | T83: 0 | U83: 0 | V83: 0 | W83: 0 | X83: 0 | Y83: 0 | Z83: 20 | AA83: 0 | AB83: 54.5 | AC83: 0 | AD83: 57.8 | AE83: 14.6 | AF83: 11.6 | AG83: 3.52 | AH83: 13.9 | AI83: 7.66 | AJ83: 6.93 | AK83: 1.72 | AL83: 0 | AM83: 36.5 | AN83: 0.1875 | AO83: 13.1 | AP83: 0 | AQ83: 0 | AR83: 0 | AS83: 0 | AT83: 0 | AU83: 0 | AV83: 0 | AW83: 0
A84: HSS10X4X3/8 | B84: HSS | C84: F | D84: 32.50995984 | E84: 8.97 | F84: 0 | G84: 10 | H84: 0 | I84: 0 | J84: 4 | K84: 0 | L84: 0 | M84: 0 | N84: 0 | O84: 0.375 | P84: 0.349 | Q84: 0 | R84: 0 | S84: 0 | T84: 0 | U84: 0 | V84: 0 | W84: 0 | X84: 0 | Y84: 0 | Z84: 8.46 | AA84: 0 | AB84: 25.7 | AC84: 0 | AD84: 104 | AE84: 27 | AF84: 20.8 | AG84: 3.41 | AH84: 24.3 | AI84: 14 | AJ84: 12.1 | AK84: 1.64 | AL84: 0 | AM84: 66.5 | AN84: 0.375 | AO84: 24.4 | AP84: 0 | AQ84: 0 | AR84: 0 | AS84: 0 | AT84: 0 | AU84: 0 | AV84: 0 | AW84: 0
A85: HSS10X4X5/16 | B85: HSS | C85: F | D85: 27.57873677 | E85: 7.59 | F85: 0 | G85: 10 | H85: 0 | I85: 0 | J85: 4 | K85: 0 | L85: 0 | M85: 0 | N85: 0 | O85: 0.3125 | P85: 0.291 | Q85: 0 | R85: 0 | S85: 0 | T85: 0 | U85: 0 | V85: 0 | W85: 0 | X85: 0 | Y85: 0 | Z85: 10.7 | AA85: 0 | AB85: 31.4 | AC85: 0 | AD85: 90.1 | AE85: 23.1 | AF85: 18 | AG85: 3.44 | AH85: 21.2 | AI85: 12.1 | AJ85: 10.6 | AK85: 1.67 | AL85: 0 | AM85: 57.3 | AN85: 0.3125 | AO85: 20.9 | AP85: 0 | AQ85: 0 | AR85: 0 | AS85: 0 | AT85: 0 | AU85: 0 | AV85: 0 | AW85: 0
A86: HSS10X4X5/8 | B86: HSS | C86: F | D86: 50.60419696 | E86: 14 | F86: 0 | G86: 10 | H86: 0 | I86: 0 | J86: 4 | K86: 0 | L86: 0 | M86: 0 | N86: 0 | O86: 0.625 | P86: 0.581 | Q86: 0 | R86: 0 | S86: 0 | T86: 0 | U86: 0 | V86: 0 | W86: 0 | X86: 0 | Y86: 0 | Z86: 3.88 | AA86: 0 | AB86: 14.2 | AC86: 0 | AD86: 149 | AE86: 40.3 | AF86: 29.9 | AG86: 3.26 | AH86: 33.5 | AI86: 20.6 | AJ86: 16.8 | AK86: 1.54 | AL86: 0 | AM86: 95.7 | AN86: 0.625 | AO86: 36.7 | AP86: 0 | AQ86: 0 | AR86: 0 | AS86: 0 | AT86: 0 | AU86: 0 | AV86: 0 | AW86: 0
A87: HSS10X5X1/4 | B87: HSS | C87: F | D87: 24.09051575 | E87: 6.63 | F87: 0 | G87: 10 | H87: 0 | I87: 0 | J87: 5 | K87: 0 | L87: 0 | M87: 0 | N87: 0 | O87: 0.25 | P87: 0.233 | Q87: 0 | R87: 0 | S87: 0 | T87: 0 | U87: 0 | V87: 0 | W87: 0 | X87: 0 | Y87: 0 | Z87: 18.5 | AA87: 0 | AB87: 39.9 | AC87: 0 | AD87: 85.8 | AE87: 21.3 | AF87: 17.2 | AG87: 3.6 | AH87: 29.3 | AI87: 13.2 | AJ87: 11.7 | AK87: 2.1 | AL87: 0 | AM87: 70.7 | AN87: 0.25 | AO87: 21.6 | AP87: 0 | AQ87: 0 | AR87: 0 | AS87: 0 | AT87: 0 | AU87: 0 | AV87: 0 | AW87: 0
A88: HSS10X5X3/16 | B88: HSS | C88: F | D88: 18.38164419 | E88: 5.02 | F88: 0 | G88: 10 | H88: 0 | I88: 0 | J88: 5 | K88: 0 | L88: 0 | M88: 0 | N88: 0 | O88: 0.1875 | P88: 0.174 | Q88: 0 | R88: 0 | S88: 0 | T88: 0 | U88: 0 | V88: 0 | W88: 0 | X88: 0 | Y88: 0 | Z88: 25.7 | AA88: 0 | AB88: 54.5 | AC88: 0 | AD88: 66.2 | AE88: 16.3 | AF88: 13.2 | AG88: 3.63 | AH88: 22.7 | AI88: 10.1 | AJ88: 9.09 | AK88: 2.13 | AL88: 0 | AM88: 54.1 | AN88: 0.1875 | AO88: 16.5 | AP88: 0 | AQ88: 0 | AR88: 0 | AS88: 0 | AT88: 0 | AU88: 0 | AV88: 0 | AW88: 0
A89: HSS10X5X3/8 | B89: HSS | C89: F | D89: 35.06204317 | E89: 9.67 | F89: 0 | G89: 10 | H89: 0 | I89: 0 | J89: 5 | K89: 0 | L89: 0 | M89: 0 | N89: 0 | O89: 0.375 | P89: 0.349 | Q89: 0 | R89: 0 | S89: 0 | T89: 0 | U89: 0 | V89: 0 | W89: 0 | X89: 0 | Y89: 0 | Z89: 11.3 | AA89: 0 | AB89: 25.7 | AC89: 0 | AD89: 120 | AE89: 30.4 | AF89: 24.1 | AG89: 3.53 | AH89: 40.6 | AI89: 18.7 | AJ89: 16.2 | AK89: 2.05 | AL89: 0 | AM89: 100 | AN89: 0.375 | AO89: 31.2 | AP89: 0 | AQ89: 0 | AR89: 0 | AS89: 0 | AT89: 0 | AU89: 0 | AV89: 0 | AW89: 0
A90: HSS10X5X5/16 | B90: HSS | C90: F | D90: 29.70887566 | E90: 8.17 | F90: 0 | G90: 10 | H90: 0 | I90: 0 | J90: 5 | K90: 0 | L90: 0 | M90: 0 | N90: 0 | O90: 0.3125 | P90: 0.291 | Q90: 0 | R90: 0 | S90: 0 | T90: 0 | U90: 0 | V90: 0 | W90: 0 | X90: 0 | Y90: 0 | Z90: 14.2 | AA90: 0 | AB90: 31.4 | AC90: 0 | AD90: 104 | AE90: 26 | AF90: 20.8 | AG90: 3.56 | AH90: 35.2 | AI90: 16 | AJ90: 14.1 | AK90: 2.07 | AL90: 0 | AM90: 86 | AN90: 0.3125 | AO90: 26.5 | AP90: 0 | AQ90: 0 | AR90: 0 | AS90: 0 | AT90: 0 | AU90: 0 | AV90: 0 | AW90: 0
A91: HSS10X6X1/2 | B91: HSS | C91: F | D91: 48.72053876 | E91: 13.5 | F91: 0 | G91: 10 | H91: 0 | I91: 0 | J91: 6 | K91: 0 | L91: 0 | M91: 0 | N91: 0 | O91: 0.5 | P91: 0.465 | Q91: 0 | R91: 0 | S91: 0 | T91: 0 | U91: 0 | V91: 0 | W91: 0 | X91: 0 | Y91: 0 | Z91: 9.9 | AA91: 0 | AB91: 18.5 | AC91: 0 | AD91: 171 | AE91: 43 | AF91: 34.3 | AG91: 3.57 | AH91: 76.8 | AI91: 30.1 | AJ91: 25.6 | AK91: 2.39 | AL91: 0 | AM91: 176 | AN91: 0.5 | AO91: 48.7 | AP91: 0 | AQ91: 0 | AR91: 0 | AS91: 0 | AT91: 0 | AU91: 0 | AV91: 0 | AW91: 0
A92: HSS10X6X1/4 | B92: HSS | C92: F | D92: 25.79190464 | E92: 7.1 | F92: 0 | G92: 10 | H92: 0 | I92: 0 | J92: 6 | K92: 0 | L92: 0 | M92: 0 | N92: 0 | O92: 0.25 | P92: 0.233 | Q92: 0 | R92: 0 | S92: 0 | T92: 0 | U92: 0 | V92: 0 | W92: 0 | X92: 0 | Y92: 0 | Z92: 22.8 | AA92: 0 | AB92: 39.9 | AC92: 0 | AD92: 96.9 | AE92: 23.6 | AF92: 19.4 | AG92: 3.69 | AH92: 44.1 | AI92: 16.6 | AJ92: 14.7 | AK92: 2.49 | AL92: 0 | AM92: 96.7 | AN92: 0.25 | AO92: 26.2 | AP92: 0 | AQ92: 0 | AR92: 0 | AS92: 0 | AT92: 0 | AU92: 0 | AV92: 0 | AW92: 0
A93: HSS10X6X3/16 | B93: HSS | C93: F | D93: 19.66108863 | E93: 5.37 | F93: 0 | G93: 10 | H93: 0 | I93: 0 | J93: 6 | K93: 0 | L93: 0 | M93: 0 | N93: 0 | O93: 0.1875 | P93: 0.174 | Q93: 0 | R93: 0 | S93: 0 | T93: 0 | U93: 0 | V93: 0 | W93: 0 | X93: 0 | Y93: 0 | Z93: 31.5 | AA93: 0 | AB93: 54.5 | AC93: 0 | AD93: 74.6 | AE93: 18 | AF93: 14.9 | AG93: 3.73 | AH93: 34.1 | AI93: 12.7 | AJ93: 11.4 | AK93: 2.52 | AL93: 0 | AM93: 73.8 | AN93: 0.1875 | AO93: 19.9 | AP93: 0 | AQ93: 0 | AR93: 0 | AS93: 0 | AT93: 0 | AU93: 0 | AV93: 0 | AW93: 0
A94: HSS10X6X3/8 | B94: HSS | C94: F | D94: 37.6141265 | E94: 10.4 | F94: 0 | G94: 10 | H94: 0 | I94: 0 | J94: 6 | K94: 0 | L94: 0 | M94: 0 | N94: 0 | O94: 0.375 | P94: 0.349 | Q94: 0 | R94: 0 | S94: 0 | T94: 0 | U94: 0 | V94: 0 | W94: 0 | X94: 0 | Y94: 0 | Z94: 14.2 | AA94: 0 | AB94: 25.7 | AC94: 0 | AD94: 137 | AE94: 33.8 | AF94: 27.4 | AG94: 3.63 | AH94: 61.8 | AI94: 23.7 | AJ94: 20.6 | AK94: 2.44 | AL94: 0 | AM94: 139 | AN94: 0.375 | AO94: 37.9 | AP94: 0 | AQ94: 0 | AR94: 0 | AS94: 0 | AT94: 0 | AU94: 0 | AV94: 0 | AW94: 0
A95: HSS10X6X5/16 | B95: HSS | C95: F | D95: 31.83901455 | E95: 8.76 | F95: 0 | G95: 10 | H95: 0 | I95: 0 | J95: 6 | K95: 0 | L95: 0 | M95: 0 | N95: 0 | O95: 0.3125 | P95: 0.291 | Q95: 0 | R95: 0 | S95: 0 | T95: 0 | U95: 0 | V95: 0 | W95: 0 | X95: 0 | Y95: 0 | Z95: 17.6 | AA95: 0 | AB95: 31.4 | AC95: 0 | AD95: 118 | AE95: 28.8 | AF95: 23.5 | AG95: 3.66 | AH95: 53.3 | AI95: 20.2 | AJ95: 17.8 | AK95: 2.47 | AL95: 0 | AM95: 118 | AN95: 0.3125 | AO95: 32.2 | AP95: 0 | AQ95: 0 | AR95: 0 | AS95: 0 | AT95: 0 | AU95: 0 | AV95: 0 | AW95: 0
A96: HSS10X6X5/8 | B96: HSS | C96: F | D96: 59.1111414 | E96: 16.4 | F96: 0 | G96: 10 | H96: 0 | I96: 0 | J96: 6 | K96: 0 | L96: 0 | M96: 0 | N96: 0 | O96: 0.625 | P96: 0.581 | Q96: 0 | R96: 0 | S96: 0 | T96: 0 | U96: 0 | V96: 0 | W96: 0 | X96: 0 | Y96: 0 | Z96: 7.33 | AA96: 0 | AB96: 14.2 | AC96: 0 | AD96: 201 | AE96: 51.3 | AF96: 40.2 | AG96: 3.5 | AH96: 89.4 | AI96: 35.8 | AJ96: 29.8 | AK96: 2.34 | AL96: 0 | AM96: 209 | AN96: 0.625 | AO96: 58.6 | AP96: 0 | AQ96: 0 | AR96: 0 | AS96: 0 | AT96: 0 | AU96: 0 | AV96: 0 | AW96: 0
A97: HSS10X8X1/2 | B97: HSS | C97: F | D97: 55.52609431 | E97: 15.3 | F97: 0 | G97: 10 | H97: 0 | I97: 0 | J97: 8 | K97: 0 | L97: 0 | M97: 0 | N97: 0 | O97: 0.5 | P97: 0.465 | Q97: 0 | R97: 0 | S97: 0 | T97: 0 | U97: 0 | V97: 0 | W97: 0 | X97: 0 | Y97: 0 | Z97: 14.2 | AA97: 0 | AB97: 18.5 | AC97: 0 | AD97: 214 | AE97: 51.9 | AF97: 42.7 | AG97: 3.73 | AH97: 151 | AI97: 44.5 | AJ97: 37.8 | AK97: 3.14 | AL97: 0 | AM97: 288 | AN97: 0.5 | AO97: 66.4 | AP97: 0 | AQ97: 0 | AR97: 0 | AS97: 0 | AT97: 0 | AU97: 0 | AV97: 0 | AW97: 0
A98: HSS10X8X1/4 | B98: HSS | C98: F | D98: 29.19468241 | E98: 8.03 | F98: 0 | G98: 10 | H98: 0 | I98: 0 | J98: 8 | K98: 0 | L98: 0 | M98: 0 | N98: 0 | O98: 0.25 | P98: 0.233 | Q98: 0 | R98: 0 | S98: 0 | T98: 0 | U98: 0 | V98: 0 | W98: 0 | X98: 0 | Y98: 0 | Z98: 31.3 | AA98: 0 | AB98: 39.9 | AC98: 0 | AD98: 119 | AE98: 28.1 | AF98: 23.8 | AG98: 3.85 | AH98: 84.7 | AI98: 24.2 | AJ98: 21.2 | AK98: 3.25 | AL98: 0 | AM98: 155 | AN98: 0.25 | AO98: 35.3 | AP98: 0 | AQ98: 0 | AR98: 0 | AS98: 0 | AT98: 0 | AU98: 0 | AV98: 0 | AW98: 0
A99: HSS10X8X3/16 | B99: HSS | C99: F | D99: 22.21997752 | E99: 6.06 | F99: 0 | G99: 10 | H99: 0 | I99: 0 | J99: 8 | K99: 0 | L99: 0 | M99: 0 | N99: 0 | O99: 0.1875 | P99: 0.174 | Q99: 0 | R99: 0 | S99: 0 | T99: 0 | U99: 0 | V99: 0 | W99: 0 | X99: 0 | Y99: 0 | Z99: 43 | AA99: 0 | AB99: 54.5 | AC99: 0 | AD99: 91.4 | AE99: 21.4 | AF99: 18.3 | AG99: 3.88 | AH99: 65.1 | AI99: 18.4 | AJ99: 16.3 | AK99: 3.28 | AL99: 0 | AM99: 118 | AN99: 0.1875 | AO99: 26.7 | AP99: 0 | AQ99: 0 | AR99: 0 | AS99: 0 | AT99: 0 | AU99: 0 | AV99: 0 | AW99: 0
A100: HSS10X8X3/8 | B100: HSS | C100: F | D100: 42.71829317 | E100: 11.8 | F100: 0 | G100: 10 | H100: 0 | I100: 0 | J100: 8 | K100: 0 | L100: 0 | M100: 0 | N100: 0 | O100: 0.375 | P100: 0.349 | Q100: 0 | R100: 0 | S100: 0 | T100: 0 | U100: 0 | V100: 0 | W100: 0 | X100: 0 | Y100: 0 | Z100: 19.9 | AA100: 0 | AB100: 25.7 | AC100: 0 | AD100: 169 | AE100: 40.5 | AF100: 33.9 | AG100: 3.79 | AH100: 120 | AI100: 34.8 | AJ100: 30 | AK100: 3.19 | AL100: 0 | AM100: 224 | AN100: 0.375 | AO100: 51.4 | AP100: 0 | AQ100: 0 | AR100: 0 | AS100: 0 | AT100: 0 | AU100: 0 | AV100: 0 | AW100: 0
A101: HSS10X8X5/16 | B101: HSS | C101: F | D101: 36.09929233 | E101: 9.92 | F101: 0 | G101: 10 | H101: 0 | I101: 0 | J101: 8 | K101: 0 | L101: 0 | M101: 0 | N101: 0 | O101: 0.3125 | P101: 0.291 | Q101: 0 | R101: 0 | S101: 0 | T101: 0 | U101: 0 | V101: 0 | W101: 0 | X101: 0 | Y101: 0 | Z101: 24.5 | AA101: 0 | AB101: 31.4 | AC101: 0 | AD101: 145 | AE101: 34.4 | AF101: 29 | AG101: 3.82 | AH101: 103 | AI101: 29.6 | AJ101: 25.7 | AK101: 3.22 | AL101: 0 | AM101: 190 | AN101: 0.3125 | AO101: 43.5 | AP101: 0 | AQ101: 0 | AR101: 0 | AS101: 0 | AT101: 0 | AU101: 0 | AV101: 0 | AW101: 0
A102: HSS10X8X5/8 | B102: HSS | C102: F | D102: 67.61808585 | E102: 18.7 | F102: 0 | G102: 10 | H102: 0 | I102: 0 | J102: 8 | K102: 0 | L102: 0 | M102: 0 | N102: 0 | O102: 0.625 | P102: 0.581 | Q102: 0 | R102: 0 | S102: 0 | T102: 0 | U102: 0 | V102: 0 | W102: 0 | X102: 0 | Y102: 0 | Z102: 10.8 | AA102: 0 | AB102: 14.2 | AC102: 0 | AD102: 253 | AE102: 62.2 | AF102: 50.5 | AG102: 3.68 | AH102: 178 | AI102: 53.3 | AJ102: 44.5 | AK102: 3.09 | AL102: 0 | AM102: 346 | AN102: 0.625 | AO102: 80.4 | AP102: 0 | AQ102: 0 | AR102: 0 | AS102: 0 | AT102: 0 | AU102: 0 | AV102: 0 | AW102: 0
A103: HSS12.750X0.250 | B103: HSS | C103: F | D103: 33.40669271 | E103: 9.16 | F103: 0 | G103: 0 | H103: 12.75 | I103: 0 | J103: 0 | K103: 0 | L103: 0 | M103: 0 | N103: 0 | O103: 0.25 | P103: 0.233 | Q103: 0 | R103: 0 | S103: 0 | T103: 0 | U103: 0 | V103: 0 | W103: 0 | X103: 0 | Y103: 0 | Z103: 0 | AA103: 0 | AB103: 0 | AC103: 54.7 | AD103: 180 | AE103: 36.5 | AF103: 28.2 | AG103: 4.43 | AH103: 180 | AI103: 36.5 | AJ103: 28.2 | AK103: 4.43 | AL103: 0 | AM103: 359 | AN103: 0 | AO103: 56.3 | AP103: 0 | AQ103: 0 | AR103: 0 | AS103: 0 | AT103: 0 | AU103: 0 | AV103: 0 | AW103: 0
A104: HSS12.750X0.375 | B104: HSS | C104: F | D104: 49.60893868 | E104: 13.6 | F104: 0 | G104: 0 | H104: 12.75 | I104: 0 | J104: 0 | K104: 0 | L104: 0 | M104: 0 | N104: 0 | O104: 0.375 | P104: 0.349 | Q104: 0 | R104: 0 | S104: 0 | T104: 0 | U104: 0 | V104: 0 | W104: 0 | X104: 0 | Y104: 0 | Z104: 0 | AA104: 0 | AB104: 0 | AC104: 36.5 | AD104: 262 | AE104: 53.7 | AF104: 41 | AG104: 4.39 | AH104: 262 | AI104: 53.7 | AJ104: 41 | AK104: 4.39 | AL104: 0 | AM104: 523 | AN104: 0 | AO104: 82.1 | AP104: 0 | AQ104: 0 | AR104: 0 | AS104: 0 | AT104: 0 | AU104: 0 | AV104: 0 | AW104: 0
A105: HSS12.750X0.500 | B105: HSS | C105: F | D105: 65.47711772 | E105: 17.9 | F105: 0 | G105: 0 | H105: 12.75 | I105: 0 | J105: 0 | K105: 0 | L105: 0 | M105: 0 | N105: 0 | O105: 0.5 | P105: 0.465 | Q105: 0 | R105: 0 | S105: 0 | T105: 0 | U105: 0 | V105: 0 | W105: 0 | X105: 0 | Y105: 0 | Z105: 0 | AA105: 0 | AB105: 0 | AC105: 27.4 | AD105: 339 | AE105: 70.2 | AF105: 53.2 | AG105: 4.35 | AH105: 339 | AI105: 70.2 | AJ105: 53.2 | AK105: 4.35 | AL105: 0 | AM105: 678 | AN105: 0 | AO105: 106 | AP105: 0 | AQ105: 0 | AR105: 0 | AS105: 0 | AT105: 0 | AU105: 0 | AV105: 0 | AW105: 0
A106: HSS12X10X1/2 | B106: HSS | C106: F | D106: 69.13720542 | E106: 19 | F106: 0 | G106: 12 | H106: 0 | I106: 0 | J106: 10 | K106: 0 | L106: 0 | M106: 0 | N106: 0 | O106: 0.5 | P106: 0.465 | Q106: 0 | R106: 0 | S106: 0 | T106: 0 | U106: 0 | V106: 0 | W106: 0 | X106: 0 | Y106: 0 | Z106: 18.5 | AA106: 0 | AB106: 22.8 | AC106: 0 | AD106: 395 | AE106: 78.8 | AF106: 65.9 | AG106: 4.56 | AH106: 298 | AI106: 69.6 | AJ106: 59.7 | AK106: 3.96 | AL106: 0 | AM106: 545 | AN106: 0.5 | AO106: 102 | AP106: 0 | AQ106: 0 | AR106: 0 | AS106: 0 | AT106: 0 | AU106: 0 | AV106: 0 | AW106: 0
A107: HSS12X10X1/4 | B107: HSS | C107: F | D107: 36.00023797 | E107: 9.9 | F107: 0 | G107: 12 | H107: 0 | I107: 0 | J107: 10 | K107: 0 | L107: 0 | M107: 0 | N107: 0 | O107: 0.25 | P107: 0.233 | Q107: 0 | R107: 0 | S107: 0 | T107: 0 | U107: 0 | V107: 0 | W107: 0 | X107: 0 | Y107: 0 | Z107: 39.9 | AA107: 0 | AB107: 48.5 | AC107: 0 | AD107: 216 | AE107: 42.1 | AF107: 36 | AG107: 4.67 | AH107: 164 | AI107: 37.2 | AJ107: 32.7 | AK107: 4.07 | AL107: 0 | AM107: 289 | AN107: 0.25 | AO107: 53.5 | AP107: 0 | AQ107: 0 | AR107: 0 | AS107: 0 | AT107: 0 | AU107: 0 | AV107: 0 | AW107: 0
A108: HSS12X10X3/8 | B108: HSS | C108: F | D108: 52.9266265 | E108: 14.6 | F108: 0 | G108: 12 | H108: 0 | I108: 0 | J108: 10 | K108: 0 | L108: 0 | M108: 0 | N108: 0 | O108: 0.375 | P108: 0.349 | Q108: 0 | R108: 0 | S108: 0 | T108: 0 | U108: 0 | V108: 0 | W108: 0 | X108: 0 | Y108: 0 | Z108: 25.7 | AA108: 0 | AB108: 31.4 | AC108: 0 | AD108: 310 | AE108: 61.1 | AF108: 51.6 | AG108: 4.61 | AH108: 234 | AI108: 54 | AJ108: 46.9 | AK108: 4.01 | AL108: 0 | AM108: 421 | AN108: 0.375 | AO108: 78.3 | AP108: 0 | AQ108: 0 | AR108: 0 | AS108: 0 | AT108: 0 | AU108: 0 | AV108: 0 | AW108: 0
A109: HSS12X10X5/16 | B109: HSS | C109: F | D109: 44.61984788 | E109: 12.2 | F109: 0 | G109: 12 | H109: 0 | I109: 0 | J109: 10 | K109: 0 | L109: 0 | M109: 0 | N109: 0 | O109: 0.3125 | P109: 0.291 | Q109: 0 | R109: 0 | S109: 0 | T109: 0 | U109: 0 | V109: 0 | W109: 0 | X109: 0 | Y109: 0 | Z109: 31.4 | AA109: 0 | AB109: 38.2 | AC109: 0 | AD109: 264 | AE109: 51.7 | AF109: 44 | AG109: 4.64 | AH109: 200 | AI109: 45.7 | AJ109: 40 | AK109: 4.04 | AL109: 0 | AM109: 356 | AN109: 0.3125 | AO109: 66.1 | AP109: 0 | AQ109: 0 | AR109: 0 | AS109: 0 | AT109: 0 | AU109: 0 | AV109: 0 | AW109: 0
A110: HSS12X12X1/2 | B110: HSS | C110: F | D110: 75.94276098 | E110: 20.9 | F110: 0 | G110: 12 | H110: 0 | I110: 0 | J110: 12 | K110: 0 | L110: 0 | M110: 0 | N110: 0 | O110: 0.5 | P110: 0.465 | Q110: 0 | R110: 0 | S110: 0 | T110: 0 | U110: 0 | V110: 0 | W110: 0 | X110: 0 | Y110: 0 | Z110: 22.8 | AA110: 0 | AB110: 22.8 | AC110: 0 | AD110: 457 | AE110: 89.6 | AF110: 76.2 | AG110: 4.68 | AH110: 0 | AI110: 0 | AJ110: 0 | AK110: 0 | AL110: 0 | AM110: 728 | AN110: 0 | AO110: 123 | AP110: 0 | AQ110: 0 | AR110: 0 | AS110: 0 | AT110: 0 | AU110: 0 | AV110: 0 | AW110: 0
A111: HSS12X12X1/4 | B111: HSS | C111: F | D111: 39.40301575 | E111: 10.8 | F111: 0 | G111: 12 | H111: 0 | I111: 0 | J111: 12 | K111: 0 | L111: 0 | M111: 0 | N111: 0 | O111: 0.25 | P111: 0.233 | Q111: 0 | R111: 0 | S111: 0 | T111: 0 | U111: 0 | V111: 0 | W111: 0 | X111: 0 | Y111: 0 | Z111: 48.5 | AA111: 0 | AB111: 48.5 | AC111: 0 | AD111: 248 | AE111: 47.6 | AF111: 41.4 | AG111: 4.79 | AH111: 0 | AI111: 0 | AJ111: 0 | AK111: 0 | AL111: 0 | AM111: 384 | AN111: 0 | AO111: 64.5 | AP111: 0 | AQ111: 0 | AR111: 0 | AS111: 0 | AT111: 0 | AU111: 0 | AV111: 0 | AW111: 0
A112: HSS12X12X3/16 | B112: HSS | C112: F | D112: 29.81971419 | E112: 8.15 | F112: 0 | G112: 12 | H112: 0 | I112: 0 | J112: 12 | K112: 0 | L112: 0 | M112: 0 | N112: 0 | O112: 0.1875 | P112: 0.174 | Q112: 0 | R112: 0 | S112: 0 | T112: 0 | U112: 0 | V112: 0 | W112: 0 | X112: 0 | Y112: 0 | Z112: 66 | AA112: 0 | AB112: 66 | AC112: 0 | AD112: 189 | AE112: 36 | AF112: 31.5 | AG112: 4.82 | AH112: 0 | AI112: 0 | AJ112: 0 | AK112: 0 | AL112: 0 | AM112: 290 | AN112: 0 | AO112: 48.6 | AP112: 0 | AQ112: 0 | AR112: 0 | AS112: 0 | AT112: 0 | AU112: 0 | AV112: 0 | AW112: 0
A113: HSS12X12X3/8 | B113: HSS | C113: F | D113: 58.03079317 | E113: 16 | F113: 0 | G113: 12 | H113: 0 | I113: 0 | J113: 12 | K113: 0 | L113: 0 | M113: 0 | N113: 0 | O113: 0.375 | P113: 0.349 | Q113: 0 | R113: 0 | S113: 0 | T113: 0 | U113: 0 | V113: 0 | W113: 0 | X113: 0 | Y113: 0 | Z113: 31.4 | AA113: 0 | AB113: 31.4 | AC113: 0 | AD113: 357 | AE113: 69.2 | AF113: 59.5 | AG113: 4.73 | AH113: 0 | AI113: 0 | AJ113: 0 | AK113: 0 | AL113: 0 | AM113: 561 | AN113: 0 | AO113: 94.6 | AP113: 0 | AQ113: 0 | AR113: 0 | AS113: 0 | AT113: 0 | AU113: 0 | AV113: 0 | AW113: 0
A114: HSS12X12X5/16 | B114: HSS | C114: F | D114: 48.80638066 | E114: 13.4 | F114: 0 | G114: 12 | H114: 0 | I114: 0 | J114: 12 | K114: 0 | L114: 0 | M114: 0 | N114: 0 | O114: 0.3125 | P114: 0.291 | Q114: 0 | R114: 0 | S114: 0 | T114: 0 | U114: 0 | V114: 0 | W114: 0 | X114: 0 | Y114: 0 | Z114: 38.2 | AA114: 0 | AB114: 38.2 | AC114: 0 | AD114: 304 | AE114: 58.6 | AF114: 50.7 | AG114: 4.76 | AH114: 0 | AI114: 0 | AJ114: 0 | AK114: 0 | AL114: 0 | AM114: 474 | AN114: 0 | AO114: 79.7 | AP114: 0 | AQ114: 0 | AR114: 0 | AS114: 0 | AT114: 0 | AU114: 0 | AV114: 0 | AW114: 0
A115: HSS12X12X5/8 | B115: HSS | C115: F | D115: 93.13891918 | E115: 25.7 | F115: 0 | G115: 12 | H115: 0 | I115: 0 | J115: 12 | K115: 0 | L115: 0 | M115: 0 | N115: 0 | O115: 0.625 | P115: 0.581 | Q115: 0 | R115: 0 | S115: 0 | T115: 0 | U115: 0 | V115: 0 | W115: 0 | X115: 0 | Y115: 0 | Z115: 17.7 | AA115: 0 | AB115: 17.7 | AC115: 0 | AD115: 548 | AE115: 109 | AF115: 91.4 | AG115: 4.62 | AH115: 0 | AI115: 0 | AJ115: 0 | AK115: 0 | AL115: 0 | AM115: 885 | AN115: 0 | AO115: 151 | AP115: 0 | AQ115: 0 | AR115: 0 | AS115: 0 | AT115: 0 | AU115: 0 | AV115: 0 | AW115: 0
A116: HSS12X2X1/4 | B116: HSS | C116: F | D116: 22.38912686 | E116: 6.17 | F116: 0 | G116: 12 | H116: 0 | I116: 0 | J116: 2 | K116: 0 | L116: 0 | M116: 0 | N116: 0 | O116: 0.25 | P116: 0.233 | Q116: 0 | R116: 0 | S116: 0 | T116: 0 | U116: 0 | V116: 0 | W116: 0 | X116: 0 | Y116: 0 | Z116: 5.58 | AA116: 0 | AB116: 48.5 | AC116: 0 | AD116: 86.9 | AE116: 20.1 | AF116: 14.5 | AG116: 3.75 | AH116: 4.41 | AI116: 5.08 | AJ116: 4.41 | AK116: 0.845 | AL116: 0 | AM116: 15.1 | AN116: 0.25 | AO116: 9.64 | AP116: 0 | AQ116: 0 | AR116: 0 | AS116: 0 | AT116: 0 | AU116: 0 | AV116: 0 | AW116: 0
A117: HSS12X2X3/16 | B117: HSS | C117: F | D117: 17.10219974 | E117: 4.67 | F117: 0 | G117: 12 | H117: 0 | I117: 0 | J117: 2 | K117: 0 | L117: 0 | M117: 0 | N117: 0 | O117: 0.1875 | P117: 0.174 | Q117: 0 | R117: 0 | S117: 0 | T117: 0 | U117: 0 | V117: 0 | W117: 0 | X117: 0 | Y117: 0 | Z117: 8.49 | AA117: 0 | AB117: 66 | AC117: 0 | AD117: 67.4 | AE117: 15.5 | AF117: 11.2 | AG117: 3.8 | AH117: 3.55 | AI117: 3.97 | AJ117: 3.55 | AK117: 0.872 | AL117: 0 | AM117: 12 | AN117: 0.1875 | AO117: 7.49 | AP117: 0 | AQ117: 0 | AR117: 0 | AS117: 0 | AT117: 0 | AU117: 0 | AV117: 0 | AW117: 0
A118: HSS12X2X5/16 | B118: HSS | C118: F | D118: 27.57873677 | E118: 7.59 | F118: 0 | G118: 12 | H118: 0 | I118: 0 | J118: 2 | K118: 0 | L118: 0 | M118: 0 | N118: 0 | O118: 0.3125 | P118: 0.291 | Q118: 0 | R118: 0 | S118: 0 | T118: 0 | U118: 0 | V118: 0 | W118: 0 | X118: 0 | Y118: 0 | Z118: 3.87 | AA118: 0 | AB118: 38.2 | AC118: 0 | AD118: 104 | AE118: 24.5 | AF118: 17.4 | AG118: 3.71 | AH118: 5.1 | AI118: 6.05 | AJ118: 5.1 | AK118: 0.82 | AL118: 0 | AM118: 17.6 | AN118: 0.3125 | AO118: 11.6 | AP118: 0 | AQ118: 0 | AR118: 0 | AS118: 0 | AT118: 0 | AU118: 0 | AV118: 0 | AW118: 0
A119: HSS12X3-1/2X3/8 | B119: HSS | C119: F | D119: 36.33808484 | E119: 10 | F119: 0 | G119: 12 | H119: 0 | I119: 0 | J119: 3.5 | K119: 0 | L119: 0 | M119: 0 | N119: 0 | O119: 0.375 | P119: 0.349 | Q119: 0 | R119: 0 | S119: 0 | T119: 0 | U119: 0 | V119: 0 | W119: 0 | X119: 0 | Y119: 0 | Z119: 7.03 | AA119: 0 | AB119: 31.4 | AC119: 0 | AD119: 156 | AE119: 34.7 | AF119: 26 | AG119: 3.94 | AH119: 21.3 | AI119: 14 | AJ119: 12.2 | AK119: 1.46 | AL119: 0 | AM119: 64.7 | AN119: 0.375 | AO119: 25.5 | AP119: 0 | AQ119: 0 | AR119: 0 | AS119: 0 | AT119: 0 | AU119: 0 | AV119: 0 | AW119: 0
A120: HSS12X3-1/2X5/16 | B120: HSS | C120: F | D120: 30.7739451 | E120: 8.46 | F120: 0 | G120: 12 | H120: 0 | I120: 0 | J120: 3.5 | K120: 0 | L120: 0 | M120: 0 | N120: 0 | O120: 0.3125 | P120: 0.291 | Q120: 0 | R120: 0 | S120: 0 | T120: 0 | U120: 0 | V120: 0 | W120: 0 | X120: 0 | Y120: 0 | Z120: 9.03 | AA120: 0 | AB120: 38.2 | AC120: 0 | AD120: 134 | AE120: 29.6 | AF120: 22.4 | AG120: 3.98 | AH120: 18.6 | AI120: 12.1 | AJ120: 10.6 | AK120: 1.48 | AL120: 0 | AM120: 56 | AN120: 0.3125 | AO120: 21.8 | AP120: 0 | AQ120: 0 | AR120: 0 | AS120: 0 | AT120: 0 | AU120: 0 | AV120: 0 | AW120: 0
A121: HSS12X3X1/4 | B121: HSS | C121: F | D121: 24.09051575 | E121: 6.63 | F121: 0 | G121: 12 | H121: 0 | I121: 0 | J121: 3 | K121: 0 | L121: 0 | M121: 0 | N121: 0 | O121: 0.25 | P121: 0.233 | Q121: 0 | R121: 0 | S121: 0 | T121: 0 | U121: 0 | V121: 0 | W121: 0 | X121: 0 | Y121: 0 | Z121: 9.88 | AA121: 0 | AB121: 48.5 | AC121: 0 | AD121: 103 | AE121: 22.9 | AF121: 17.2 | AG121: 3.94 | AH121: 11.1 | AI121: 8.28 | AJ121: 7.38 | AK121: 1.29 | AL121: 0 | AM121: 34.5 | AN121: 0.25 | AO121: 15.1 | AP121: 0 | AQ121: 0 | AR121: 0 | AS121: 0 | AT121: 0 | AU121: 0 | AV121: 0 | AW121: 0
A122: HSS12X3X3/16 | B122: HSS | C122: F | D122: 18.38164419 | E122: 5.02 | F122: 0 | G122: 12 | H122: 0 | I122: 0 | J122: 3 | K122: 0 | L122: 0 | M122: 0 | N122: 0 | O122: 0.1875 | P122: 0.174 | Q122: 0 | R122: 0 | S122: 0 | T122: 0 | U122: 0 | V122: 0 | W122: 0 | X122: 0 | Y122: 0 | Z122: 14.2 | AA122: 0 | AB122: 66 | AC122: 0 | AD122: 79.6 | AE122: 17.5 | AF122: 13.3 | AG122: 3.98 | AH122: 8.72 | AI122: 6.4 | AJ122: 5.81 | AK122: 1.32 | AL122: 0 | AM122: 26.8 | AN122: 0.1875 | AO122: 11.6 | AP122: 0 | AQ122: 0 | AR122: 0 | AS122: 0 | AT122: 0 | AU122: 0 | AV122: 0 | AW122: 0
A123: HSS12X3X5/16 | B123: HSS | C123: F | D123: 29.70887566 | E123: 8.17 | F123: 0 | G123: 12 | H123: 0 | I123: 0 | J123: 3 | K123: 0 | L123: 0 | M123: 0 | N123: 0 | O123: 0.3125 | P123: 0.291 | Q123: 0 | R123: 0 | S123: 0 | T123: 0 | U123: 0 | V123: 0 | W123: 0 | X123: 0 | Y123: 0 | Z123: 7.31 | AA123: 0 | AB123: 38.2 | AC123: 0 | AD123: 124 | AE123: 27.9 | AF123: 20.7 | AG123: 3.9 | AH123: 13.1 | AI123: 10 | AJ123: 8.73 | AK123: 1.27 | AL123: 0 | AM123: 41.3 | AN123: 0.3125 | AO123: 18.4 | AP123: 0 | AQ123: 0 | AR123: 0 | AS123: 0 | AT123: 0 | AU123: 0 | AV123: 0 | AW123: 0
A124: HSS12X4X1/2 | B124: HSS | C124: F | D124: 48.72053876 | E124: 13.5 | F124: 0 | G124: 12 | H124: 0 | I124: 0 | J124: 4 | K124: 0 | L124: 0 | M124: 0 | N124: 0 | O124: 0.5 | P124: 0.465 | Q124: 0 | R124: 0 | S124: 0 | T124: 0 | U124: 0 | V124: 0 | W124: 0 | X124: 0 | Y124: 0 | Z124: 5.6 | AA124: 0 | AB124: 22.8 | AC124: 0 | AD124: 210 | AE124: 46.7 | AF124: 34.9 | AG124: 3.95 | AH124: 35.3 | AI124: 20.9 | AJ124: 17.7 | AK124: 1.62 | AL124: 0 | AM124: 105 | AN124: 0.5 | AO124: 37.5 | AP124: 0 | AQ124: 0 | AR124: 0 | AS124: 0 | AT124: 0 | AU124: 0 | AV124: 0 | AW124: 0
A125: HSS12X4X1/4 | B125: HSS | C125: F | D125: 25.79190464 | E125: 7.1 | F125: 0 | G125: 12 | H125: 0 | I125: 0 | J125: 4 | K125: 0 | L125: 0 | M125: 0 | N125: 0 | O125: 0.25 | P125: 0.233 | Q125: 0 | R125: 0 | S125: 0 | T125: 0 | U125: 0 | V125: 0 | W125: 0 | X125: 0 | Y125: 0 | Z125: 14.2 | AA125: 0 | AB125: 48.5 | AC125: 0 | AD125: 119 | AE125: 25.6 | AF125: 19.9 | AG125: 4.1 | AH125: 21 | AI125: 11.7 | AJ125: 10.5 | AK125: 1.72 | AL125: 0 | AM125: 59.8 | AN125: 0.25 | AO125: 20.6 | AP125: 0 | AQ125: 0 | AR125: 0 | AS125: 0 | AT125: 0 | AU125: 0 | AV125: 0 | AW125: 0
A126: HSS12X4X3/16 | B126: HSS | C126: F | D126: 19.66108863 | E126: 5.37 | F126: 0 | G126: 12 | H126: 0 | I126: 0 | J126: 4 | K126: 0 | L126: 0 | M126: 0 | N126: 0 | O126: 0.1875 | P126: 0.174 | Q126: 0 | R126: 0 | S126: 0 | T126: 0 | U126: 0 | V126: 0 | W126: 0 | X126: 0 | Y126: 0 | Z126: 20 | AA126: 0 | AB126: 66 | AC126: 0 | AD126: 91.8 | AE126: 19.6 | AF126: 15.3 | AG126: 4.13 | AH126: 16.4 | AI126: 9 | AJ126: 8.2 | AK126: 1.75 | AL126: 0 | AM126: 46.1 | AN126: 0.1875 | AO126: 15.7 | AP126: 0 | AQ126: 0 | AR126: 0 | AS126: 0 | AT126: 0 | AU126: 0 | AV126: 0 | AW126: 0
A127: HSS12X4X3/8 | B127: HSS | C127: F | D127: 37.6141265 | E127: 10.4 | F127: 0 | G127: 12 | H127: 0 | I127: 0 | J127: 4 | K127: 0 | L127: 0 | M127: 0 | N127: 0 | O127: 0.375 | P127: 0.349 | Q127: 0 | R127: 0 | S127: 0 | T127: 0 | U127: 0 | V127: 0 | W127: 0 | X127: 0 | Y127: 0 | Z127: 8.46 | AA127: 0 | AB127: 31.4 | AC127: 0 | AD127: 168 | AE127: 36.7 | AF127: 28 | AG127: 4.02 | AH127: 28.9 | AI127: 16.6 | AJ127: 14.5 | AK127: 1.67 | AL127: 0 | AM127: 84.1 | AN127: 0.375 | AO127: 29.5 | AP127: 0 | AQ127: 0 | AR127: 0 | AS127: 0 | AT127: 0 | AU127: 0 | AV127: 0 | AW127: 0
A128: HSS12X4X5/16 | B128: HSS | C128: F | D128: 31.83901455 | E128: 8.76 | F128: 0 | G128: 12 | H128: 0 | I128: 0 | J128: 4 | K128: 0 | L128: 0 | M128: 0 | N128: 0 | O128: 0.3125 | P128: 0.291 | Q128: 0 | R128: 0 | S128: 0 | T128: 0 | U128: 0 | V128: 0 | W128: 0 | X128: 0 | Y128: 0 | Z128: 10.7 | AA128: 0 | AB128: 38.2 | AC128: 0 | AD128: 144 | AE128: 31.3 | AF128: 24.1 | AG128: 4.06 | AH128: 25.2 | AI128: 14.2 | AJ128: 12.6 | AK128: 1.7 | AL128: 0 | AM128: 72.4 | AN128: 0.3125 | AO128: 25.2 | AP128: 0 | AQ128: 0 | AR128: 0 | AS128: 0 | AT128: 0 | AU128: 0 | AV128: 0 | AW128: 0
A129: HSS12X4X5/8 | B129: HSS | C129: F | D129: 59.1111414 | E129: 16.4 | F129: 0 | G129: 12 | H129: 0 | I129: 0 | J129: 4 | K129: 0 | L129: 0 | M129: 0 | N129: 0 | O129: 0.625 | P129: 0.581 | Q129: 0 | R129: 0 | S129: 0 | T129: 0 | U129: 0 | V129: 0 | W129: 0 | X129: 0 | Y129: 0 | Z129: 3.88 | AA129: 0 | AB129: 17.7 | AC129: 0 | AD129: 245 | AE129: 55.5 | AF129: 40.8 | AG129: 3.87 | AH129: 40.4 | AI129: 24.5 | AJ129: 20.2 | AK129: 1.57 | AL129: 0 | AM129: 122 | AN129: 0.625 | AO129: 44.6 | AP129: 0 | AQ129: 0 | AR129: 0 | AS129: 0 | AT129: 0 | AU129: 0 | AV129: 0 | AW129: 0
A130: HSS12X6X1/2 | B130: HSS | C130: F | D130: 55.52609431 | E130: 15.3 | F130: 0 | G130: 12 | H130: 0 | I130: 0 | J130: 6 | K130: 0 | L130: 0 | M130: 0 | N130: 0 | O130: 0.5 | P130: 0.465 | Q130: 0 | R130: 0 | S130: 0 | T130: 0 | U130: 0 | V130: 0 | W130: 0 | X130: 0 | Y130: 0 | Z130: 9.9 | AA130: 0 | AB130: 22.8 | AC130: 0 | AD130: 271 | AE130: 57.4 | AF130: 45.2 | AG130: 4.21 | AH130: 91.1 | AI130: 35.2 | AJ130: 30.4 | AK130: 2.44 | AL130: 0 | AM130: 227 | AN130: 0.5 | AO130: 59 | AP130: 0 | AQ130: 0 | AR130: 0 | AS130: 0 | AT130: 0 | AU130: 0 | AV130: 0 | AW130: 0
A131: HSS12X6X1/4 | B131: HSS | C131: F | D131: 29.19468241 | E131: 8.03 | F131: 0 | G131: 12 | H131: 0 | I131: 0 | J131: 6 | K131: 0 | L131: 0 | M131: 0 | N131: 0 | O131: 0.25 | P131: 0.233 | Q131: 0 | R131: 0 | S131: 0 | T131: 0 | U131: 0 | V131: 0 | W131: 0 | X131: 0 | Y131: 0 | Z131: 22.8 | AA131: 0 | AB131: 48.5 | AC131: 0 | AD131: 151 | AE131: 31.1 | AF131: 25.2 | AG131: 4.34 | AH131: 51.9 | AI131: 19.3 | AJ131: 17.3 | AK131: 2.54 | AL131: 0 | AM131: 124 | AN131: 0.25 | AO131: 31.6 | AP131: 0 | AQ131: 0 | AR131: 0 | AS131: 0 | AT131: 0 | AU131: 0 | AV131: 0 | AW131: 0
A132: HSS12X6X3/16 | B132: HSS | C132: F | D132: 22.21997752 | E132: 6.06 | F132: 0 | G132: 12 | H132: 0 | I132: 0 | J132: 6 | K132: 0 | L132: 0 | M132: 0 | N132: 0 | O132: 0.1875 | P132: 0.174 | Q132: 0 | R132: 0 | S132: 0 | T132: 0 | U132: 0 | V132: 0 | W132: 0 | X132: 0 | Y132: 0 | Z132: 31.5 | AA132: 0 | AB132: 66 | AC132: 0 | AD132: 116 | AE132: 23.7 | AF132: 19.4 | AG132: 4.38 | AH132: 40 | AI132: 14.7 | AJ132: 13.3 | AK132: 2.57 | AL132: 0 | AM132: 94.6 | AN132: 0.1875 | AO132: 24 | AP132: 0 | AQ132: 0 | AR132: 0 | AS132: 0 | AT132: 0 | AU132: 0 | AV132: 0 | AW132: 0
A133: HSS12X6X3/8 | B133: HSS | C133: F | D133: 42.71829317 | E133: 11.8 | F133: 0 | G133: 12 | H133: 0 | I133: 0 | J133: 6 | K133: 0 | L133: 0 | M133: 0 | N133: 0 | O133: 0.375 | P133: 0.349 | Q133: 0 | R133: 0 | S133: 0 | T133: 0 | U133: 0 | V133: 0 | W133: 0 | X133: 0 | Y133: 0 | Z133: 14.2 | AA133: 0 | AB133: 31.4 | AC133: 0 | AD133: 215 | AE133: 44.8 | AF133: 35.9 | AG133: 4.28 | AH133: 72.9 | AI133: 27.7 | AJ133: 24.3 | AK133: 2.49 | AL133: 0 | AM133: 178 | AN133: 0.375 | AO133: 45.8 | AP133: 0 | AQ133: 0 | AR133: 0 | AS133: 0 | AT133: 0 | AU133: 0 | AV133: 0 | AW133: 0
A134: HSS12X6X5/16 | B134: HSS | C134: F | D134: 36.09929233 | E134: 9.92 | F134: 0 | G134: 12 | H134: 0 | I134: 0 | J134: 6 | K134: 0 | L134: 0 | M134: 0 | N134: 0 | O134: 0.3125 | P134: 0.291 | Q134: 0 | R134: 0 | S134: 0 | T134: 0 | U134: 0 | V134: 0 | W134: 0 | X134: 0 | Y134: 0 | Z134: 17.6 | AA134: 0 | AB134: 38.2 | AC134: 0 | AD134: 184 | AE134: 38.1 | AF134: 30.7 | AG134: 4.31 | AH134: 62.8 | AI134: 23.6 | AJ134: 20.9 | AK134: 2.52 | AL134: 0 | AM134: 152 | AN134: 0.3125 | AO134: 38.8 | AP134: 0 | AQ134: 0 | AR134: 0 | AS134: 0 | AT134: 0 | AU134: 0 | AV134: 0 | AW134: 0
A135: HSS12X6X5/8 | B135: HSS | C135: F | D135: 67.61808585 | E135: 18.7 | F135: 0 | G135: 12 | H135: 0 | I135: 0 | J135: 6 | K135: 0 | L135: 0 | M135: 0 | N135: 0 | O135: 0.625 | P135: 0.581 | Q135: 0 | R135: 0 | S135: 0 | T135: 0 | U135: 0 | V135: 0 | W135: 0 | X135: 0 | Y135: 0 | Z135: 7.33 | AA135: 0 | AB135: 17.7 | AC135: 0 | AD135: 321 | AE135: 68.8 | AF135: 53.4 | AG135: 4.14 | AH135: 107 | AI135: 42.1 | AJ135: 35.5 | AK135: 2.39 | AL135: 0 | AM135: 271 | AN135: 0.625 | AO135: 71.1 | AP135: 0 | AQ135: 0 | AR135: 0 | AS135: 0 | AT135: 0 | AU135: 0 | AV135: 0 | AW135: 0
A136: HSS12X8X1/2 | B136: HSS | C136: F | D136: 62.33164987 | E136: 17.2 | F136: 0 | G136: 12 | H136: 0 | I136: 0 | J136: 8 | K136: 0 | L136: 0 | M136: 0 | N136: 0 | O136: 0.5 | P136: 0.465 | Q136: 0 | R136: 0 | S136: 0 | T136: 0 | U136: 0 | V136: 0 | W136: 0 | X136: 0 | Y136: 0 | Z136: 14.2 | AA136: 0 | AB136: 22.8 | AC136: 0 | AD136: 333 | AE136: 68.1 | AF136: 55.6 | AG136: 4.41 | AH136: 178 | AI136: 51.5 | AJ136: 44.4 | AK136: 3.21 | AL136: 0 | AM136: 377 | AN136: 0.5 | AO136: 80.4 | AP136: 0 | AQ136: 0 | AR136: 0 | AS136: 0 | AT136: 0 | AU136: 0 | AV136: 0 | AW136: 0
A137: HSS12X8X1/4 | B137: HSS | C137: F | D137: 32.59746019 | E137: 8.96 | F137: 0 | G137: 12 | H137: 0 | I137: 0 | J137: 8 | K137: 0 | L137: 0 | M137: 0 | N137: 0 | O137: 0.25 | P137: 0.233 | Q137: 0 | R137: 0 | S137: 0 | T137: 0 | U137: 0 | V137: 0 | W137: 0 | X137: 0 | Y137: 0 | Z137: 31.3 | AA137: 0 | AB137: 48.5 | AC137: 0 | AD137: 184 | AE137: 36.6 | AF137: 30.6 | AG137: 4.53 | AH137: 98.8 | AI137: 27.8 | AJ137: 24.7 | AK137: 3.32 | AL137: 0 | AM137: 202 | AN137: 0.25 | AO137: 42.5 | AP137: 0 | AQ137: 0 | AR137: 0 | AS137: 0 | AT137: 0 | AU137: 0 | AV137: 0 | AW137: 0
A138: HSS12X8X3/16 | B138: HSS | C138: F | D138: 24.77886641 | E138: 6.76 | F138: 0 | G138: 12 | H138: 0 | I138: 0 | J138: 8 | K138: 0 | L138: 0 | M138: 0 | N138: 0 | O138: 0.1878 | P138: 0.174 | Q138: 0 | R138: 0 | S138: 0 | T138: 0 | U138: 0 | V138: 0 | W138: 0 | X138: 0 | Y138: 0 | Z138: 43 | AA138: 0 | AB138: 66 | AC138: 0 | AD138: 140 | AE138: 27.8 | AF138: 23.4 | AG138: 4.56 | AH138: 75.7 | AI138: 21.1 | AJ138: 18.9 | AK138: 3.35 | AL138: 0 | AM138: 153 | AN138: 0.1875 | AO138: 32.2 | AP138: 0 | AQ138: 0 | AR138: 0 | AS138: 0 | AT138: 0 | AU138: 0 | AV138: 0 | AW138: 0
A139: HSS12X8X3/8 | B139: HSS | C139: F | D139: 47.82245984 | E139: 13.2 | F139: 0 | G139: 12 | H139: 0 | I139: 0 | J139: 8 | K139: 0 | L139: 0 | M139: 0 | N139: 0 | O139: 0.375 | P139: 0.349 | Q139: 0 | R139: 0 | S139: 0 | T139: 0 | U139: 0 | V139: 0 | W139: 0 | X139: 0 | Y139: 0 | Z139: 19.9 | AA139: 0 | AB139: 31.4 | AC139: 0 | AD139: 262 | AE139: 53 | AF139: 43.7 | AG139: 4.47 | AH139: 140 | AI139: 40.1 | AJ139: 35.1 | AK139: 3.27 | AL139: 0 | AM139: 293 | AN139: 0.375 | AO139: 62.1 | AP139: 0 | AQ139: 0 | AR139: 0 | AS139: 0 | AT139: 0 | AU139: 0 | AV139: 0 | AW139: 0
A140: HSS12X8X5/16 | B140: HSS | C140: F | D140: 40.3595701 | E140: 11.1 | F140: 0 | G140: 12 | H140: 0 | I140: 0 | J140: 8 | K140: 0 | L140: 0 | M140: 0 | N140: 0 | O140: 0.3125 | P140: 0.291 | Q140: 0 | R140: 0 | S140: 0 | T140: 0 | U140: 0 | V140: 0 | W140: 0 | X140: 0 | Y140: 0 | Z140: 24.5 | AA140: 0 | AB140: 38.2 | AC140: 0 | AD140: 224 | AE140: 44.9 | AF140: 37.4 | AG140: 4.5 | AH140: 120 | AI140: 34.1 | AJ140: 30.1 | AK140: 3.29 | AL140: 0 | AM140: 248 | AN140: 0.3125 | AO140: 52.4 | AP140: 0 | AQ140: 0 | AR140: 0 | AS140: 0 | AT140: 0 | AU140: 0 | AV140: 0 | AW140: 0
A141: HSS12X8X5/8 | B141: HSS | C141: F | D141: 76.12503029 | E141: 21 | F141: 0 | G141: 12 | H141: 0 | I141: 0 | J141: 8 | K141: 0 | L141: 0 | M141: 0 | N141: 0 | O141: 0.625 | P141: 0.581 | Q141: 0 | R141: 0 | S141: 0 | T141: 0 | U141: 0 | V141: 0 | W141: 0 | X141: 0 | Y141: 0 | Z141: 10.8 | AA141: 0 | AB141: 17.7 | AC141: 0 | AD141: 397 | AE141: 82.1 | AF141: 66.1 | AG141: 4.34 | AH141: 210 | AI141: 61.9 | AJ141: 52.5 | AK141: 3.16 | AL141: 0 | AM141: 454 | AN141: 0.625 | AO141: 97.7 | AP141: 0 | AQ141: 0 | AR141: 0 | AS141: 0 | AT141: 0 | AU141: 0 | AV141: 0 | AW141: 0
A142: HSS14X0.250 | B142: HSS | C142: F | D142: 36.74736199 | E142: 10.1 | F142: 0 | G142: 0 | H142: 14 | I142: 0 | J142: 0 | K142: 0 | L142: 0 | M142: 0 | N142: 0 | O142: 0.25 | P142: 0.233 | Q142: 0 | R142: 0 | S142: 0 | T142: 0 | U142: 0 | V142: 0 | W142: 0 | X142: 0 | Y142: 0 | Z142: 0 | AA142: 0 | AB142: 0 | AC142: 60.1 | AD142: 239 | AE142: 44.2 | AF142: 34.1 | AG142: 4.87 | AH142: 239 | AI142: 44.2 | AJ142: 34.1 | AK142: 4.87 | AL142: 0 | AM142: 478 | AN142: 0 | AO142: 68.2 | AP142: 0 | AQ142: 0 | AR142: 0 | AS142: 0 | AT142: 0 | AU142: 0 | AV142: 0 | AW142: 0
A143: HSS14X0.312 | B143: HSS | C143: F | D143: 45.65391766 | E143: 12.5 | F143: 0 | G143: 0 | H143: 14 | I143: 0 | J143: 0 | K143: 0 | L143: 0 | M143: 0 | N143: 0 | O143: 0.3125 | P143: 0.291 | Q143: 0 | R143: 0 | S143: 0 | T143: 0 | U143: 0 | V143: 0 | W143: 0 | X143: 0 | Y143: 0 | Z143: 0 | AA143: 0 | AB143: 0 | AC143: 48.1 | AD143: 295 | AE143: 54.7 | AF143: 42.1 | AG143: 4.85 | AH143: 295 | AI143: 54.7 | AJ143: 42.1 | AK143: 4.85 | AL143: 0 | AM143: 589 | AN143: 0 | AO143: 84.2 | AP143: 0 | AQ143: 0 | AR143: 0 | AS143: 0 | AT143: 0 | AU143: 0 | AV143: 0 | AW143: 0
A144: HSS14X0.375 | B144: HSS | C144: F | D144: 54.61994259 | E144: 15 | F144: 0 | G144: 0 | H144: 14 | I144: 0 | J144: 0 | K144: 0 | L144: 0 | M144: 0 | N144: 0 | O144: 0.375 | P144: 0.349 | Q144: 0 | R144: 0 | S144: 0 | T144: 0 | U144: 0 | V144: 0 | W144: 0 | X144: 0 | Y144: 0 | Z144: 0 | AA144: 0 | AB144: 0 | AC144: 40.1 | AD144: 349 | AE144: 65.1 | AF144: 49.8 | AG144: 4.83 | AH144: 349 | AI144: 65.1 | AJ144: 49.8 | AK144: 4.83 | AL144: 0 | AM144: 698 | AN144: 0 | AO144: 100 | AP144: 0 | AQ144: 0 | AR144: 0 | AS144: 0 | AT144: 0 | AU144: 0 | AV144: 0 | AW144: 0
A145: HSS14X0.500 | B145: HSS | C145: F | D145: 72.15845626 | E145: 19.8 | F145: 0 | G145: 0 | H145: 14 | I145: 0 | J145: 0 | K145: 0 | L145: 0 | M145: 0 | N145: 0 | O145: 0.5 | P145: 0.465 | Q145: 0 | R145: 0 | S145: 0 | T145: 0 | U145: 0 | V145: 0 | W145: 0 | X145: 0 | Y145: 0 | Z145: 0 | AA145: 0 | AB145: 0 | AC145: 30.1 | AD145: 453 | AE145: 85.2 | AF145: 64.8 | AG145: 4.79 | AH145: 453 | AI145: 85.2 | AJ145: 64.8 | AK145: 4.79 | AL145: 0 | AM145: 907 | AN145: 0 | AO145: 130 | AP145: 0 | AQ145: 0 | AR145: 0 | AS145: 0 | AT145: 0 | AU145: 0 | AV145: 0 | AW145: 0
A146: HSS14X0.625 | B146: HSS | C146: F | D146: 89.36290301 | E146: 24.5 | F146: 0 | G146: 0 | H146: 14 | I146: 0 | J146: 0 | K146: 0 | L146: 0 | M146: 0 | N146: 0 | O146: 0.625 | P146: 0.581 | Q146: 0 | R146: 0 | S146: 0 | T146: 0 | U146: 0 | V146: 0 | W146: 0 | X146: 0 | Y146: 0 | Z146: 0 | AA146: 0 | AB146: 0 | AC146: 24.1 | AD146: 552 | AE146: 105 | AF146: 78.9 | AG146: 4.75 | AH146: 552 | AI146: 105 | AJ146: 78.9 | AK146: 4.75 | AL146: 0 | AM146: 1100 | AN146: 0 | AO146: 158 | AP146: 0 | AQ146: 0 | AR146: 0 | AS146: 0 | AT146: 0 | AU146: 0 | AV146: 0 | AW146: 0
A147: HSS14X10X1/2 | B147: HSS | C147: F | D147: 75.94276098 | E147: 20.9 | F147: 0 | G147: 14 | H147: 0 | I147: 0 | J147: 10 | K147: 0 | L147: 0 | M147: 0 | N147: 0 | O147: 0.5 | P147: 0.465 | Q147: 0 | R147: 0 | S147: 0 | T147: 0 | U147: 0 | V147: 0 | W147: 0 | X147: 0 | Y147: 0 | Z147: 18.5 | AA147: 0 | AB147: 27.1 | AC147: 0 | AD147: 573 | AE147: 98.8 | AF147: 81.8 | AG147: 5.23 | AH147: 341 | AI147: 78.5 | AJ147: 68.1 | AK147: 4.04 | AL147: 0 | AM147: 685 | AN147: 0.5 | AO147: 120 | AP147: 0 | AQ147: 0 | AR147: 0 | AS147: 0 | AT147: 0 | AU147: 0 | AV147: 0 | AW147: 0
A148: HSS14X10X1/4 | B148: HSS | C148: F | D148: 39.47833964 | E148: 10.8 | F148: 0 | G148: 14 | H148: 0 | I148: 0 | J148: 10 | K148: 0 | L148: 0 | M148: 0 | N148: 0 | O148: 0.25 | P148: 0.233 | Q148: 0 | R148: 0 | S148: 0 | T148: 0 | U148: 0 | V148: 0 | W148: 0 | X148: 0 | Y148: 0 | Z148: 39.9 | AA148: 0 | AB148: 57.1 | AC148: 0 | AD148: 310 | AE148: 52.4 | AF148: 44.3 | AG148: 5.35 | AH148: 186 | AI148: 41.8 | AJ148: 37.2 | AK148: 4.14 | AL148: 0 | AM148: 362 | AN148: 0.25 | AO148: 62.6 | AP148: 0 | AQ148: 0 | AR148: 0 | AS148: 0 | AT148: 0 | AU148: 0 | AV148: 0 | AW148: 0
A149: HSS14X10X3/8 | B149: HSS | C149: F | D149: 58.07409284 | E149: 16 | F149: 0 | G149: 14 | H149: 0 | I149: 0 | J149: 10 | K149: 0 | L149: 0 | M149: 0 | N149: 0 | O149: 0.375 | P149: 0.349 | Q149: 0 | R149: 0 | S149: 0 | T149: 0 | U149: 0 | V149: 0 | W149: 0 | X149: 0 | Y149: 0 | Z149: 25.7 | AA149: 0 | AB149: 37.1 | AC149: 0 | AD149: 447 | AE149: 76.3 | AF149: 63.9 | AG149: 5.29 | AH149: 267 | AI149: 60.7 | AJ149: 53.4 | AK149: 4.09 | AL149: 0 | AM149: 528 | AN149: 0.375 | AO149: 91.8 | AP149: 0 | AQ149: 0 | AR149: 0 | AS149: 0 | AT149: 0 | AU149: 0 | AV149: 0 | AW149: 0
A150: HSS14X10X5/16 | B150: HSS | C150: F | D150: 48.86537666 | E150: 13.4 | F150: 0 | G150: 14 | H150: 0 | I150: 0 | J150: 10 | K150: 0 | L150: 0 | M150: 0 | N150: 0 | O150: 0.3125 | P150: 0.291 | Q150: 0 | R150: 0 | S150: 0 | T150: 0 | U150: 0 | V150: 0 | W150: 0 | X150: 0 | Y150: 0 | Z150: 31.4 | AA150: 0 | AB150: 45.1 | AC150: 0 | AD150: 380 | AE150: 64.6 | AF150: 54.3 | AG150: 5.32 | AH150: 227 | AI150: 51.4 | AJ150: 45.5 | AK150: 4.12 | AL150: 0 | AM150: 446 | AN150: 0.3125 | AO150: 77.4 | AP150: 0 | AQ150: 0 | AR150: 0 | AS150: 0 | AT150: 0 | AU150: 0 | AV150: 0 | AW150: 0
A151: HSS14X10X5/8 | B151: HSS | C151: F | D151: 93.09940885 | E151: 25.7 | F151: 0 | G151: 14 | H151: 0 | I151: 0 | J151: 10 | K151: 0 | L151: 0 | M151: 0 | N151: 0 | O151: 0.625 | P151: 0.581 | Q151: 0 | R151: 0 | S151: 0 | T151: 0 | U151: 0 | V151: 0 | W151: 0 | X151: 0 | Y151: 0 | Z151: 14.2 | AA151: 0 | AB151: 21.1 | AC151: 0 | AD151: 687 | AE151: 120 | AF151: 98.2 | AG151: 5.17 | AH151: 407 | AI151: 95.1 | AJ151: 81.5 | AK151: 3.98 | AL151: 0 | AM151: 832 | AN151: 0.625 | AO151: 146 | AP151: 0 | AQ151: 0 | AR151: 0 | AS151: 0 | AT151: 0 | AU151: 0 | AV151: 0 | AW151: 0
A152: HSS14X14X1/2 | B152: HSS | C152: F | D152: 89.55387209 | E152: 24.6 | F152: 0 | G152: 14 | H152: 0 | I152: 0 | J152: 14 | K152: 0 | L152: 0 | M152: 0 | N152: 0 | O152: 0.5 | P152: 0.465 | Q152: 0 | R152: 0 | S152: 0 | T152: 0 | U152: 0 | V152: 0 | W152: 0 | X152: 0 | Y152: 0 | Z152: 27.1 | AA152: 0 | AB152: 27.1 | AC152: 0 | AD152: 743 | AE152: 124 | AF152: 106 | AG152: 5.49 | AH152: 0 | AI152: 0 | AJ152: 0 | AK152: 0 | AL152: 0 | AM152: 1170 | AN152: 0 | AO152: 170 | AP152: 0 | AQ152: 0 | AR152: 0 | AS152: 0 | AT152: 0 | AU152: 0 | AV152: 0 | AW152: 0
A153: HSS14X14X3/8 | B153: HSS | C153: F | D153: 68.2391265 | E153: 18.7 | F153: 0 | G153: 14 | H153: 0 | I153: 0 | J153: 14 | K153: 0 | L153: 0 | M153: 0 | N153: 0 | O153: 0.375 | P153: 0.349 | Q153: 0 | R153: 0 | S153: 0 | T153: 0 | U153: 0 | V153: 0 | W153: 0 | X153: 0 | Y153: 0 | Z153: 37.1 | AA153: 0 | AB153: 37.1 | AC153: 0 | AD153: 577 | AE153: 95.4 | AF153: 82.5 | AG153: 5.55 | AH153: 0 | AI153: 0 | AJ153: 0 | AK153: 0 | AL153: 0 | AM153: 900 | AN153: 0 | AO153: 130 | AP153: 0 | AQ153: 0 | AR153: 0 | AS153: 0 | AT153: 0 | AU153: 0 | AV153: 0 | AW153: 0
A154: HSS14X14X5/16 | B154: HSS | C154: F | D154: 57.3133251 | E154: 15.7 | F154: 0 | G154: 14 | H154: 0 | I154: 0 | J154: 14 | K154: 0 | L154: 0 | M154: 0 | N154: 0 | O154: 0.3125 | P154: 0.291 | Q154: 0 | R154: 0 | S154: 0 | T154: 0 | U154: 0 | V154: 0 | W154: 0 | X154: 0 | Y154: 0 | Z154: 45.1 | AA154: 0 | AB154: 45.1 | AC154: 0 | AD154: 490 | AE154: 80.5 | AF154: 69.9 | AG154: 5.58 | AH154: 0 | AI154: 0 | AJ154: 0 | AK154: 0 | AL154: 0 | AM154: 759 | AN154: 0 | AO154: 109 | AP154: 0 | AQ154: 0 | AR154: 0 | AS154: 0 | AT154: 0 | AU154: 0 | AV154: 0 | AW154: 0
A155: HSS14X14X5/8 | B155: HSS | C155: F | D155: 110 | E155: 30.3 | F155: 0 | G155: 14 | H155: 0 | I155: 0 | J155: 14 | K155: 0 | L155: 0 | M155: 0 | N155: 0 | O155: 0.625 | P155: 0.581 | Q155: 0 | R155: 0 | S155: 0 | T155: 0 | U155: 0 | V155: 0 | W155: 0 | X155: 0 | Y155: 0 | Z155: 21.1 | AA155: 0 | AB155: 21.1 | AC155: 0 | AD155: 897 | AE155: 151 | AF155: 128 | AG155: 5.44 | AH155: 0 | AI155: 0 | AJ155: 0 | AK155: 0 | AL155: 0 | AM155: 1430 | AN155: 0 | AO155: 208 | AP155: 0 | AQ155: 0 | AR155: 0 | AS155: 0 | AT155: 0 | AU155: 0 | AV155: 0 | AW155: 0
A156: HSS14X4X1/2 | B156: HSS | C156: F | D156: 55.52609431 | E156: 15.3 | F156: 0 | G156: 14 | H156: 0 | I156: 0 | J156: 4 | K156: 0 | L156: 0 | M156: 0 | N156: 0 | O156: 0.5 | P156: 0.465 | Q156: 0 | R156: 0 | S156: 0 | T156: 0 | U156: 0 | V156: 0 | W156: 0 | X156: 0 | Y156: 0 | Z156: 5.6 | AA156: 0 | AB156: 27.1 | AC156: 0 | AD156: 317 | AE156: 61 | AF156: 45.3 | AG156: 4.55 | AH156: 41.2 | AI156: 24.1 | AJ156: 20.6 | AK156: 1.64 | AL156: 0 | AM156: 127 | AN156: 0.5 | AO156: 44.1 | AP156: 0 | AQ156: 0 | AR156: 0 | AS156: 0 | AT156: 0 | AU156: 0 | AV156: 0 | AW156: 0
A157: HSS14X4X1/4 | B157: HSS | C157: F | D157: 29.24958964 | E157: 8.03 | F157: 0 | G157: 14 | H157: 0 | I157: 0 | J157: 4 | K157: 0 | L157: 0 | M157: 0 | N157: 0 | O157: 0.25 | P157: 0.233 | Q157: 0 | R157: 0 | S157: 0 | T157: 0 | U157: 0 | V157: 0 | W157: 0 | X157: 0 | Y157: 0 | Z157: 14.2 | AA157: 0 | AB157: 57.1 | AC157: 0 | AD157: 178 | AE157: 33.2 | AF157: 25.4 | AG157: 4.71 | AH157: 24.4 | AI157: 13.5 | AJ157: 12.2 | AK157: 1.74 | AL157: 0 | AM157: 72.4 | AN157: 0.25 | AO157: 24.1 | AP157: 0 | AQ157: 0 | AR157: 0 | AS157: 0 | AT157: 0 | AU157: 0 | AV157: 0 | AW157: 0
A158: HSS14X4X3/16 | B158: HSS | C158: F | D158: 22.11825352 | E158: 6.06 | F158: 0 | G158: 14 | H158: 0 | I158: 0 | J158: 4 | K158: 0 | L158: 0 | M158: 0 | N158: 0 | O158: 0.1875 | P158: 0.174 | Q158: 0 | R158: 0 | S158: 0 | T158: 0 | U158: 0 | V158: 0 | W158: 0 | X158: 0 | Y158: 0 | Z158: 20 | AA158: 0 | AB158: 77.5 | AC158: 0 | AD158: 137 | AE158: 25.3 | AF158: 19.5 | AG158: 4.74 | AH158: 19 | AI158: 10.3 | AJ158: 9.48 | AK158: 1.77 | AL158: 0 | AM158: 55.8 | AN158: 0.1875 | AO158: 18.4 | AP158: 0 | AQ158: 0 | AR158: 0 | AS158: 0 | AT158: 0 | AU158: 0 | AV158: 0 | AW158: 0
A159: HSS14X4X3/8 | B159: HSS | C159: F | D159: 42.74934284 | E159: 11.8 | F159: 0 | G159: 14 | H159: 0 | I159: 0 | J159: 4 | K159: 0 | L159: 0 | M159: 0 | N159: 0 | O159: 0.375 | P159: 0.349 | Q159: 0 | R159: 0 | S159: 0 | T159: 0 | U159: 0 | V159: 0 | W159: 0 | X159: 0 | Y159: 0 | Z159: 8.46 | AA159: 0 | AB159: 37.1 | AC159: 0 | AD159: 252 | AE159: 47.8 | AF159: 36 | AG159: 4.63 | AH159: 33.6 | AI159: 19.1 | AJ159: 16.8 | AK159: 1.69 | AL159: 0 | AM159: 102 | AN159: 0.375 | AO159: 34.6 | AP159: 0 | AQ159: 0 | AR159: 0 | AS159: 0 | AT159: 0 | AU159: 0 | AV159: 0 | AW159: 0
A160: HSS14X4X5/16 | B160: HSS | C160: F | D160: 36.08862666 | E160: 9.92 | F160: 0 | G160: 14 | H160: 0 | I160: 0 | J160: 4 | K160: 0 | L160: 0 | M160: 0 | N160: 0 | O160: 0.3125 | P160: 0.291 | Q160: 0 | R160: 0 | S160: 0 | T160: 0 | U160: 0 | V160: 0 | W160: 0 | X160: 0 | Y160: 0 | Z160: 10.7 | AA160: 0 | AB160: 45.1 | AC160: 0 | AD160: 216 | AE160: 40.6 | AF160: 30.9 | AG160: 4.67 | AH160: 29.2 | AI160: 16.4 | AJ160: 14.6 | AK160: 1.72 | AL160: 0 | AM160: 87.7 | AN160: 0.3125 | AO160: 29.5 | AP160: 0 | AQ160: 0 | AR160: 0 | AS160: 0 | AT160: 0 | AU160: 0 | AV160: 0 | AW160: 0
A161: HSS14X4X5/8 | B161: HSS | C161: F | D161: 67.59082551 | E161: 18.7 | F161: 0 | G161: 14 | H161: 0 | I161: 0 | J161: 4 | K161: 0 | L161: 0 | M161: 0 | N161: 0 | O161: 0.625 | P161: 0.581 | Q161: 0 | R161: 0 | S161: 0 | T161: 0 | U161: 0 | V161: 0 | W161: 0 | X161: 0 | Y161: 0 | Z161: 3.88 | AA161: 0 | AB161: 21.1 | AC161: 0 | AD161: 373 | AE161: 73.1 | AF161: 53.3 | AG161: 4.47 | AH161: 47.2 | AI161: 28.5 | AJ161: 23.6 | AK161: 1.59 | AL161: 0 | AM161: 148 | AN161: 0.625 | AO161: 52.6 | AP161: 0 | AQ161: 0 | AR161: 0 | AS161: 0 | AT161: 0 | AU161: 0 | AV161: 0 | AW161: 0
A162: HSS14X6X1/2 | B162: HSS | C162: F | D162: 62.33164987 | E162: 17.2 | F162: 0 | G162: 14 | H162: 0 | I162: 0 | J162: 6 | K162: 0 | L162: 0 | M162: 0 | N162: 0 | O162: 0.5 | P162: 0.465 | Q162: 0 | R162: 0 | S162: 0 | T162: 0 | U162: 0 | V162: 0 | W162: 0 | X162: 0 | Y162: 0 | Z162: 9.9 | AA162: 0 | AB162: 27.1 | AC162: 0 | AD162: 402 | AE162: 73.6 | AF162: 57.4 | AG162: 4.84 | AH162: 105 | AI162: 40.4 | AJ162: 35.1 | AK162: 2.48 | AL162: 0 | AM162: 279 | AN162: 0.5 | AO162: 69.3 | AP162: 0 | AQ162: 0 | AR162: 0 | AS162: 0 | AT162: 0 | AU162: 0 | AV162: 0 | AW162: 0
A163: HSS14X6X1/4 | B163: HSS | C163: F | D163: 32.65917297 | E163: 8.96 | F163: 0 | G163: 14 | H163: 0 | I163: 0 | J163: 6 | K163: 0 | L163: 0 | M163: 0 | N163: 0 | O163: 0.25 | P163: 0.233 | Q163: 0 | R163: 0 | S163: 0 | T163: 0 | U163: 0 | V163: 0 | W163: 0 | X163: 0 | Y163: 0 | Z163: 22.8 | AA163: 0 | AB163: 57.1 | AC163: 0 | AD163: 222 | AE163: 39.6 | AF163: 31.7 | AG163: 4.98 | AH163: 59.6 | AI163: 22 | AJ163: 19.9 | AK163: 2.58 | AL163: 0 | AM163: 152 | AN163: 0.25 | AO163: 36.9 | AP163: 0 | AQ163: 0 | AR163: 0 | AS163: 0 | AT163: 0 | AU163: 0 | AV163: 0 | AW163: 0
A164: HSS14X6X3/16 | B164: HSS | C164: F | D164: 24.66489241 | E164: 6.76 | F164: 0 | G164: 14 | H164: 0 | I164: 0 | J164: 6 | K164: 0 | L164: 0 | M164: 0 | N164: 0 | O164: 0.1875 | P164: 0.174 | Q164: 0 | R164: 0 | S164: 0 | T164: 0 | U164: 0 | V164: 0 | W164: 0 | X164: 0 | Y164: 0 | Z164: 31.5 | AA164: 0 | AB164: 77.5 | AC164: 0 | AD164: 170 | AE164: 30.1 | AF164: 24.3 | AG164: 5.01 | AH164: 45.9 | AI164: 16.7 | AJ164: 15.3 | AK164: 2.61 | AL164: 0 | AM164: 116 | AN164: 0.1875 | AO164: 28 | AP164: 0 | AQ164: 0 | AR164: 0 | AS164: 0 | AT164: 0 | AU164: 0 | AV164: 0 | AW164: 0
A165: HSS14X6X3/8 | B165: HSS | C165: F | D165: 47.85759284 | E165: 13.2 | F165: 0 | G165: 14 | H165: 0 | I165: 0 | J165: 6 | K165: 0 | L165: 0 | M165: 0 | N165: 0 | O165: 0.375 | P165: 0.349 | Q165: 0 | R165: 0 | S165: 0 | T165: 0 | U165: 0 | V165: 0 | W165: 0 | X165: 0 | Y165: 0 | Z165: 14.2 | AA165: 0 | AB165: 37.1 | AC165: 0 | AD165: 317 | AE165: 57.3 | AF165: 45.3 | AG165: 4.91 | AH165: 84.1 | AI165: 31.6 | AJ165: 28 | AK165: 2.53 | AL165: 0 | AM165: 219 | AN165: 0.375 | AO165: 53.7 | AP165: 0 | AQ165: 0 | AR165: 0 | AS165: 0 | AT165: 0 | AU165: 0 | AV165: 0 | AW165: 0
A166: HSS14X6X5/16 | B166: HSS | C166: F | D166: 40.34754333 | E166: 11.1 | F166: 0 | G166: 14 | H166: 0 | I166: 0 | J166: 6 | K166: 0 | L166: 0 | M166: 0 | N166: 0 | O166: 0.3125 | P166: 0.291 | Q166: 0 | R166: 0 | S166: 0 | T166: 0 | U166: 0 | V166: 0 | W166: 0 | X166: 0 | Y166: 0 | Z166: 17.6 | AA166: 0 | AB166: 45.1 | AC166: 0 | AD166: 271 | AE166: 48.6 | AF166: 38.7 | AG166: 4.94 | AH166: 72.3 | AI166: 26.9 | AJ166: 24.1 | AK166: 2.55 | AL166: 0 | AM166: 186 | AN166: 0.3125 | AO166: 45.5 | AP166: 0 | AQ166: 0 | AR166: 0 | AS166: 0 | AT166: 0 | AU166: 0 | AV166: 0 | AW166: 0
A167: HSS14X6X5/8 | B167: HSS | C167: F | D167: 76.09368662 | E167: 21 | F167: 0 | G167: 14 | H167: 0 | I167: 0 | J167: 10 | K167: 0 | L167: 0 | M167: 0 | N167: 0 | O167: 0.625 | P167: 0.581 | Q167: 0 | R167: 0 | S167: 0 | T167: 0 | U167: 0 | V167: 0 | W167: 0 | X167: 0 | Y167: 0 | Z167: 7.33 | AA167: 0 | AB167: 21.1 | AC167: 0 | AD167: 478 | AE167: 88.7 | AF167: 68.3 | AG167: 4.77 | AH167: 124 | AI167: 48.4 | AJ167: 41.2 | AK167: 2.43 | AL167: 0 | AM167: 334 | AN167: 0.625 | AO167: 83.7 | AP167: 0 | AQ167: 0 | AR167: 0 | AS167: 0 | AT167: 0 | AU167: 0 | AV167: 0 | AW167: 0
A168: HSS16X0.250 | B168: HSS | C168: F | D168: 42.09243282 | E168: 11.5 | F168: 0 | G168: 0 | H168: 16 | I168: 0 | J168: 0 | K168: 0 | L168: 0 | M168: 0 | N168: 0 | O168: 0.25 | P168: 0.233 | Q168: 0 | R168: 0 | S168: 0 | T168: 0 | U168: 0 | V168: 0 | W168: 0 | X168: 0 | Y168: 0 | Z168: 0 | AA168: 0 | AB168: 0 | AC168: 68.7 | AD168: 359 | AE168: 57.9 | AF168: 44.8 | AG168: 5.58 | AH168: 359 | AI168: 57.9 | AJ168: 44.8 | AK168: 5.58 | AL168: 0 | AM168: 717 | AN168: 0 | AO168: 89.7 | AP168: 0 | AQ168: 0 | AR168: 0 | AS168: 0 | AT168: 0 | AU168: 0 | AV168: 0 | AW168: 0
A169: HSS16X0.312 | B169: HSS | C169: F | D169: 52.32456606 | E169: 14.4 | F169: 0 | G169: 0 | H169: 16 | I169: 0 | J169: 0 | K169: 0 | L169: 0 | M169: 0 | N169: 0 | O169: 0.3125 | P169: 0.291 | Q169: 0 | R169: 0 | S169: 0 | T169: 0 | U169: 0 | V169: 0 | W169: 0 | X169: 0 | Y169: 0 | Z169: 0 | AA169: 0 | AB169: 0 | AC169: 55 | AD169: 443 | AE169: 71.8 | AF169: 55.4 | AG169: 5.55 | AH169: 443 | AI169: 71.8 | AJ169: 55.4 | AK169: 5.55 | AL169: 0 | AM169: 886 | AN169: 0 | AO169: 111 | AP169: 0 | AQ169: 0 | AR169: 0 | AS169: 0 | AT169: 0 | AU169: 0 | AV169: 0 | AW169: 0
A170: HSS16X0.375 | B170: HSS | C170: F | D170: 62.63754884 | E170: 17.2 | F170: 0 | G170: 0 | H170: 16 | I170: 0 | J170: 0 | K170: 0 | L170: 0 | M170: 0 | N170: 0 | O170: 0.375 | P170: 0.349 | Q170: 0 | R170: 0 | S170: 0 | T170: 0 | U170: 0 | V170: 0 | W170: 0 | X170: 0 | Y170: 0 | Z170: 0 | AA170: 0 | AB170: 0 | AC170: 45.8 | AD170: 526 | AE170: 85.5 | AF170: 65.7 | AG170: 5.53 | AH170: 526 | AI170: 85.5 | AJ170: 65.7 | AK170: 5.53 | AL170: 0 | AM170: 1050 | AN170: 0 | AO170: 131 | AP170: 0 | AQ170: 0 | AR170: 0 | AS170: 0 | AT170: 0 | AU170: 0 | AV170: 0 | AW170: 0
A171: HSS16X0.438 | B171: HSS | C171: F | D171: 72.86567327 | E171: 19.9 | F171: 0 | G171: 0 | H171: 16 | I171: 0 | J171: 0 | K171: 0 | L171: 0 | M171: 0 | N171: 0 | O171: 0.4375 | P171: 0.407 | Q171: 0 | R171: 0 | S171: 0 | T171: 0 | U171: 0 | V171: 0 | W171: 0 | X171: 0 | Y171: 0 | Z171: 0 | AA171: 0 | AB171: 0 | AC171: 39.3 | AD171: 606 | AE171: 99 | AF171: 75.8 | AG171: 5.51 | AH171: 606 | AI171: 99 | AJ171: 75.8 | AK171: 5.51 | AL171: 0 | AM171: 1210 | AN171: 0 | AO171: 152 | AP171: 0 | AQ171: 0 | AR171: 0 | AS171: 0 | AT171: 0 | AU171: 0 | AV171: 0 | AW171: 0
A172: HSS16X0.500 | B172: HSS | C172: F | D172: 82.84859793 | E172: 22.7 | F172: 0 | G172: 0 | H172: 16 | I172: 0 | J172: 0 | K172: 0 | L172: 0 | M172: 0 | N172: 0 | O172: 0.5 | P172: 0.465 | Q172: 0 | R172: 0 | S172: 0 | T172: 0 | U172: 0 | V172: 0 | W172: 0 | X172: 0 | Y172: 0 | Z172: 0 | AA172: 0 | AB172: 0 | AC172: 34.4 | AD172: 685 | AE172: 112 | AF172: 85.7 | AG172: 5.49 | AH172: 685 | AI172: 112 | AJ172: 85.7 | AK172: 5.49 | AL172: 0 | AM172: 1370 | AN172: 0 | AO172: 171 | AP172: 0 | AQ172: 0 | AR172: 0 | AS172: 0 | AT172: 0 | AU172: 0 | AV172: 0 | AW172: 0
A173: HSS16X0.625 | B173: HSS | C173: F | D173: 103 | E173: 28.1 | F173: 0 | G173: 0 | H173: 16 | I173: 0 | J173: 0 | K173: 0 | L173: 0 | M173: 0 | N173: 0 | O173: 0.625 | P173: 0.581 | Q173: 0 | R173: 0 | S173: 0 | T173: 0 | U173: 0 | V173: 0 | W173: 0 | X173: 0 | Y173: 0 | Z173: 0 | AA173: 0 | AB173: 0 | AC173: 27.5 | AD173: 838 | AE173: 138 | AF173: 105 | AG173: 5.46 | AH173: 838 | AI173: 138 | AJ173: 105 | AK173: 5.46 | AL173: 0 | AM173: 1680 | AN173: 0 | AO173: 209 | AP173: 0 | AQ173: 0 | AR173: 0 | AS173: 0 | AT173: 0 | AU173: 0 | AV173: 0 | AW173: 0
A174: HSS16X12X1/2 | B174: HSS | C174: F | D174: 89.55387209 | E174: 24.6 | F174: 0 | G174: 16 | H174: 0 | I174: 0 | J174: 12 | K174: 0 | L174: 0 | M174: 0 | N174: 0 | O174: 0.5 | P174: 0.465 | Q174: 0 | R174: 0 | S174: 0 | T174: 0 | U174: 0 | V174: 0 | W174: 0 | X174: 0 | Y174: 0 | Z174: 22.8 | AA174: 0 | AB174: 31.4 | AC174: 0 | AD174: 904 | AE174: 135 | AF174: 113 | AG174: 6.06 | AH174: 581 | AI174: 111 | AJ174: 96.8 | AK174: 4.86 | AL174: 0 | AM174: 1120 | AN174: 0.5 | AO174: 166 | AP174: 0 | AQ174: 0 | AR174: 0 | AS174: 0 | AT174: 0 | AU174: 0 | AV174: 0 | AW174: 0
A175: HSS16X12X3/8 | B175: HSS | C175: F | D175: 68.29059284 | E175: 18.7 | F175: 0 | G175: 16 | H175: 0 | I175: 0 | J175: 12 | K175: 0 | L175: 0 | M175: 0 | N175: 0 | O175: 0.375 | P175: 0.349 | Q175: 0 | R175: 0 | S175: 0 | T175: 0 | U175: 0 | V175: 0 | W175: 0 | X175: 0 | Y175: 0 | Z175: 31.4 | AA175: 0 | AB175: 42.8 | AC175: 0 | AD175: 702 | AE175: 104 | AF175: 87.7 | AG175: 6.12 | AH175: 452 | AI175: 85.5 | AJ175: 75.3 | AK175: 4.91 | AL175: 0 | AM175: 862 | AN175: 0.375 | AO175: 127 | AP175: 0 | AQ175: 0 | AR175: 0 | AS175: 0 | AT175: 0 | AU175: 0 | AV175: 0 | AW175: 0
A176: HSS16X12X5/16 | B176: HSS | C176: F | D176: 57.38320999 | E176: 15.7 | F176: 0 | G176: 16 | H176: 0 | I176: 0 | J176: 12 | K176: 0 | L176: 0 | M176: 0 | N176: 0 | O176: 0.3125 | P176: 0.291 | Q176: 0 | R176: 0 | S176: 0 | T176: 0 | U176: 0 | V176: 0 | W176: 0 | X176: 0 | Y176: 0 | Z176: 38.2 | AA176: 0 | AB176: 52 | AC176: 0 | AD176: 595 | AE176: 87.7 | AF176: 74.4 | AG176: 6.15 | AH176: 384 | AI176: 72.2 | AJ176: 64 | AK176: 4.94 | AL176: 0 | AM176: 727 | AN176: 0.3125 | AO176: 107 | AP176: 0 | AQ176: 0 | AR176: 0 | AS176: 0 | AT176: 0 | AU176: 0 | AV176: 0 | AW176: 0
A177: HSS16X12X5/8 | B177: HSS | C177: F | D177: 110 | E177: 30.3 | F177: 0 | G177: 16 | H177: 0 | I177: 0 | J177: 12 | K177: 0 | L177: 0 | M177: 0 | N177: 0 | O177: 0.625 | P177: 0.581 | Q177: 0 | R177: 0 | S177: 0 | T177: 0 | U177: 0 | V177: 0 | W177: 0 | X177: 0 | Y177: 0 | Z177: 17.7 | AA177: 0 | AB177: 24.5 | AC177: 0 | AD177: 1090 | AE177: 165 | AF177: 136 | AG177: 6 | AH177: 700 | AI177: 135 | AJ177: 117 | AK177: 4.8 | AL177: 0 | AM177: 1370 | AN177: 0.625 | AO177: 204 | AP177: 0 | AQ177: 0 | AR177: 0 | AS177: 0 | AT177: 0 | AU177: 0 | AV177: 0 | AW177: 0
A178: HSS16X16X1/2 | B178: HSS | C178: F | D178: 103 | E178: 28.3 | F178: 0 | G178: 16 | H178: 0 | I178: 0 | J178: 16 | K178: 0 | L178: 0 | M178: 0 | N178: 0 | O178: 0.5 | P178: 0.465 | Q178: 0 | R178: 0 | S178: 0 | T178: 0 | U178: 0 | V178: 0 | W178: 0 | X178: 0 | Y178: 0 | Z178: 31.4 | AA178: 0 | AB178: 31.4 | AC178: 0 | AD178: 1130 | AE178: 164 | AF178: 141 | AG178: 6.31 | AH178: 0 | AI178: 0 | AJ178: 0 | AK178: 0 | AL178: 0 | AM178: 1770 | AN178: 0 | AO178: 224 | AP178: 0 | AQ178: 0 | AR178: 0 | AS178: 0 | AT178: 0 | AU178: 0 | AV178: 0 | AW178: 0
A179: HSS16X16X3/8 | B179: HSS | C179: F | D179: 78.44745984 | E179: 21.5 | F179: 0 | G179: 16 | H179: 0 | I179: 0 | J179: 16 | K179: 0 | L179: 0 | M179: 0 | N179: 0 | O179: 0.375 | P179: 0.349 | Q179: 0 | R179: 0 | S179: 0 | T179: 0 | U179: 0 | V179: 0 | W179: 0 | X179: 0 | Y179: 0 | Z179: 42.8 | AA179: 0 | AB179: 42.8 | AC179: 0 | AD179: 873 | AE179: 126 | AF179: 109 | AG179: 6.37 | AH179: 0 | AI179: 0 | AJ179: 0 | AK179: 0 | AL179: 0 | AM179: 1350 | AN179: 0 | AO179: 171 | AP179: 0 | AQ179: 0 | AR179: 0 | AS179: 0 | AT179: 0 | AU179: 0 | AV179: 0 | AW179: 0
A180: HSS16X16X5/16 | B180: HSS | C180: F | D180: 65.82026955 | E180: 18.1 | F180: 0 | G180: 16 | H180: 0 | I180: 0 | J180: 16 | K180: 0 | L180: 0 | M180: 0 | N180: 0 | O180: 0.3125 | P180: 0.291 | Q180: 0 | R180: 0 | S180: 0 | T180: 0 | U180: 0 | V180: 0 | W180: 0 | X180: 0 | Y180: 0 | Z180: 52 | AA180: 0 | AB180: 52 | AC180: 0 | AD180: 739 | AE180: 106 | AF180: 92.3 | AG180: 6.39 | AH180: 0 | AI180: 0 | AJ180: 0 | AK180: 0 | AL180: 0 | AM180: 1140 | AN180: 0 | AO180: 144 | AP180: 0 | AQ180: 0 | AR180: 0 | AS180: 0 | AT180: 0 | AU180: 0 | AV180: 0 | AW180: 0
A181: HSS16X16X5/8 | B181: HSS | C181: F | D181: 127 | E181: 35 | F181: 0 | G181: 16 | H181: 0 | I181: 0 | J181: 16 | K181: 0 | L181: 0 | M181: 0 | N181: 0 | O181: 0.625 | P181: 0.581 | Q181: 0 | R181: 0 | S181: 0 | T181: 0 | U181: 0 | V181: 0 | W181: 0 | X181: 0 | Y181: 0 | Z181: 24.5 | AA181: 0 | AB181: 24.5 | AC181: 0 | AD181: 1370 | AE181: 200 | AF181: 171 | AG181: 6.25 | AH181: 0 | AI181: 0 | AJ181: 0 | AK181: 0 | AL181: 0 | AM181: 2170 | AN181: 0 | AO181: 276 | AP181: 0 | AQ181: 0 | AR181: 0 | AS181: 0 | AT181: 0 | AU181: 0 | AV181: 0 | AW181: 0
A182: HSS16X4X1/2 | B182: HSS | C182: F | D182: 62.33164987 | E182: 17.2 | F182: 0 | G182: 16 | H182: 0 | I182: 0 | J182: 4 | K182: 0 | L182: 0 | M182: 0 | N182: 0 | O182: 0.5 | P182: 0.465 | Q182: 0 | R182: 0 | S182: 0 | T182: 0 | U182: 0 | V182: 0 | W182: 0 | X182: 0 | Y182: 0 | Z182: 5.6 | AA182: 0 | AB182: 31.4 | AC182: 0 | AD182: 455 | AE182: 77.3 | AF182: 56.9 | AG182: 5.15 | AH182: 47 | AI182: 27.4 | AJ182: 23.5 | AK182: 1.65 | AL182: 0 | AM182: 150 | AN182: 0.5 | AO182: 50.7 | AP182: 0 | AQ182: 0 | AR182: 0 | AS182: 0 | AT182: 0 | AU182: 0 | AV182: 0 | AW182: 0
A183: HSS16X4X1/4 | B183: HSS | C183: F | D183: 32.65917297 | E183: 8.96 | F183: 0 | G183: 16 | H183: 0 | I183: 0 | J183: 4 | K183: 0 | L183: 0 | M183: 0 | N183: 0 | O183: 0.25 | P183: 0.233 | Q183: 0 | R183: 0 | S183: 0 | T183: 0 | U183: 0 | V183: 0 | W183: 0 | X183: 0 | Y183: 0 | Z183: 14.2 | AA183: 0 | AB183: 65.7 | AC183: 0 | AD183: 253 | AE183: 41.7 | AF183: 31.6 | AG183: 5.31 | AH183: 27.7 | AI183: 15.2 | AJ183: 13.8 | AK183: 1.76 | AL183: 0 | AM183: 85.2 | AN183: 0.25 | AO183: 27.6 | AP183: 0 | AQ183: 0 | AR183: 0 | AS183: 0 | AT183: 0 | AU183: 0 | AV183: 0 | AW183: 0
A184: HSS16X4X3/16 | B184: HSS | C184: F | D184: 24.66489241 | E184: 6.76 | F184: 0 | G184: 14 | H184: 0 | I184: 0 | J184: 4 | K184: 0 | L184: 0 | M184: 0 | N184: 0 | O184: 0.1875 | P184: 0.174 | Q184: 0 | R184: 0 | S184: 0 | T184: 0 | U184: 0 | V184: 0 | W184: 0 | X184: 0 | Y184: 0 | Z184: 20 | AA184: 0 | AB184: 89 | AC184: 0 | AD184: 193 | AE184: 31.7 | AF184: 24.2 | AG184: 5.35 | AH184: 21.5 | AI184: 11.7 | AJ184: 10.8 | AK184: 1.78 | AL184: 0 | AM184: 65.5 | AN184: 0.1875 | AO184: 21.1 | AP184: 0 | AQ184: 0 | AR184: 0 | AS184: 0 | AT184: 0 | AU184: 0 | AV184: 0 | AW184: 0
A185: HSS16X4X3/8 | B185: HSS | C185: F | D185: 47.85759284 | E185: 13.2 | F185: 0 | G185: 16 | H185: 0 | I185: 0 | J185: 4 | K185: 0 | L185: 0 | M185: 0 | N185: 0 | O185: 0.375 | P185: 0.349 | Q185: 0 | R185: 0 | S185: 0 | T185: 0 | U185: 0 | V185: 0 | W185: 0 | X185: 0 | Y185: 0 | Z185: 8.46 | AA185: 0 | AB185: 42.8 | AC185: 0 | AD185: 360 | AE185: 60.2 | AF185: 45 | AG185: 5.23 | AH185: 38.3 | AI185: 21.7 | AJ185: 19.1 | AK185: 1.71 | AL185: 0 | AM185: 120 | AN185: 0.375 | AO185: 39.7 | AP185: 0 | AQ185: 0 | AR185: 0 | AS185: 0 | AT185: 0 | AU185: 0 | AV185: 0 | AW185: 0
A186: HSS16X4X5/16 | B186: HSS | C186: F | D186: 40.34754333 | E186: 11.1 | F186: 0 | G186: 16 | H186: 0 | I186: 0 | J186: 4 | K186: 0 | L186: 0 | M186: 0 | N186: 0 | O186: 0.3125 | P186: 0.291 | Q186: 0 | R186: 0 | S186: 0 | T186: 0 | U186: 0 | V186: 0 | W186: 0 | X186: 0 | Y186: 0 | Z186: 10.7 | AA186: 0 | AB186: 52 | AC186: 0 | AD186: 308 | AE186: 51.1 | AF186: 38.5 | AG186: 5.27 | AH186: 33.2 | AI186: 18.5 | AJ186: 16.6 | AK186: 1.73 | AL186: 0 | AM186: 103 | AN186: 0.3125 | AO186: 33.8 | AP186: 0 | AQ186: 0 | AR186: 0 | AS186: 0 | AT186: 0 | AU186: 0 | AV186: 0 | AW186: 0
A187: HSS16X4X5/8 | B187: HSS | C187: F | D187: 76.09368662 | E187: 21 | F187: 0 | G187: 16 | H187: 0 | I187: 0 | J187: 4 | K187: 0 | L187: 0 | M187: 0 | N187: 0 | O187: 0.625 | P187: 0.581 | Q187: 0 | R187: 0 | S187: 0 | T187: 0 | U187: 0 | V187: 0 | W187: 0 | X187: 0 | Y187: 0 | Z187: 3.88 | AA187: 0 | AB187: 24.5 | AC187: 0 | AD187: 539 | AE187: 92.9 | AF187: 67.3 | AG187: 5.06 | AH187: 54.1 | AI187: 32.5 | AJ187: 27 | AK187: 1.6 | AL187: 0 | AM187: 174 | AN187: 0.625 | AO187: 60.5 | AP187: 0 | AQ187: 0 | AR187: 0 | AS187: 0 | AT187: 0 | AU187: 0 | AV187: 0 | AW187: 0
A188: HSS16X8X1/2 | B188: HSS | C188: F | D188: 75.94276098 | E188: 20.9 | F188: 0 | G188: 16 | H188: 0 | I188: 0 | J188: 8 | K188: 0 | L188: 0 | M188: 0 | N188: 0 | O188: 0.5 | P188: 0.465 | Q188: 0 | R188: 0 | S188: 0 | T188: 0 | U188: 0 | V188: 0 | W188: 0 | X188: 0 | Y188: 0 | Z188: 14.2 | AA188: 0 | AB188: 31.4 | AC188: 0 | AD188: 679 | AE188: 106 | AF188: 84.9 | AG188: 5.7 | AH188: 230 | AI188: 65.5 | AJ188: 57.6 | AK188: 3.32 | AL188: 0 | AM188: 563 | AN188: 0.5 | AO188: 108 | AP188: 0 | AQ188: 0 | AR188: 0 | AS188: 0 | AT188: 0 | AU188: 0 | AV188: 0 | AW188: 0
A189: HSS16X8X1/4 | B189: HSS | C189: F | D189: 39.47833964 | E189: 10.8 | F189: 0 | G189: 16 | H189: 0 | I189: 0 | J189: 8 | K189: 0 | L189: 0 | M189: 0 | N189: 0 | O189: 0.25 | P189: 0.233 | Q189: 0 | R189: 0 | S189: 0 | T189: 0 | U189: 0 | V189: 0 | W189: 0 | X189: 0 | Y189: 0 | Z189: 31.3 | AA189: 0 | AB189: 65.7 | AC189: 0 | AD189: 368 | AE189: 56.4 | AF189: 46.1 | AG189: 5.83 | AH189: 127 | AI189: 35 | AJ189: 31.7 | AK189: 3.42 | AL189: 0 | AM189: 300 | AN189: 0.25 | AO189: 57 | AP189: 0 | AQ189: 0 | AR189: 0 | AS189: 0 | AT189: 0 | AU189: 0 | AV189: 0 | AW189: 0
A190: HSS16X8X3/8 | B190: HSS | C190: F | D190: 58.07409284 | E190: 16 | F190: 0 | G190: 16 | H190: 0 | I190: 0 | J190: 8 | K190: 0 | L190: 0 | M190: 0 | N190: 0 | O190: 0.375 | P190: 0.349 | Q190: 0 | R190: 0 | S190: 0 | T190: 0 | U190: 0 | V190: 0 | W190: 0 | X190: 0 | Y190: 0 | Z190: 19.9 | AA190: 0 | AB190: 42.8 | AC190: 0 | AD190: 531 | AE190: 82.1 | AF190: 66.3 | AG190: 5.77 | AH190: 181 | AI190: 50.8 | AJ190: 45.3 | AK190: 3.37 | AL190: 0 | AM190: 436 | AN190: 0.375 | AO190: 83.4 | AP190: 0 | AQ190: 0 | AR190: 0 | AS190: 0 | AT190: 0 | AU190: 0 | AV190: 0 | AW190: 0
A191: HSS16X8X5/16 | B191: HSS | C191: F | D191: 48.86537666 | E191: 13.4 | F191: 0 | G191: 16 | H191: 0 | I191: 0 | J191: 8 | K191: 0 | L191: 0 | M191: 0 | N191: 0 | O191: 0.3125 | P191: 0.291 | Q191: 0 | R191: 0 | S191: 0 | T191: 0 | U191: 0 | V191: 0 | W191: 0 | X191: 0 | Y191: 0 | Z191: 24.5 | AA191: 0 | AB191: 52 | AC191: 0 | AD191: 451 | AE191: 69.4 | AF191: 56.4 | AG191: 5.8 | AH191: 155 | AI191: 43 | AJ191: 38.7 | AK191: 3.4 | AL191: 0 | AM191: 369 | AN191: 0.3125 | AO191: 70.4 | AP191: 0 | AQ191: 0 | AR191: 0 | AS191: 0 | AT191: 0 | AU191: 0 | AV191: 0 | AW191: 0
A192: HSS16X8X5/8 | B192: HSS | C192: F | D192: 93.09940885 | E192: 25.7 | F192: 0 | G192: 16 | H192: 0 | I192: 0 | J192: 8 | K192: 0 | L192: 0 | M192: 0 | N192: 0 | O192: 0.3125 | P192: 0.581 | Q192: 0 | R192: 0 | S192: 0 | T192: 0 | U192: 0 | V192: 0 | W192: 0 | X192: 0 | Y192: 0 | Z192: 10.8 | AA192: 0 | AB192: 24.5 | AC192: 0 | AD192: 815 | AE192: 129 | AF192: 102 | AG192: 5.64 | AH192: 274 | AI192: 79.2 | AJ192: 68.6 | AK192: 3.27 | AL192: 0 | AM192: 681 | AN192: 0.625 | AO192: 132 | AP192: 0 | AQ192: 0 | AR192: 0 | AS192: 0 | AT192: 0 | AU192: 0 | AV192: 0 | AW192: 0
A193: HSS18X0.375 | B193: HSS | C193: F | D193: 70.65515509 | E193: 19.4 | F193: 0 | G193: 0 | H193: 18 | I193: 0 | J193: 0 | K193: 0 | L193: 0 | M193: 0 | N193: 0 | O193: 0.375 | P193: 0.349 | Q193: 0 | R193: 0 | S193: 0 | T193: 0 | U193: 0 | V193: 0 | W193: 0 | X193: 0 | Y193: 0 | Z193: 0 | AA193: 0 | AB193: 0 | AC193: 51.6 | AD193: 754 | AE193: 109 | AF193: 83.8 | AG193: 6.24 | AH193: 754 | AI193: 109 | AJ193: 83.8 | AK193: 6.24 | AL193: 0 | AM193: 1510 | AN193: 0 | AO193: 168 | AP193: 0 | AQ193: 0 | AR193: 0 | AS193: 0 | AT193: 0 | AU193: 0 | AV193: 0 | AW193: 0
A194: HSS18X0.500 | B194: HSS | C194: F | D194: 93.5387396 | E194: 25.6 | F194: 0 | G194: 0 | H194: 18 | I194: 0 | J194: 0 | K194: 0 | L194: 0 | M194: 0 | N194: 0 | O194: 0.5 | P194: 0.465 | Q194: 0 | R194: 0 | S194: 0 | T194: 0 | U194: 0 | V194: 0 | W194: 0 | X194: 0 | Y194: 0 | Z194: 0 | AA194: 0 | AB194: 0 | AC194: 38.7 | AD194: 985 | AE194: 143 | AF194: 109 | AG194: 6.2 | AH194: 985 | AI194: 143 | AJ194: 109 | AK194: 6.2 | AL194: 0 | AM194: 1970 | AN194: 0 | AO194: 219 | AP194: 0 | AQ194: 0 | AR194: 0 | AS194: 0 | AT194: 0 | AU194: 0 | AV194: 0 | AW194: 0
A195: HSS18X6X1/2 | B195: HSS | C195: F | D195: 75.94276098 | E195: 20.9 | F195: 0 | G195: 18 | H195: 0 | I195: 0 | J195: 6 | K195: 0 | L195: 0 | M195: 0 | N195: 0 | O195: 0.5 | P195: 0.465 | Q195: 0 | R195: 0 | S195: 0 | T195: 0 | U195: 0 | V195: 0 | W195: 0 | X195: 0 | Y195: 0 | Z195: 9.9 | AA195: 0 | AB195: 35.7 | AC195: 0 | AD195: 770 | AE195: 112 | AF195: 85.6 | AG195: 6.07 | AH195: 134 | AI195: 50.7 | AJ195: 44.6 | AK195: 2.53 | AL195: 0 | AM195: 387 | AN195: 0.5 | AO195: 89.9 | AP195: 0 | AQ195: 0 | AR195: 0 | AS195: 0 | AT195: 0 | AU195: 0 | AV195: 0 | AW195: 0
A196: HSS18X6X1/4 | B196: HSS | C196: F | D196: 39.47833964 | E196: 10.8 | F196: 0 | G196: 18 | H196: 0 | I196: 0 | J196: 6 | K196: 0 | L196: 0 | M196: 0 | N196: 0 | O196: 0.25 | P196: 0.233 | Q196: 0 | R196: 0 | S196: 0 | T196: 0 | U196: 0 | V196: 0 | W196: 0 | X196: 0 | Y196: 0 | Z196: 22.8 | AA196: 0 | AB196: 74.3 | AC196: 0 | AD196: 419 | AE196: 59.4 | AF196: 46.5 | AG196: 6.22 | AH196: 75.1 | AI196: 27.3 | AJ196: 25 | AK196: 2.63 | AL196: 0 | AM196: 210 | AN196: 0.25 | AO196: 47.7 | AP196: 0 | AQ196: 0 | AR196: 0 | AS196: 0 | AT196: 0 | AU196: 0 | AV196: 0 | AW196: 0
A197: HSS18X6X3/8 | B197: HSS | C197: F | D197: 58.07409284 | E197: 16 | F197: 0 | G197: 18 | H197: 0 | I197: 0 | J197: 6 | K197: 0 | L197: 0 | M197: 0 | N197: 0 | O197: 0.375 | P197: 0.349 | Q197: 0 | R197: 0 | S197: 0 | T197: 0 | U197: 0 | V197: 0 | W197: 0 | X197: 0 | Y197: 0 | Z197: 14.2 | AA197: 0 | AB197: 48.6 | AC197: 0 | AD197: 602 | AE197: 86.4 | AF197: 66.9 | AG197: 6.15 | AH197: 106 | AI197: 39.5 | AJ197: 35.5 | AK197: 2.58 | AL197: 0 | AM197: 302 | AN197: 0.375 | AO197: 69.5 | AP197: 0 | AQ197: 0 | AR197: 0 | AS197: 0 | AT197: 0 | AU197: 0 | AV197: 0 | AW197: 0
A198: HSS18X6X5/16 | B198: HSS | C198: F | D198: 48.86537666 | E198: 13.4 | F198: 0 | G198: 18 | H198: 0 | I198: 0 | J198: 6 | K198: 0 | L198: 0 | M198: 0 | N198: 0 | O198: 0.3125 | P198: 0.291 | Q198: 0 | R198: 0 | S198: 0 | T198: 0 | U198: 0 | V198: 0 | W198: 0 | X198: 0 | Y198: 0 | Z198: 17.6 | AA198: 0 | AB198: 58.9 | AC198: 0 | AD198: 513 | AE198: 73.1 | AF198: 57 | AG198: 6.18 | AH198: 91.3 | AI198: 33.5 | AJ198: 30.4 | AK198: 2.61 | AL198: 0 | AM198: 257 | AN198: 0.3125 | AO198: 58.7 | AP198: 0 | AQ198: 0 | AR198: 0 | AS198: 0 | AT198: 0 | AU198: 0 | AV198: 0 | AW198: 0
A199: HSS18X6X5/8 | B199: HSS | C199: F | D199: 93.09940885 | E199: 25.7 | F199: 0 | G199: 18 | H199: 0 | I199: 0 | J199: 6 | K199: 0 | L199: 0 | M199: 0 | N199: 0 | O199: 0.625 | P199: 0.581 | Q199: 0 | R199: 0 | S199: 0 | T199: 0 | U199: 0 | V199: 0 | W199: 0 | X199: 0 | Y199: 0 | Z199: 7.33 | AA199: 0 | AB199: 28 | AC199: 0 | AD199: 923 | AE199: 135 | AF199: 103 | AG199: 6 | AH199: 158 | AI199: 61 | AJ199: 52.7 | AK199: 2.48 | AL199: 0 | AM199: 462 | AN199: 0.325 | AO199: 109 | AP199: 0 | AQ199: 0 | AR199: 0 | AS199: 0 | AT199: 0 | AU199: 0 | AV199: 0 | AW199: 0
A200: HSS2.375X0.125 | B200: HSS | C200: F | D200: 3.006602344 | E200: 0.823 | F200: 0 | G200: 0 | H200: 2.375 | I200: 0 | J200: 0 | K200: 0 | L200: 0 | M200: 0 | N200: 0 | O200: 0.125 | P200: 0.116 | Q200: 0 | R200: 0 | S200: 0 | T200: 0 | U200: 0 | V200: 0 | W200: 0 | X200: 0 | Y200: 0 | Z200: 0 | AA200: 0 | AB200: 0 | AC200: 20.5 | AD200: 0.527 | AE200: 0.592 | AF200: 0.443 | AG200: 0.8 | AH200: 0.527 | AI200: 0.592 | AJ200: 0.443 | AK200: 0.8 | AL200: 0 | AM200: 1.05 | AN200: 0 | AO200: 0.887 | AP200: 0 | AQ200: 0 | AR200: 0 | AS200: 0 | AT200: 0 | AU200: 0 | AV200: 0 | AW200: 0
... 693 more rows
